Submission Date;Quota Year;Product Type;Category;Supplier;Code;Consignment;Importer;Quantity;Licensed;Value;
2/1/2018;2018;Steel;7219341000 F;Turkey;TR;Turkey;4425;;8328;8328;19404
2/1/2018;2018;Steel;7306619200 F;Former Yugoslav Republic of Macedonia;MK;Former Yugoslav Republic of Macedonia;ab013cd0-2e43-4b49-a3f1;;8905;8905;5209
2/1/2018;2018;Steel;7306619900 F;Former Yugoslav Republic of Macedonia;MK;Former Yugoslav Republic of Macedonia;ab013cd0-2e43-4b49-a3f1;;15655;15655;9158
2/1/2018;2018;Steel;7210708091 F;India;IN;India;28;;22000;22000;17580
2/1/2018;2018;Steel;7306307280 F;Turkey;TR;Turkey;28;;55000;55000;41600
2/1/2018;2018;Steel;7209179000 F;Serbia;RS;Serbia;28;;231000;231000;140390
2/1/2018;2018;Steel;7209169000 F;Serbia;RS;Serbia;28;;651000;651000;387250
2/1/2018;2018;Steel;7209150090 F;Serbia;RS;Serbia;28;;70350;70350;42220
2/1/2018;2018;Steel;7306619200 F;Former Yugoslav Republic of Macedonia;MK;Former Yugoslav Republic of Macedonia;2477;;9378;9378;5384
2/1/2018;2018;Steel;7210122090 F;China;CN;China;57;;75000;75000;60468
2/1/2018;2018;Steel;7318190090 F;China;CN;China;bd48c793-c240-4f9e-8e0c;;5439;5439;6600
2/1/2018;2018;Steel;7306619900 F;Former Yugoslav Republic of Macedonia;MK;Former Yugoslav Republic of Macedonia;20;;115411;115411;68669
2/1/2018;2018;Steel;7208390090 F;Turkey;TR;Turkey;20;;721220;721220;368957
2/1/2018;2018;Steel;7306307780 F;Former Yugoslav Republic of Macedonia;MK;Former Yugoslav Republic of Macedonia;20;;142261;142261;84645
2/1/2018;2018;Steel;7210708091 F;Turkey;TR;Turkey;20;;15750;15750;17246
2/1/2018;2018;Steel;7210708091 F;Turkey;TR;Turkey;20;;50400;50400;53707
2/1/2018;2018;Steel;7210708091 F;Turkey;TR;Turkey;20;;577500;577500;464373
2/1/2018;2018;Steel;7208380090 F;Turkey;TR;Turkey;20;;165000;165000;84409
2/1/2018;2018;Steel;7208380090 F;Turkey;TR;Turkey;20;;599500;599500;289535
2/1/2018;2018;Steel;7210708091 F;Former Yugoslav Republic of Macedonia;MK;Former Yugoslav Republic of Macedonia;20;;60000;60000;56400
2/1/2018;2018;Steel;7306308000 F;Former Yugoslav Republic of Macedonia;MK;Former Yugoslav Republic of Macedonia;20;;165000;165000;98175
2/1/2018;2018;Steel;7306619200 F;Former Yugoslav Republic of Macedonia;MK;Former Yugoslav Republic of Macedonia;20;;165000;165000;98175
3/1/2018;2018;Steel;7222208100 F;India;IN;India;4606;;7510;7510;16938
3/1/2018;2018;Steel;7222203100 F;India;IN;India;4606;;9468;9468;21928
3/1/2018;2018;Steel;7208512090 F;Former Yugoslav Republic of Macedonia;MK;Former Yugoslav Republic of Macedonia;4732;;65801;65801;44163
3/1/2018;2018;Steel;7318129090 F;Vietnam;VN;Vietnam;4053;;39461;39461;60474
3/1/2018;2018;Steel;7216321100 F;Turkey;TR;Turkey;34;;16500;16500;8136
3/1/2018;2018;Steel;7216321100 F;Turkey;TR;Turkey;34;;27500;27500;14162
3/1/2018;2018;Steel;7216311000 F;Turkey;TR;Turkey;34;;2750;2750;1416
3/1/2018;2018;Steel;7216329100 F;Turkey;TR;Turkey;34;;22330;22330;11500
3/1/2018;2018;Steel;7216210000 F;Turkey;TR;Turkey;34;;23887;23887;11716
3/1/2018;2018;Steel;7216311000 F;Turkey;TR;Turkey;34;;13002;13002;6390
3/1/2018;2018;Steel;7216321100 F;Turkey;TR;Turkey;34;;2710;2710;1315
3/1/2018;2018;Steel;7216339000 F;Turkey;TR;Turkey;24;;4480;4480;2200
3/1/2018;2018;Steel;7216321100 F;Turkey;TR;Turkey;24;;7550;7550;3683
3/1/2018;2018;Steel;7216329100 F;Turkey;TR;Turkey;24;;15000;15000;7395
3/1/2018;2018;Steel;7216321100 F;Turkey;TR;Turkey;24;;4730;4730;2235
3/1/2018;2018;Steel;7210610080 F;India;IN;India;53;;32360;32360;25200
3/1/2018;2018;Steel;7210708091 F;Turkey;TR;Turkey;53;;24000;24000;20900
4/1/2018;2018;Steel;7229909000 F;China;CN;China;c9af600e-1a38-419e-98bd;;23680;23680;25141
4/1/2018;2018;Steel;7210490080 F;Turkey;TR;Turkey;3136;;80560;80560;54300
4/1/2018;2018;Steel;7210708019 F;Turkey;TR;Turkey;2718;;604064;604064;406420
4/1/2018;2018;Steel;7318129090 F;China;CN;China;4615;;22650;22650;17000
4/1/2018;2018;Steel;7318220095 F;China;CN;China;4615;;8259;8259;7350
4/1/2018;2018;Steel;7208512090 F;Former Yugoslav Republic of Macedonia;MK;Former Yugoslav Republic of Macedonia;1955;;14130;14130;8548
4/1/2018;2018;Steel;7208512090 F;Former Yugoslav Republic of Macedonia;MK;Former Yugoslav Republic of Macedonia;4727;;3297;3297;1912
4/1/2018;2018;Steel;7208529190 F;Former Yugoslav Republic of Macedonia;MK;Former Yugoslav Republic of Macedonia;4727;;4286;4286;2485
4/1/2018;2018;Steel;7208529900 F;Former Yugoslav Republic of Macedonia;MK;Former Yugoslav Republic of Macedonia;4727;;16328;16328;9470
4/1/2018;2018;Steel;7210708099 F;Former Yugoslav Republic of Macedonia;MK;Former Yugoslav Republic of Macedonia;4558;;35220;35220;30676
4/1/2018;2018;Steel;7306619200 F;China;CN;China;3136;;81234;81234;54500
4/1/2018;2018;Steel;7306619900 F;China;CN;China;3136;;52016;52016;42500
4/1/2018;2018;Steel;7306619900 F;China;CN;China;3136;;15008;15008;9500
4/1/2018;2018;Steel;7306619200 F;China;CN;China;3136;;160478;160478;107000
5/1/2018;2018;Steel;7210122090 F;China;CN;China;3664;;46450;46450;36141
5/1/2018;2018;Steel;7210122090 F;United States of America;US;United States of America;3664;;100000;100000;59409
5/1/2018;2018;Steel;7210708091 F;India;IN;India;53;;382875;382875;335117
5/1/2018;2018;Steel;7210708091 F;Former Yugoslav Republic of Macedonia;MK;Former Yugoslav Republic of Macedonia;53;;268550;268550;248558
5/1/2018;2018;Steel;7210490080 F;Former Yugoslav Republic of Macedonia;MK;Former Yugoslav Republic of Macedonia;53;;320840;320840;229120
5/1/2018;2018;Steel;7228409000 F;China;CN;China;4645;;10790;10790;12710
5/1/2018;2018;Steel;7210490080 F;Ukraine;UA;Ukraine;30;;756000;756000;464940
5/1/2018;2018;Steel;7306307280 F;Turkey;TR;Turkey;3136;;7840;7840;7000
5/1/2018;2018;Steel;7217203000 F;Turkey;TR;Turkey;4554;;25580;25580;26859
5/1/2018;2018;Steel;7210490080 F;Former Yugoslav Republic of Macedonia;MK;Former Yugoslav Republic of Macedonia;3910;;22890;22890;17510
5/1/2018;2018;Steel;7210610080 F;India;IN;India;3438;;95025;95025;71800
5/1/2018;2018;Steel;7208529900 F;Former Yugoslav Republic of Macedonia;MK;Former Yugoslav Republic of Macedonia;2077;;94217;94217;54645
5/1/2018;2018;Steel;7208512090 F;Former Yugoslav Republic of Macedonia;MK;Former Yugoslav Republic of Macedonia;2077;;57997;57997;33638
5/1/2018;2018;Steel;7208519890 F;Former Yugoslav Republic of Macedonia;MK;Former Yugoslav Republic of Macedonia;2077;;51956;51956;30134
5/1/2018;2018;Steel;7318169290 F;China;CN;China;4537;;8781;8781;13420
5/1/2018;2018;Steel;7318158290 F;China;CN;China;4537;;7430;7430;8500
5/1/2018;2018;Steel;7302400000 F;China;CN;China;4708;;27240;27240;29715
5/1/2018;2018;Steel;7210708099 F;Former Yugoslav Republic of Macedonia;MK;Former Yugoslav Republic of Macedonia;4558;;96000;96000;82080
5/1/2018;2018;Steel;7210708099 F;Turkey;TR;Turkey;4558;;66000;66000;56430
5/1/2018;2018;Steel;7210490020 F;Turkey;TR;Turkey;4700;;440000;440000;272800
8/1/2018;2018;Steel;7210122010 F;China;CN;China;4594;;440000;440000;345860
8/1/2018;2018;Steel;7219321000 F;India;IN;India;16;;9970;9970;19106
8/1/2018;2018;Steel;7219331000 F;India;IN;India;16;;19680;19680;37382
8/1/2018;2018;Steel;7219211000 F;India;IN;India;16;;6190;6190;11104
8/1/2018;2018;Steel;7219221000 F;India;IN;India;16;;14926;14926;26777
8/1/2018;2018;Steel;7318190090 F;China;CN;China;2c29821f-7b8c-4fe3-842d;;19200;19200;22201
8/1/2018;2018;Steel;7219351000 F;Indonesia;ID;Indonesia;16;;11265;11265;15406
8/1/2018;2018;Steel;7219341000 F;Indonesia;ID;Indonesia;16;;57005;57005;72917
8/1/2018;2018;Steel;7219341000 F;Indonesia;ID;Indonesia;16;;115330;115330;188177
8/1/2018;2018;Steel;7219331000 F;Indonesia;ID;Indonesia;16;;120035;120035;238807
8/1/2018;2018;Steel;7219321000 F;Indonesia;ID;Indonesia;16;;15940;15940;30278
8/1/2018;2018;Steel;7217103900 F;China;CN;China;41;;27000;27000;18461
8/1/2018;2018;Steel;7217103900 F;Ukraine;UA;Ukraine;41;;312000;312000;178316
8/1/2018;2018;Steel;7208529190 F;Ukraine;UA;Ukraine;14;;140025;140025;79172
8/1/2018;2018;Steel;7208519190 F;Ukraine;UA;Ukraine;14;;134931;134931;72771
8/1/2018;2018;Steel;7209179000 F;Ukraine;UA;Ukraine;14;;63000;63000;32760
8/1/2018;2018;Steel;7209169000 F;Ukraine;UA;Ukraine;14;;283500;283500;147420
8/1/2018;2018;Steel;7222191000 F;India;IN;India;16;;11542;11542;22737
8/1/2018;2018;Steel;7222202100 F;India;IN;India;16;;6703;6703;13078
8/1/2018;2018;Steel;7222203100 F;India;IN;India;16;;6014;6014;11571
8/1/2018;2018;Steel;7222202100 F;India;IN;India;16;;8732;8732;18167
8/1/2018;2018;Steel;7222191000 F;India;IN;India;16;;7808;7808;16048
8/1/2018;2018;Steel;7217203000 F;Ukraine;UA;Ukraine;41;;104000;104000;72959
8/1/2018;2018;Steel;7217203000 F;Turkey;TR;Turkey;41;;50000;50000;34750
8/1/2018;2018;Steel;7306304120 F;India;IN;India;29;;20330;20330;16049
8/1/2018;2018;Steel;7228701000 F;China;CN;China;4568;;3250;3250;5791
8/1/2018;2018;Steel;7210708011 F;Turkey;TR;Turkey;19;;4200;4200;4316
8/1/2018;2018;Steel;7216210000 F;Turkey;TR;Turkey;24;;305800;305800;166730
8/1/2018;2018;Steel;7216401000 F;Turkey;TR;Turkey;24;;159500;159500;88150
8/1/2018;2018;Steel;7216311000 F;Turkey;TR;Turkey;24;;99000;99000;53790
8/1/2018;2018;Steel;7216319000 F;Turkey;TR;Turkey;24;;11000;11000;6060
8/1/2018;2018;Steel;7216321100 F;Turkey;TR;Turkey;24;;77000;77000;42160
8/1/2018;2018;Steel;7216210000 F;Turkey;TR;Turkey;24;;113300;113300;61790
8/1/2018;2018;Steel;7216401000 F;Turkey;TR;Turkey;24;;50600;50600;27450
8/1/2018;2018;Steel;7216311000 F;Turkey;TR;Turkey;24;;80300;80300;43650
8/1/2018;2018;Steel;7216319000 F;Turkey;TR;Turkey;24;;11000;11000;6060
8/1/2018;2018;Steel;7216321100 F;Turkey;TR;Turkey;24;;49500;49500;27090
8/1/2018;2018;Steel;7307910090 F;China;CN;China;29;;22642;22642;25092
8/1/2018;2018;Steel;7210490080 F;Turkey;TR;Turkey;3661;;400000;400000;261200
8/1/2018;2018;Steel;7228701000 F;China;CN;China;4568;;3650;3650;6666
8/1/2018;2018;Steel;7215501900 F;Egypt;EG;Turkey;14;;25000;25000;21750
8/1/2018;2018;Steel;7318129090 F;Vietnam;VN;Vietnam;4602;;40188;40188;57862
8/1/2018;2018;Steel;7306619200 F;Former Yugoslav Republic of Macedonia;MK;Former Yugoslav Republic of Macedonia;24;;7550;7550;4460
8/1/2018;2018;Steel;7306619900 F;Former Yugoslav Republic of Macedonia;MK;Former Yugoslav Republic of Macedonia;34;;16405;16405;9700
8/1/2018;2018;Steel;7210490080 F;Former Yugoslav Republic of Macedonia;MK;Former Yugoslav Republic of Macedonia;41;;144930;144930;97103
8/1/2018;2018;Steel;7220908000 F;Japan;JP;Japan;4576;;51184;51184;346700
8/1/2018;2018;Steel;7214919090 F;Turkey;TR;Turkey;4645;;22705;22705;15350
8/1/2018;2018;Steel;7306304920 F;Turkey;TR;Turkey;1965;;5500;5500;3282
8/1/2018;2018;Steel;7306308000 F;Turkey;TR;Turkey;1965;;7700;7700;4722
8/1/2018;2018;Steel;7306304920 F;Turkey;TR;Turkey;1965;;14300;14300;8214
8/1/2018;2018;Steel;7306304120 F;Turkey;TR;Turkey;1965;;385000;385000;293097
8/1/2018;2018;Steel;7306308000 F;Turkey;TR;Turkey;1965;;7700;7700;4467
8/1/2018;2018;Steel;7306307290 F;Turkey;TR;Turkey;1965;;31900;31900;25911
8/1/2018;2018;Steel;7307191090 F;China;CN;China;29;;17470;17470;23662
8/1/2018;2018;Steel;7318149989 F;Taiwan;TW;Taiwan;26;;14127;14127;28961
8/1/2018;2018;Steel;7318158890 F;China;CN;China;4577;;9446;9446;11765
9/1/2018;2018;Steel;7210490020 F;Egypt;EG;Egypt;14;;275000;275000;186795
9/1/2018;2018;Steel;7318149989 F;Taiwan;TW;Taiwan;4683;;10435;10435;26497
9/1/2018;2018;Steel;7210490080 F;Former Yugoslav Republic of Macedonia;MK;Former Yugoslav Republic of Macedonia;3661;;225000;225000;158625
9/1/2018;2018;Steel;7318149989 F;Taiwan;TW;Taiwan;4537;;17535;17535;30020
9/1/2018;2018;Steel;7210122090 F;China;CN;China;36;;262502;262502;162488
9/1/2018;2018;Steel;7215501900 F;Turkey;TR;Turkey;14;;27741;27741;134544
9/1/2018;2018;Steel;7214911090 F;Turkey;TR;Turkey;14;;95435;95435;58216
9/1/2018;2018;Steel;7214997190 F;Turkey;TR;Turkey;14;;235070;235070;176303
9/1/2018;2018;Steel;7217201000 F;China;CN;China;41;;14700;14700;12954
9/1/2018;2018;Steel;7217209090 F;Turkey;TR;Turkey;41;;14000;14000;12740
9/1/2018;2018;Steel;7217203000 F;Turkey;TR;Turkey;41;;26000;26000;18610
9/1/2018;2018;Steel;7223001900 F;South Korea;KR;South Korea;4576;;5062;5062;46068
9/1/2018;2018;Steel;7219351000 F;Vietnam;VN;Vietnam;38;;9631;9631;21953
9/1/2018;2018;Steel;7219341000 F;South Korea;KR;South Korea;38;;18988;18988;43602
9/1/2018;2018;Steel;7219331000 F;South Korea;KR;South Korea;38;;5080;5080;10829
9/1/2018;2018;Steel;7219321000 F;Vietnam;VN;Vietnam;38;;19119;19119;39868
9/1/2018;2018;Steel;7219331000 F;Vietnam;VN;Vietnam;38;;55367;55367;115830
9/1/2018;2018;Steel;7219341000 F;Vietnam;VN;Vietnam;38;;58320;58320;130459
9/1/2018;2018;Steel;7306619900 F;Former Yugoslav Republic of Macedonia;MK;Former Yugoslav Republic of Macedonia;4317;;115000;115000;78200
9/1/2018;2018;Steel;7318129090 F;Vietnam;VN;Vietnam;4628;;19289;19289;32000
9/1/2018;2018;Steel;7219341000 F;Turkey;TR;Turkey;4596;;11500;11500;26795
9/1/2018;2018;Steel;7217203000 F;Turkey;TR;Turkey;4539;;9000;9000;8446
9/1/2018;2018;Steel;7217203000 F;China;CN;China;41;;39900;39900;34443
9/1/2018;2018;Steel;7318158890 F;China;CN;China;4672;;18262;18262;17238
9/1/2018;2018;Steel;7210490080 F;Former Yugoslav Republic of Macedonia;MK;Former Yugoslav Republic of Macedonia;3661;;300000;300000;210000
9/1/2018;2018;Steel;7306307280 F;Turkey;TR;Turkey;3136;;76213;76213;55400
9/1/2018;2018;Steel;7306304120 F;Turkey;TR;Turkey;3136;;9611;9611;7100
9/1/2018;2018;Steel;7306619900 F;Turkey;TR;Turkey;3136;;75286;75286;41520
9/1/2018;2018;Steel;7306307780 F;Turkey;TR;Turkey;3136;;21240;21240;11660
9/1/2018;2018;Steel;7217203000 F;Turkey;TR;Turkey;41;;12000;12000;9360
9/1/2018;2018;Steel;7210908099 F;South Korea;KR;South Korea;4528;;106700;106700;40760
10/1/2018;2018;Steel;7217201000 F;China;CN;China;41;;5250;5250;4627
10/1/2018;2018;Steel;7217203000 F;China;CN;China;41;;104000;104000;76005
10/1/2018;2018;Steel;7318154290 F;China;CN;China;4547;;66385;66385;68624
10/1/2018;2018;Steel;7318169290 F;China;CN;China;4625;;26112;26112;27000
10/1/2018;2018;Steel;7217304100 F;China;CN;China;4563;;9720;9720;10911
10/1/2018;2018;Steel;7208512010 F;Former Yugoslav Republic of Macedonia;MK;Former Yugoslav Republic of Macedonia;24;;7536;7536;4490
10/1/2018;2018;Steel;7208519810 F;Former Yugoslav Republic of Macedonia;MK;Former Yugoslav Republic of Macedonia;24;;6780;6780;4040
10/1/2018;2018;Steel;7208529110 F;Former Yugoslav Republic of Macedonia;MK;Former Yugoslav Republic of Macedonia;24;;302864;302864;185550
10/1/2018;2018;Steel;7208529900 F;Former Yugoslav Republic of Macedonia;MK;Former Yugoslav Republic of Macedonia;24;;194522;194522;118960
10/1/2018;2018;Steel;7219321000 F;Turkey;TR;Turkey;2007;;12971;12971;27500
10/1/2018;2018;Steel;7219331000 F;Turkey;TR;Turkey;2007;;6673;6673;14200
10/1/2018;2018;Steel;7219341000 F;South Africa;ZA;South Africa;2007;;20218;20218;32437
10/1/2018;2018;Steel;7219321000 F;South Africa;ZA;South Africa;2007;;12650;12650;15433
10/1/2018;2018;Steel;7219331000 F;South Africa;ZA;South Africa;2007;;8140;8140;10826
10/1/2018;2018;Steel;7306408000 F;China;CN;China;2007;;6718;6718;13900
10/1/2018;2018;Steel;7306611000 F;China;CN;China;2007;;12944;12944;23650
10/1/2018;2018;Steel;7214911090 F;Turkey;TR;Turkey;14;;4200;4200;2331
10/1/2018;2018;Steel;7214993900 F;Turkey;TR;Turkey;14;;15750;15750;8583
10/1/2018;2018;Steel;7216311000 F;Turkey;TR;Turkey;14;;10500;10500;5722
10/1/2018;2018;Steel;7216321900 F;Turkey;TR;Turkey;14;;64050;64050;34907
10/1/2018;2018;Steel;7216210000 F;Turkey;TR;Turkey;14;;33600;33600;18312
10/1/2018;2018;Steel;7208512090 F;Former Yugoslav Republic of Macedonia;MK;Former Yugoslav Republic of Macedonia;28;;10701;10701;6630
10/1/2018;2018;Steel;7208519190 F;Former Yugoslav Republic of Macedonia;MK;Former Yugoslav Republic of Macedonia;28;;15780;15780;9780
10/1/2018;2018;Steel;7208529190 F;Former Yugoslav Republic of Macedonia;MK;Former Yugoslav Republic of Macedonia;28;;7058;7058;4380
10/1/2018;2018;Steel;7208390090 F;Turkey;TR;Turkey;28;;715000;715000;361830
10/1/2018;2018;Steel;7208380090 F;Turkey;TR;Turkey;28;;726000;726000;367390
10/1/2018;2018;Steel;7208370090 F;Turkey;TR;Turkey;28;;808500;808500;409140
10/1/2018;2018;Steel;7306619200 F;Former Yugoslav Republic of Macedonia;MK;Former Yugoslav Republic of Macedonia;4607;;11090;11090;6598
10/1/2018;2018;Steel;7306619900 F;Former Yugoslav Republic of Macedonia;MK;Former Yugoslav Republic of Macedonia;4607;;14350;14350;8538
10/1/2018;2018;Steel;7208512090 F;Japan;JP;Japan;4574;;8506976;8506976;5027340
10/1/2018;2018;Steel;7306408000 F;China;CN;China;4425;;26163;26163;59768
10/1/2018;2018;Steel;7306619900 F;Former Yugoslav Republic of Macedonia;MK;Former Yugoslav Republic of Macedonia;2154;;47911;47911;28746
10/1/2018;2018;Steel;7306307780 F;Former Yugoslav Republic of Macedonia;MK;Former Yugoslav Republic of Macedonia;2154;;5665;5665;3399
11/1/2018;2018;Steel;7226110092 F;Japan;JP;Turkey;4546;;66000;66000;160380
11/1/2018;2018;Steel;7228306190 F;Turkey;TR;Turkey;50;;25000;25000;18875
11/1/2018;2018;Steel;7219908000 F;Turkey;TR;Turkey;4623;;7953;7953;18310
11/1/2018;2018;Steel;7216401000 F;Turkey;TR;Turkey;24;;18700;18700;10580
11/1/2018;2018;Steel;7208512090 F;Former Yugoslav Republic of Macedonia;MK;Former Yugoslav Republic of Macedonia;33;;133010;133010;81521
11/1/2018;2018;Steel;7216501000 F;Turkey;TR;Turkey;14;;6300;6300;3559
11/1/2018;2018;Steel;7214993900 F;Turkey;TR;Turkey;14;;29400;29400;17787
11/1/2018;2018;Steel;7216210000 F;Turkey;TR;Turkey;14;;37800;37800;20979
11/1/2018;2018;Steel;7214911090 F;Turkey;TR;Turkey;14;;126000;126000;71190
11/1/2018;2018;Steel;7209169000 F;Former Yugoslav Republic of Macedonia;MK;Former Yugoslav Republic of Macedonia;31;;198000;198000;116820
11/1/2018;2018;Steel;7209179000 F;Former Yugoslav Republic of Macedonia;MK;Former Yugoslav Republic of Macedonia;31;;154000;154000;90860
11/1/2018;2018;Steel;7209179000 F;Former Yugoslav Republic of Macedonia;MK;Former Yugoslav Republic of Macedonia;31;;36000;36000;21240
11/1/2018;2018;Steel;7219908000 F;Turkey;TR;Turkey;4578;;5370;5370;10101
11/1/2018;2018;Steel;7208400010 F;Turkey;TR;Turkey;34;;55000;55000;32295
11/1/2018;2018;Steel;7214993900 F;Turkey;TR;Turkey;34;;23100;23100;11917
11/1/2018;2018;Steel;7216501000 F;Turkey;TR;Turkey;34;;11000;11000;5674
11/1/2018;2018;Steel;7214993900 F;Turkey;TR;Turkey;34;;30800;30800;15889
11/1/2018;2018;Steel;7214911090 F;Turkey;TR;Turkey;34;;13200;13200;6809
11/1/2018;2018;Steel;7216311000 F;Turkey;TR;Turkey;34;;48400;48400;25797
11/1/2018;2018;Steel;7216321100 F;Turkey;TR;Turkey;34;;41800;41800;22328
11/1/2018;2018;Steel;7216339000 F;Turkey;TR;Turkey;34;;57860;57860;32401
11/1/2018;2018;Steel;7216311000 F;Turkey;TR;Turkey;34;;28930;28930;15911
11/1/2018;2018;Steel;7216319000 F;Turkey;TR;Turkey;34;;10560;10560;5808
11/1/2018;2018;Steel;7216321100 F;Turkey;TR;Turkey;34;;39930;39930;21961
11/1/2018;2018;Steel;7216329100 F;Turkey;TR;Turkey;34;;47960;47960;26378
11/1/2018;2018;Steel;7216331000 F;Turkey;TR;Turkey;34;;92400;92400;50820
11/1/2018;2018;Steel;7216311000 F;Turkey;TR;Turkey;34;;15510;15510;8530
11/1/2018;2018;Steel;7216319000 F;Turkey;TR;Turkey;34;;3520;3520;1936
11/1/2018;2018;Steel;7216321100 F;Turkey;TR;Turkey;34;;5940;5940;3267
11/1/2018;2018;Steel;7216329100 F;Turkey;TR;Turkey;34;;14960;14960;8228
11/1/2018;2018;Steel;7216331000 F;Turkey;TR;Turkey;34;;12320;12320;6776
11/1/2018;2018;Steel;7216339000 F;Turkey;TR;Turkey;34;;8690;8690;4866
11/1/2018;2018;Steel;7208360000 F;South Korea;KR;South Korea;4574;;8911400;8911400;3912138
11/1/2018;2018;Steel;7304399320 F;China;CN;China;59;;12687;12687;7502
11/1/2018;2018;Steel;7307931199 F;China;CN;China;59;;7641;7641;5153
11/1/2018;2018;Steel;7307931199 F;China;CN;China;59;;8765;8765;6646
12/1/2018;2018;Steel;7216311000 F;Turkey;TR;Turkey;14;;10000;10000;5450
12/1/2018;2018;Steel;7214993900 F;Turkey;TR;Turkey;14;;16100;16100;8774
12/1/2018;2018;Steel;7216321900 F;Turkey;TR;Turkey;14;;61450;61450;33490
12/1/2018;2018;Steel;7216210000 F;Turkey;TR;Turkey;14;;31350;31350;17085
12/1/2018;2018;Steel;7214911090 F;Turkey;TR;Turkey;14;;4100;4100;2275
12/1/2018;2018;Steel;7216401000 F;Turkey;TR;Turkey;14;;5800;5800;2842
12/1/2018;2018;Steel;7216501000 F;Turkey;TR;Turkey;14;;18000;18000;8840
12/1/2018;2018;Steel;7216311000 F;Turkey;TR;Turkey;14;;49200;49200;24108
12/1/2018;2018;Steel;7214993900 F;Turkey;TR;Turkey;14;;16000;16000;8000
12/1/2018;2018;Steel;7208512090 F;Ukraine;UA;Ukraine;14;;180630;180630;97109
12/1/2018;2018;Steel;7208519190 F;Ukraine;UA;Ukraine;14;;97230;97230;53599
12/1/2018;2018;Steel;7208519890 F;Ukraine;UA;Ukraine;14;;81385;81385;47365
12/1/2018;2018;Steel;7208529190 F;Ukraine;UA;Ukraine;14;;138940;138940;74791
12/1/2018;2018;Steel;7318158890 F;China;CN;China;4577;;5745;5745;6600
12/1/2018;2018;Steel;7210500010 F;China;CN;China;16;;320804;320804;245120
12/1/2018;2018;Steel;7210708011 F;Turkey;TR;Turkey;19;;16620;16620;12731
12/1/2018;2018;Steel;7306301900 F;China;CN;China;4721;;52617;52617;37200
12/1/2018;2018;Steel;7306301100 F;China;CN;China;4721;;26994;26994;18800
12/1/2018;2018;Steel;7210490020 F;Egypt;EG;Egypt;18;;275000;275000;170292
12/1/2018;2018;Steel;7306619900 F;Former Yugoslav Republic of Macedonia;MK;Former Yugoslav Republic of Macedonia;31;;22423;22423;13005
12/1/2018;2018;Steel;7306619200 F;Former Yugoslav Republic of Macedonia;MK;Former Yugoslav Republic of Macedonia;31;;21147;21147;12265
12/1/2018;2018;Steel;7306307780 F;Former Yugoslav Republic of Macedonia;MK;Former Yugoslav Republic of Macedonia;31;;8277;8277;4800
12/1/2018;2018;Steel;7210708099 F;Former Yugoslav Republic of Macedonia;MK;Former Yugoslav Republic of Macedonia;3910;;10770;10770;9477
12/1/2018;2018;Steel;7228506900 F;Turkey;TR;Turkey;4603;;23935;23935;15991
12/1/2018;2018;Steel;7210708099 F;Former Yugoslav Republic of Macedonia;MK;Former Yugoslav Republic of Macedonia;3910;;7160;7160;6157
12/1/2018;2018;Steel;7210490080 F;Former Yugoslav Republic of Macedonia;MK;Former Yugoslav Republic of Macedonia;3910;;5200;5200;2917
12/1/2018;2018;Steel;7306307780 F;Former Yugoslav Republic of Macedonia;MK;Former Yugoslav Republic of Macedonia;4667;;25000;25000;15000
12/1/2018;2018;Steel;7306619900 F;Former Yugoslav Republic of Macedonia;MK;Former Yugoslav Republic of Macedonia;4667;;5000;5000;2975
12/1/2018;2018;Steel;7306307290 F;Turkey;TR;Turkey;14;;135500;135500;107539
12/1/2018;2018;Steel;7306619900 F;Former Yugoslav Republic of Macedonia;MK;Former Yugoslav Republic of Macedonia;24;;31900;31900;19270
12/1/2018;2018;Steel;7306307780 F;Former Yugoslav Republic of Macedonia;MK;Former Yugoslav Republic of Macedonia;24;;3850;3850;2325
12/1/2018;2018;Steel;7307931199 F;China;CN;China;29;;15158;15158;14373
12/1/2018;2018;Steel;7307910090 F;China;CN;China;29;;28833;28833;30983
12/1/2018;2018;Steel;7213914900 F;Turkey;TR;Turkey;4541;;24000;24000;17130
12/1/2018;2018;Steel;7306301900 F;Former Yugoslav Republic of Macedonia;MK;Former Yugoslav Republic of Macedonia;97033fbd-2408-422e-ae45;;4185;4185;2490
12/1/2018;2018;Steel;7306301100 F;Former Yugoslav Republic of Macedonia;MK;Former Yugoslav Republic of Macedonia;97033fbd-2408-422e-ae45;;5185;5185;3085
12/1/2018;2018;Steel;7306308000 F;Former Yugoslav Republic of Macedonia;MK;Former Yugoslav Republic of Macedonia;97033fbd-2408-422e-ae45;;5000;5000;3075
12/1/2018;2018;Steel;7306619900 F;Former Yugoslav Republic of Macedonia;MK;Former Yugoslav Republic of Macedonia;97033fbd-2408-422e-ae45;;10440;10440;6211
15/1/2018;2018;Steel;7318129090 F;Vietnam;VN;Vietnam;4602;;40276;40276;57966
15/1/2018;2018;Steel;7216401000 F;Turkey;TR;Turkey;14;;167200;167200;102281
15/1/2018;2018;Steel;7216311000 F;Turkey;TR;Turkey;14;;118800;118800;72673
15/1/2018;2018;Steel;7307910090 F;China;CN;China;61;;17828;17828;16412
15/1/2018;2018;Steel;7216100000 F;Turkey;TR;Turkey;14;;22000;22000;13458
15/1/2018;2018;Steel;7216321900 F;Turkey;TR;Turkey;14;;159500;159500;97571
15/1/2018;2018;Steel;7216319000 F;Turkey;TR;Turkey;3136;;5500;5500;3400
15/1/2018;2018;Steel;7216329900 F;Turkey;TR;Turkey;3136;;27500;27500;15700
15/1/2018;2018;Steel;7216331000 F;Turkey;TR;Turkey;3136;;83600;83600;47000
15/1/2018;2018;Steel;7306619200 F;China;CN;China;3136;;26364;26364;18500
15/1/2018;2018;Steel;7216339000 F;Turkey;TR;Turkey;3136;;33000;33000;19000
15/1/2018;2018;Steel;7210490080 F;Turkey;TR;Turkey;3136;;115500;115500;80000
15/1/2018;2018;Steel;7214911090 F;Turkey;TR;Turkey;3136;;13200;13200;7700
15/1/2018;2018;Steel;7306611000 F;Turkey;TR;Turkey;132cd58f-a9fd-470d-bb7a;;21970;21970;18248
15/1/2018;2018;Steel;7216210000 F;Turkey;TR;Turkey;3136;;74800;74800;40000
15/1/2018;2018;Steel;7214995000 F;Turkey;TR;Turkey;3136;;4400;4400;2700
15/1/2018;2018;Steel;7216100000 F;Turkey;TR;Turkey;3136;;16500;16500;8800
15/1/2018;2018;Steel;7318158290 F;Taiwan;TW;Taiwan;4537;;18515;18515;32380
15/1/2018;2018;Steel;7216311000 F;Turkey;TR;Turkey;3136;;8250;8250;4400
15/1/2018;2018;Steel;7216321900 F;Turkey;TR;Turkey;3136;;85800;85800;44000
15/1/2018;2018;Steel;7208390090 F;Turkey;TR;Turkey;18;;1430000;1430000;736450
15/1/2018;2018;Steel;7216339000 F;Turkey;TR;Turkey;14;;25027;25027;16346
15/1/2018;2018;Steel;7208380090 F;Turkey;TR;Turkey;18;;220000;220000;113300
15/1/2018;2018;Steel;7318220095 F;China;CN;China;4610;;30658;30658;25582
15/1/2018;2018;Steel;7318190090 F;China;CN;China;4610;;12452;12452;12444
15/1/2018;2018;Steel;7217103900 F;Albania;AL;Albania;4655;;25000;25000;16375
15/1/2018;2018;Steel;7318169990 F;China;CN;China;4610;;18810;18810;25824
15/1/2018;2018;Steel;7318154290 F;China;CN;China;4648;;9698;9698;8974
15/1/2018;2018;Steel;7318158290 F;China;CN;China;4648;;5253;5253;5998
15/1/2018;2018;Steel;7217103900 F;China;CN;China;41;;107000;107000;73701
15/1/2018;2018;Steel;7306619200 F;Former Yugoslav Republic of Macedonia;MK;Former Yugoslav Republic of Macedonia;24;;19234;19234;11700
15/1/2018;2018;Steel;7306307780 F;Turkey;TR;Turkey;17;;16500;16500;11303
15/1/2018;2018;Steel;7306307780 F;Former Yugoslav Republic of Macedonia;MK;Former Yugoslav Republic of Macedonia;24;;7183;7183;4370
15/1/2018;2018;Steel;7306619900 F;Former Yugoslav Republic of Macedonia;MK;Former Yugoslav Republic of Macedonia;24;;62486;62486;38060
15/1/2018;2018;Steel;7306619900 F;China;CN;China;3136;;81062;81062;62000
15/1/2018;2018;Steel;7306408000 F;Taiwan;TW;Taiwan;4312;;3801;3801;10701
16/1/2018;2018;Steel;7217201000 F;China;CN;China;4559;;20000;20000;16328
16/1/2018;2018;Steel;7217203000 F;China;CN;China;4559;;5000;5000;3928
16/1/2018;2018;Steel;7227200000 F;Turkey;TR;Turkey;0310cb48-2a80-4ea3-8647;;7560;7560;8396
16/1/2018;2018;Steel;7208370090 F;Egypt;EG;Egypt;24;;23490;23490;12600
16/1/2018;2018;Steel;7208390090 F;Turkey;TR;Turkey;3700;;200000;200000;102152
16/1/2018;2018;Steel;7216210000 F;Former Yugoslav Republic of Macedonia;MK;Former Yugoslav Republic of Macedonia;23;;2000000;2000000;1020000
17/1/2018;2018;Steel;7210708099 F;India;IN;India;4528;;517057;517057;434293
17/1/2018;2018;Steel;7210708099 F;Former Yugoslav Republic of Macedonia;MK;Former Yugoslav Republic of Macedonia;4558;;24000;24000;20880
17/1/2018;2018;Steel;7306307780 F;Former Yugoslav Republic of Macedonia;MK;Former Yugoslav Republic of Macedonia;4613;;6473;6473;3786
17/1/2018;2018;Steel;7306619900 F;Former Yugoslav Republic of Macedonia;MK;Former Yugoslav Republic of Macedonia;4613;;6336;6336;3706
17/1/2018;2018;Steel;7306619200 F;Former Yugoslav Republic of Macedonia;MK;Former Yugoslav Republic of Macedonia;4613;;14195;14195;8304
17/1/2018;2018;Steel;7209179000 F;Former Yugoslav Republic of Macedonia;MK;Former Yugoslav Republic of Macedonia;24;;84000;84000;52600
17/1/2018;2018;Steel;7209169000 F;Former Yugoslav Republic of Macedonia;MK;Former Yugoslav Republic of Macedonia;24;;180000;180000;112700
17/1/2018;2018;Steel;7217203000 F;Turkey;TR;Turkey;4554;;30000;30000;36900
17/1/2018;2018;Steel;7318159590 F;Vietnam;VN;Vietnam;4614;;9042;9042;16050
17/1/2018;2018;Steel;7216321100 F;Turkey;TR;Turkey;28;;126500;126500;68310
17/1/2018;2018;Steel;7216321100 F;Turkey;TR;Turkey;28;;93500;93500;50490
17/1/2018;2018;Steel;7216311000 F;Turkey;TR;Turkey;28;;5500;5500;3030
17/1/2018;2018;Steel;7216321100 F;Turkey;TR;Turkey;28;;27500;27500;15130
17/1/2018;2018;Steel;7216321100 F;Turkey;TR;Turkey;28;;154000;154000;81620
17/1/2018;2018;Steel;7216329100 F;Turkey;TR;Turkey;28;;66000;66000;34980
17/1/2018;2018;Steel;7216331000 F;Turkey;TR;Turkey;28;;132000;132000;69960
17/1/2018;2018;Steel;7216339000 F;Turkey;TR;Turkey;28;;49500;49500;26730
17/1/2018;2018;Steel;7216311000 F;Turkey;TR;Turkey;28;;38500;38500;20400
17/1/2018;2018;Steel;7216319000 F;Turkey;TR;Turkey;28;;27500;27500;14580
17/1/2018;2018;Steel;7216321100 F;Turkey;TR;Turkey;28;;66000;66000;34980
17/1/2018;2018;Steel;7216329100 F;Turkey;TR;Turkey;28;;22000;22000;11660
17/1/2018;2018;Steel;7216331000 F;Turkey;TR;Turkey;28;;33000;33000;17490
17/1/2018;2018;Steel;7216339000 F;Turkey;TR;Turkey;28;;16500;16500;8910
17/1/2018;2018;Steel;7216311000 F;Turkey;TR;Turkey;28;;5500;5500;2920
17/1/2018;2018;Steel;7216319000 F;Turkey;TR;Turkey;28;;5500;5500;2920
17/1/2018;2018;Steel;7318158890 F;China;CN;China;4577;;5580;5580;7400
17/1/2018;2018;Steel;7318190090 F;China;CN;China;4577;;5240;5240;5730
17/1/2018;2018;Steel;7318154290 F;China;CN;China;4537;;22555;22555;20530
17/1/2018;2018;Steel;7210490080 F;Former Yugoslav Republic of Macedonia;MK;Former Yugoslav Republic of Macedonia;3661;;24000;24000;7920
17/1/2018;2018;Steel;7219341000 F;Malaysia;MY;Taiwan;4425;;21551;21551;49029
17/1/2018;2018;Steel;7219331000 F;Malaysia;MY;Taiwan;4425;;21381;21381;43637
18/1/2018;2018;Steel;7318158890 F;China;CN;China;839ce33e-388b-4f75-bd23;;7069;7069;8339
18/1/2018;2018;Steel;7318156890 F;China;CN;China;839ce33e-388b-4f75-bd23;;14772;14772;19398
18/1/2018;2018;Steel;7318158890 F;China;CN;China;839ce33e-388b-4f75-bd23;;35852;35852;39945
18/1/2018;2018;Steel;7318190090 F;China;CN;China;4577;;6510;6510;6880
18/1/2018;2018;Steel;7318169290 F;China;CN;China;4577;;13730;13730;18975
18/1/2018;2018;Steel;7210490080 F;Former Yugoslav Republic of Macedonia;MK;Former Yugoslav Republic of Macedonia;4551;;25140;25140;20370
18/1/2018;2018;Steel;7306304120 F;Pakistan;PK;Pakistan;2060;;371610;371610;280934
18/1/2018;2018;Steel;7208512090 F;China;CN;China;38;;16014;16014;13988
18/1/2018;2018;Steel;7208519890 F;China;CN;China;38;;7910;7910;7071
18/1/2018;2018;Steel;7306307780 F;Turkey;TR;Turkey;38;;26208;26208;16483
18/1/2018;2018;Steel;7226110092 F;Japan;JP;Turkey;4546;;66000;66000;160380
18/1/2018;2018;Steel;7318149190 F;Taiwan;TW;Taiwan;4553;;22164;22164;39036
18/1/2018;2018;Steel;7208270000 F;Serbia;RS;Serbia;20;;225750;225750;125737
18/1/2018;2018;Steel;7208512090 F;Former Yugoslav Republic of Macedonia;MK;Former Yugoslav Republic of Macedonia;4664;;14317;14317;8522
18/1/2018;2018;Steel;7208529900 F;Former Yugoslav Republic of Macedonia;MK;Former Yugoslav Republic of Macedonia;4664;;32036;32036;19496
19/1/2018;2018;Steel;7210490080 F;India;IN;India;2693;;420000;420000;279912
19/1/2018;2018;Steel;7318149989 F;China;CN;China;4608;;21625;21625;23390
19/1/2018;2018;Steel;7210708091 F;Former Yugoslav Republic of Macedonia;MK;Former Yugoslav Republic of Macedonia;4528;;25000;25000;22450
19/1/2018;2018;Steel;7210701090 F;China;CN;China;53;;132000;132000;114840
19/1/2018;2018;Steel;7306307780 F;Former Yugoslav Republic of Macedonia;MK;Former Yugoslav Republic of Macedonia;4668;;25000;25000;15000
19/1/2018;2018;Steel;7216401000 F;Turkey;TR;Turkey;34;;3300;3300;1589
19/1/2018;2018;Steel;7217203000 F;Turkey;TR;Turkey;4704;;19193;19193;22263
19/1/2018;2018;Steel;7210490020 F;Former Yugoslav Republic of Macedonia;MK;Former Yugoslav Republic of Macedonia;20;;560000;560000;390320
19/1/2018;2018;Steel;7209179000 F;Former Yugoslav Republic of Macedonia;MK;Former Yugoslav Republic of Macedonia;20;;72000;72000;42840
19/1/2018;2018;Steel;7209169000 F;Former Yugoslav Republic of Macedonia;MK;Former Yugoslav Republic of Macedonia;20;;96000;96000;57120
19/1/2018;2018;Steel;7210708091 F;Former Yugoslav Republic of Macedonia;MK;Former Yugoslav Republic of Macedonia;4528;;5030;5030;3106
19/1/2018;2018;Steel;7217909000 F;Turkey;TR;Turkey;4711;;50000;50000;63350
19/1/2018;2018;Steel;7304399230 F;China;CN;China;59;;34773;34773;17665
22/1/2018;2018;Steel;7210122010 F;China;CN;China;16;;387880;387880;303797
22/1/2018;2018;Steel;7318159590 F;Taiwan;TW;Taiwan;4579;;20351;20351;29800
22/1/2018;2018;Steel;7215900010 F;India;IN;India;4631;;12650;12650;16015
22/1/2018;2018;Steel;7318129090 F;Vietnam;VN;Vietnam;4602;;41272;41272;59493
22/1/2018;2018;Steel;7208390010 F;Turkey;TR;Turkey;1271;;2640000;2640000;1293600
22/1/2018;2018;Steel;7217103900 F;Former Yugoslav Republic of Macedonia;MK;Former Yugoslav Republic of Macedonia;48;;225000;225000;139750
22/1/2018;2018;Steel;7217203000 F;Former Yugoslav Republic of Macedonia;MK;Former Yugoslav Republic of Macedonia;48;;25000;25000;18500
22/1/2018;2018;Steel;7229200000 F;Turkey;TR;Turkey;4732;;6330;6330;6117
22/1/2018;2018;Steel;7213914900 F;Ukraine;UA;Ukraine;30;;4620000;4620000;2311967
22/1/2018;2018;Steel;7210490020 F;Turkey;TR;Turkey;20;;2816000;2816000;1802114
22/1/2018;2018;Steel;7210490020 F;Turkey;TR;Turkey;20;;66000;66000;42625
22/1/2018;2018;Steel;7210708091 F;Former Yugoslav Republic of Macedonia;MK;Former Yugoslav Republic of Macedonia;20;;160600;160600;163009
22/1/2018;2018;Steel;7209169000 F;Ukraine;UA;Ukraine;20;;220500;220500;122377
22/1/2018;2018;Steel;7210490020 F;Ukraine;UA;Ukraine;20;;504000;504000;308070
22/1/2018;2018;Steel;7210708091 F;India;IN;India;20;;742500;742500;650991
22/1/2018;2018;Steel;7210708091 F;India;IN;India;20;;495000;495000;424746
22/1/2018;2018;Steel;7208390090 F;Turkey;TR;Turkey;20;;1881000;1881000;955662
22/1/2018;2018;Steel;7208380090 F;Turkey;TR;Turkey;20;;1295500;1295500;654822
22/1/2018;2018;Steel;7208370090 F;Turkey;TR;Turkey;20;;126500;126500;63915
22/1/2018;2018;Steel;7210708091 F;Turkey;TR;Turkey;20;;632500;632500;513550
22/1/2018;2018;Steel;7208512010 F;Former Yugoslav Republic of Macedonia;MK;Former Yugoslav Republic of Macedonia;24;;6003;6003;3764
22/1/2018;2018;Steel;7208370090 F;Turkey;TR;Turkey;24;;4747;4747;2660
22/1/2018;2018;Steel;7208529900 F;Turkey;TR;Turkey;24;;13761;13761;7756
22/1/2018;2018;Steel;7208529900 F;Former Yugoslav Republic of Macedonia;MK;Former Yugoslav Republic of Macedonia;24;;21227;21227;11800
22/1/2018;2018;Steel;7306619200 F;Former Yugoslav Republic of Macedonia;MK;Former Yugoslav Republic of Macedonia;24;;6204;6204;3760
22/1/2018;2018;Steel;7208512010 F;Former Yugoslav Republic of Macedonia;MK;Former Yugoslav Republic of Macedonia;24;;820240;820240;514300
22/1/2018;2018;Steel;7208519110 F;Former Yugoslav Republic of Macedonia;MK;Former Yugoslav Republic of Macedonia;24;;17779;17779;10140
22/1/2018;2018;Steel;7208512010 F;Former Yugoslav Republic of Macedonia;MK;Former Yugoslav Republic of Macedonia;24;;174442;174442;106410
22/1/2018;2018;Steel;7208519810 F;Former Yugoslav Republic of Macedonia;MK;Former Yugoslav Republic of Macedonia;24;;36087;36087;22140
22/1/2018;2018;Steel;7210708091 F;Former Yugoslav Republic of Macedonia;MK;Former Yugoslav Republic of Macedonia;20;;72000;72000;66240
22/1/2018;2018;Steel;7304399320 F;China;CN;China;59;;24610;24610;10860
22/1/2018;2018;Steel;7208370090 F;Turkey;TR;Turkey;20;;1001000;1001000;525641
22/1/2018;2018;Steel;7208390090 F;Turkey;TR;Turkey;20;;1265000;1265000;664271
22/1/2018;2018;Steel;7208380090 F;Turkey;TR;Turkey;20;;990000;990000;519864
22/1/2018;2018;Steel;7208360000 F;Turkey;TR;Turkey;20;;44000;44000;23105
23/1/2018;2018;Steel;7304399320 F;China;CN;China;59;;7787;7787;3601
23/1/2018;2018;Steel;7318129090 F;Vietnam;VN;Vietnam;2c29821f-7b8c-4fe3-842d;;15644;15644;27122
23/1/2018;2018;Steel;7306307280 F;Turkey;TR;Turkey;41;;79200;79200;59509
23/1/2018;2018;Steel;7214997190 F;Turkey;TR;Turkey;38;;3289;3289;2398
23/1/2018;2018;Steel;7214993100 F;Turkey;TR;Turkey;38;;8327;8327;6052
23/1/2018;2018;Steel;7306619900 F;Former Yugoslav Republic of Macedonia;MK;Former Yugoslav Republic of Macedonia;44;;99000;99000;58410
23/1/2018;2018;Steel;7306619200 F;Former Yugoslav Republic of Macedonia;MK;Former Yugoslav Republic of Macedonia;44;;44000;44000;28930
23/1/2018;2018;Steel;7306308000 F;Former Yugoslav Republic of Macedonia;MK;Former Yugoslav Republic of Macedonia;44;;11000;11000;6820
23/1/2018;2018;Steel;7213914100 F;Turkey;TR;Turkey;41;;990000;990000;528603
23/1/2018;2018;Steel;7213914900 F;Turkey;TR;Turkey;41;;275000;275000;146833
23/1/2018;2018;Steel;7318159590 F;China;CN;China;4562;;43216;43216;50431
23/1/2018;2018;Steel;7318159590 F;China;CN;China;4562;;21677;21677;23150
23/1/2018;2018;Steel;7306308000 F;Turkey;TR;Turkey;14;;89100;89100;54818
23/1/2018;2018;Steel;7306307290 F;Turkey;TR;Turkey;14;;253000;253000;146449
23/1/2018;2018;Steel;7210490020 F;Egypt;EG;Egypt;14;;275000;275000;186795
23/1/2018;2018;Steel;7215501900 F;Turkey;TR;Turkey;14;;52000;52000;32335
23/1/2018;2018;Steel;7214997190 F;Turkey;TR;Turkey;14;;20025;20025;10869
23/1/2018;2018;Steel;7208400010 F;Turkey;TR;Turkey;14;;38500;38500;21945
23/1/2018;2018;Steel;7208400090 F;Turkey;TR;Turkey;14;;16500;16500;9405
24/1/2018;2018;Steel;7212402010 F;Vietnam;VN;Vietnam;3250;;25267;25267;19629
24/1/2018;2018;Steel;7307191090 F;China;CN;China;4583;;23151;23151;38160
24/1/2018;2018;Steel;7217203000 F;Ukraine;UA;Ukraine;41;;416000;416000;291445
24/1/2018;2018;Steel;7210490080 F;Turkey;TR;Turkey;41;;165000;165000;108421
24/1/2018;2018;Steel;7210122010 F;China;CN;China;4594;;173567;173567;146365
24/1/2018;2018;Steel;7210708099 F;Turkey;TR;Turkey;4558;;143000;143000;120549
24/1/2018;2018;Steel;7210690080 F;India;IN;India;3438;;134035;134035;109762
24/1/2018;2018;Steel;7307931199 F;China;CN;China;3333;;6691;6691;7200
24/1/2018;2018;Steel;7318158890 F;China;CN;China;4577;;13730;13730;18960
24/1/2018;2018;Steel;7219341000 F;South Africa;ZA;South Africa;2007;;20777;20777;36838
24/1/2018;2018;Steel;7219351000 F;South Africa;ZA;South Africa;2007;;14260;14260;35079
24/1/2018;2018;Steel;7219321000 F;South Africa;ZA;South Africa;2007;;4110;4110;5014
24/1/2018;2018;Steel;7219331000 F;South Africa;ZA;South Africa;2007;;4070;4070;5413
24/1/2018;2018;Steel;7219341000 F;Taiwan;TW;Taiwan;2007;;19106;19106;34100
24/1/2018;2018;Steel;7219341000 F;Taiwan;TW;Taiwan;2007;;20000;20000;27200
24/1/2018;2018;Steel;7209179000 F;Ukraine;UA;Ukraine;19;;185190;185190;98151
24/1/2018;2018;Steel;7208380090 F;Serbia;RS;Serbia;28;;30970;30970;15000
24/1/2018;2018;Steel;7208370090 F;Serbia;RS;Serbia;28;;14240;14240;7000
24/1/2018;2018;Steel;7208390090 F;Serbia;RS;Serbia;28;;13830;13830;6790
24/1/2018;2018;Steel;7208100000 F;Serbia;RS;Serbia;28;;3090;3090;1570
24/1/2018;2018;Steel;7208270000 F;Serbia;RS;Serbia;28;;4100;4100;2180
24/1/2018;2018;Steel;7208270000 F;Serbia;RS;Serbia;28;;4760;4760;2460
25/1/2018;2018;Steel;7217103900 F;Former Yugoslav Republic of Macedonia;MK;Former Yugoslav Republic of Macedonia;4595;;7000;7000;4760
25/1/2018;2018;Steel;7217103900 F;Former Yugoslav Republic of Macedonia;MK;Former Yugoslav Republic of Macedonia;4595;;24000;24000;16800
25/1/2018;2018;Steel;7306900000 F;Vietnam;VN;Vietnam;23;;3564;3564;6600
25/1/2018;2018;Steel;7217209090 F;Turkey;TR;Turkey;4573;;256675;256675;213246
25/1/2018;2018;Steel;7213914100 F;Ukraine;UA;Ukraine;41;;116000;116000;62395
25/1/2018;2018;Steel;7213914100 F;Ukraine;UA;Ukraine;41;;1044000;1044000;530709
25/1/2018;2018;Steel;7213914900 F;Ukraine;UA;Ukraine;41;;116000;116000;58967
25/1/2018;2018;Steel;7306199000 F;Turkey;TR;Turkey;59;;30710;30710;26040
25/1/2018;2018;Steel;7210122010 F;China;CN;China;16;;100946;100946;83585
25/1/2018;2018;Steel;7210500010 F;China;CN;China;16;;303496;303496;228931
25/1/2018;2018;Steel;7210500010 F;China;CN;China;16;;142128;142128;106877
25/1/2018;2018;Steel;7210708011 F;Turkey;TR;Turkey;19;;10500;10500;11550
25/1/2018;2018;Steel;7208519810 F;Former Yugoslav Republic of Macedonia;MK;Former Yugoslav Republic of Macedonia;24;;43950;43950;26420
25/1/2018;2018;Steel;7219331000 F;Indonesia;ID;Indonesia;16;;15645;15645;29718
25/1/2018;2018;Steel;7219341000 F;Indonesia;ID;Indonesia;16;;52475;52475;103611
25/1/2018;2018;Steel;7219341000 F;Malaysia;MY;Malaysia;16;;80180;80180;173235
25/1/2018;2018;Steel;7219331000 F;Malaysia;MY;Malaysia;16;;16240;16240;33941
25/1/2018;2018;Steel;7210122010 F;China;CN;China;16;;237605;237605;142542
25/1/2018;2018;Steel;7229200000 F;Former Yugoslav Republic of Macedonia;MK;Former Yugoslav Republic of Macedonia;4273;;250000;250000;245000
25/1/2018;2018;Steel;7208519810 F;Former Yugoslav Republic of Macedonia;MK;Former Yugoslav Republic of Macedonia;24;;118938;118938;66760
26/1/2018;2018;Steel;7217109090 F;Turkey;TR;Turkey;ed700ab2-525c-4c97-ae6a;;8629;8629;10531
26/1/2018;2018;Steel;7209179000 F;Serbia;RS;Serbia;28;;300300;300300;181720
26/1/2018;2018;Steel;7209169000 F;Serbia;RS;Serbia;28;;900900;900900;545160
26/1/2018;2018;Steel;7209150090 F;Serbia;RS;Serbia;28;;61950;61950;37490
26/1/2018;2018;Steel;7208512090 F;Former Yugoslav Republic of Macedonia;MK;Former Yugoslav Republic of Macedonia;28;;10676;10676;6890
26/1/2018;2018;Steel;7208529190 F;Former Yugoslav Republic of Macedonia;MK;Former Yugoslav Republic of Macedonia;28;;11932;11932;7770
26/1/2018;2018;Steel;7208529900 F;Former Yugoslav Republic of Macedonia;MK;Former Yugoslav Republic of Macedonia;28;;69710;69710;44610
26/1/2018;2018;Steel;7210708091 F;India;IN;India;28;;187000;187000;156300
26/1/2018;2018;Steel;7210490080 F;Turkey;TR;Turkey;28;;236500;236500;146160
26/1/2018;2018;Steel;7210490080 F;Turkey;TR;Turkey;28;;220000;220000;138580
26/1/2018;2018;Steel;7210708091 F;India;IN;India;28;;275000;275000;232510
26/1/2018;2018;Steel;7210708099 F;Turkey;TR;Turkey;3961;;40010;40010;46170
26/1/2018;2018;Steel;7208519890 F;Former Yugoslav Republic of Macedonia;MK;Former Yugoslav Republic of Macedonia;2077;;14640;14640;8418
26/1/2018;2018;Steel;7318190090 F;China;CN;China;4553;;9400;9400;11121
26/1/2018;2018;Steel;7318210095 F;China;CN;China;4553;;6897;6897;8121
26/1/2018;2018;Steel;7318156890 F;China;CN;China;4553;;23081;23081;25858
26/1/2018;2018;Steel;7318154290 F;China;CN;China;4553;;30268;30268;28050
26/1/2018;2018;Steel;7318159590 F;China;CN;China;4612;;29015;29015;48621
26/1/2018;2018;Steel;7208529900 F;Former Yugoslav Republic of Macedonia;MK;Former Yugoslav Republic of Macedonia;7f92d9d7-b03a-42e6-80dc;;23148;23148;17592
26/1/2018;2018;Steel;7210122010 F;China;CN;China;4594;;192500;192500;157066
26/1/2018;2018;Steel;7210122010 F;Serbia;RS;Serbia;4594;;22000;22000;19690
26/1/2018;2018;Steel;7216210000 F;Turkey;TR;Turkey;34;;56100;56100;27733
26/1/2018;2018;Steel;7216401000 F;Turkey;TR;Turkey;34;;26400;26400;13016
26/1/2018;2018;Steel;7216210000 F;Turkey;TR;Turkey;34;;23100;23100;11382
26/1/2018;2018;Steel;7216401000 F;Turkey;TR;Turkey;34;;3300;3300;1620
26/1/2018;2018;Steel;7216100000 F;Turkey;TR;Turkey;34;;3300;3300;1628
26/1/2018;2018;Steel;7210708091 F;India;IN;India;53;;442830;442830;378823
26/1/2018;2018;Steel;7306308000 F;Former Yugoslav Republic of Macedonia;MK;Former Yugoslav Republic of Macedonia;e9c48d7d-0845-4f56-91a3;;12170;12170;7545
26/1/2018;2018;Steel;7306307780 F;Former Yugoslav Republic of Macedonia;MK;Former Yugoslav Republic of Macedonia;e9c48d7d-0845-4f56-91a3;;13070;13070;7842
26/1/2018;2018;Steel;7216329100 F;South Korea;KR;United Arab Emirates;4317;;7990;7990;4884
26/1/2018;2018;Steel;7216329100 F;Bahrain;BH;United Arab Emirates;4317;;220450;220450;134971
26/1/2018;2018;Steel;7216329100 F;United Arab Emirates;AE;United Arab Emirates;4317;;219530;219530;344403
26/1/2018;2018;Steel;7216329100 F;Russian Federation;RU;United Arab Emirates;4317;;41800;41800;25588
26/1/2018;2018;Steel;7216401000 F;Saudi Arabia;SA;United Arab Emirates;4317;;13380;13380;8189
26/1/2018;2018;Steel;7208390090 F;Turkey;TR;Turkey;54;;26020;26020;14076
26/1/2018;2018;Steel;7208380090 F;Turkey;TR;Turkey;54;;72880;72880;39430
29/1/2018;2018;Steel;7318149989 F;Taiwan;TW;Taiwan;4683;;20533;20533;49636
29/1/2018;2018;Steel;7219908000 F;Turkey;TR;Turkey;4530;;11359;11359;27635
29/1/2018;2018;Steel;7217203000 F;Former Yugoslav Republic of Macedonia;MK;Former Yugoslav Republic of Macedonia;c55b1d00-ca69-4792-95df;;5500;5500;4412
29/1/2018;2018;Steel;7217909000 F;Turkey;TR;Turkey;4711;;73500;73500;51261
29/1/2018;2018;Steel;7307191090 F;China;CN;China;4705;;5400;5400;7864
30/1/2018;2018;Steel;7318159590 F;China;CN;China;4537;;9095;9095;9774
30/1/2018;2018;Steel;7318220095 F;China;CN;China;4537;;6780;6780;10391
30/1/2018;2018;Steel;7318169990 F;China;CN;China;4537;;6533;6533;7397
30/1/2018;2018;Steel;7318169990 F;China;CN;China;4601;;11000;11000;12090
30/1/2018;2018;Steel;7318169290 F;China;CN;China;4601;;10570;10570;14512
30/1/2018;2018;Steel;7212300080 F;Turkey;TR;Turkey;4679;;26400;26400;23179
30/1/2018;2018;Steel;7210490080 F;Turkey;TR;Turkey;4679;;26400;26400;20196
30/1/2018;2018;Steel;7306619900 F;Turkey;TR;Turkey;41;;112200;112200;63466
30/1/2018;2018;Steel;7306619200 F;Turkey;TR;Turkey;41;;93500;93500;52887
30/1/2018;2018;Steel;7306307280 F;Turkey;TR;Turkey;41;;25300;25300;19010
30/1/2018;2018;Steel;7318169290 F;China;CN;China;4537;;9768;9768;10710
30/1/2018;2018;Steel;7318154290 F;China;CN;China;4537;;6978;6978;12200
30/1/2018;2018;Steel;7216339000 F;Turkey;TR;Turkey;2154;;151800;151800;86972
30/1/2018;2018;Steel;7216331000 F;Turkey;TR;Turkey;2154;;125400;125400;70224
30/1/2018;2018;Steel;7216321900 F;Turkey;TR;Turkey;2154;;74800;74800;41514
30/1/2018;2018;Steel;7216329900 F;Turkey;TR;Turkey;2154;;168300;168300;94594
30/1/2018;2018;Steel;7210490020 F;Turkey;TR;Turkey;2718;;526530;526530;364700
30/1/2018;2018;Steel;7306508000 F;China;CN;China;4053;;4200;4200;4412
30/1/2018;2018;Steel;7306699000 F;China;CN;China;4053;;24506;24506;29331
30/1/2018;2018;Steel;7318129090 F;Vietnam;VN;Vietnam;4053;;41882;41882;59620
30/1/2018;2018;Steel;7219211000 F;India;IN;India;16;;30215;30215;64210
30/1/2018;2018;Steel;7219321000 F;India;IN;India;16;;10340;10340;19641
30/1/2018;2018;Steel;7217909000 F;Turkey;TR;Turkey;4711;;100000;100000;66700
30/1/2018;2018;Steel;7318190090 F;Taiwan;TW;Taiwan;4553;;5553;5553;17616
30/1/2018;2018;Steel;7318149190 F;Taiwan;TW;Taiwan;4553;;5270;5270;12223
30/1/2018;2018;Steel;7318164090 F;China;CN;China;4553;;17170;17170;19892
30/1/2018;2018;Steel;7307231085 F;South Korea;KR;South Korea;5225699a-86f3-4846-aadc;;10616;10616;134892
30/1/2018;2018;Steel;7306307780 F;Former Yugoslav Republic of Macedonia;MK;Former Yugoslav Republic of Macedonia;e9c48d7d-0845-4f56-91a3;;24000;24000;14520
31/1/2018;2018;Steel;7210708091 F;Former Yugoslav Republic of Macedonia;MK;Former Yugoslav Republic of Macedonia;4528;;5930;5930;2401
31/1/2018;2018;Steel;7210708091 F;Former Yugoslav Republic of Macedonia;MK;Former Yugoslav Republic of Macedonia;4528;;7790;7790;4810
31/1/2018;2018;Steel;7210708091 F;Former Yugoslav Republic of Macedonia;MK;Former Yugoslav Republic of Macedonia;4528;;55000;55000;50600
31/1/2018;2018;Steel;7209169000 F;Former Yugoslav Republic of Macedonia;MK;Former Yugoslav Republic of Macedonia;56;;60000;60000;39000
31/1/2018;2018;Steel;7318169990 F;China;CN;China;4547;;19284;19284;18777
31/1/2018;2018;Steel;7215100000 F;Turkey;TR;Turkey;9c34b988-4bb3-4b9f-a2f5;;22000;22000;18830
31/1/2018;2018;Steel;7222203100 F;India;IN;India;3239;;6983;6983;16220
31/1/2018;2018;Steel;7222401000 F;India;IN;India;3239;;4733;4733;10509
31/1/2018;2018;Steel;7222201100 F;India;IN;India;3239;;2803;2803;7480
31/1/2018;2018;Steel;7222202100 F;India;IN;India;3239;;8774;8774;21843
31/1/2018;2018;Steel;7210490080 F;Former Yugoslav Republic of Macedonia;MK;Former Yugoslav Republic of Macedonia;56;;120000;120000;90000
31/1/2018;2018;Steel;7219341000 F;Turkey;TR;Turkey;4596;;19500;19500;46850
31/1/2018;2018;Steel;7208390090 F;Turkey;TR;Turkey;19;;383940;383940;226525
31/1/2018;2018;Steel;7208380090 F;Turkey;TR;Turkey;19;;407540;407540;240449
31/1/2018;2018;Steel;7208370090 F;Turkey;TR;Turkey;19;;284420;284420;167808
31/1/2018;2018;Steel;7208529900 F;Turkey;TR;Turkey;19;;222915;222915;137868
31/1/2018;2018;Steel;7208519890 F;Turkey;TR;Turkey;19;;119245;119245;73534
31/1/2018;2018;Steel;7208512090 F;Turkey;TR;Turkey;19;;49620;49620;30516
31/1/2018;2018;Steel;7209179000 F;Ukraine;UA;Ukraine;34;;31500;31500;17955
31/1/2018;2018;Steel;7213999000 F;Turkey;TR;Turkey;009a94b6-5a4e-43e7-a137;;1106460;1106460;593961
1/2/2018;2018;Steel;7306619200 F;Switzerland;CH;Switzerland;a7cd53d0-1788-4354-b761;;6500;6500;9500
1/2/2018;2018;Steel;7307191090 F;China;CN;China;4365;;17160;17160;21105
1/2/2018;2018;Steel;7216210000 F;Turkey;TR;Turkey;41;;247500;247500;127060
1/2/2018;2018;Steel;7219341000 F;Taiwan;TW;Taiwan;2007;;19021;19021;20600
1/2/2018;2018;Steel;7219351000 F;Taiwan;TW;Taiwan;2007;;9485;9485;14050
1/2/2018;2018;Steel;7212300080 F;Turkey;TR;Turkey;4656;;21270;21270;16483
1/2/2018;2018;Steel;7307910090 F;China;CN;China;3333;;10598;10598;11200
1/2/2018;2018;Steel;7217103900 F;Albania;AL;Albania;4655;;100000;100000;63500
1/2/2018;2018;Steel;7217103900 F;Albania;AL;Albania;4655;;25000;25000;16375
1/2/2018;2018;Steel;7219211000 F;Taiwan;TW;Taiwan;2007;;10048;10048;22800
1/2/2018;2018;Steel;7219221000 F;Taiwan;TW;Taiwan;2007;;6041;6041;13100
1/2/2018;2018;Steel;7219341000 F;Taiwan;TW;Taiwan;2007;;3128;3128;7800
1/2/2018;2018;Steel;7318158890 F;China;CN;China;839ce33e-388b-4f75-bd23;;16509;16509;18395
1/2/2018;2018;Steel;7223001900 F;China;CN;China;4420;;4955;4955;17144
1/2/2018;2018;Steel;7210122090 F;China;CN;China;36;;309598;309598;188992
2/2/2018;2018;Steel;7219321000 F;Turkey;TR;Turkey;2007;;5986;5986;12300
2/2/2018;2018;Steel;7219331000 F;Turkey;TR;Turkey;2007;;15000;15000;30800
2/2/2018;2018;Steel;7219310000 F;Turkey;TR;Turkey;2007;;3733;3733;7700
2/2/2018;2018;Steel;7209169000 F;Egypt;EG;Egypt;34;;110000;110000;60574
2/2/2018;2018;Steel;7209179000 F;Former Yugoslav Republic of Macedonia;MK;Former Yugoslav Republic of Macedonia;28;;30000;30000;17310
2/2/2018;2018;Steel;7209169000 F;Former Yugoslav Republic of Macedonia;MK;Former Yugoslav Republic of Macedonia;28;;174000;174000;100400
2/2/2018;2018;Steel;7210708091 F;India;IN;India;20;;110000;110000;99000
2/2/2018;2018;Steel;7217201000 F;China;CN;China;4559;;20000;20000;15657
2/2/2018;2018;Steel;7306619900 F;China;CN;China;14;;55200;55200;36497
2/2/2018;2018;Steel;7217203000 F;China;CN;China;4559;;5000;5000;3765
2/2/2018;2018;Steel;7208400010 F;Turkey;TR;Turkey;14;;88000;88000;48623
2/2/2018;2018;Steel;7318159590 F;China;CN;China;a78e3b4d-4f9e-4c49-80a6;;5066;5066;7427
2/2/2018;2018;Steel;7210490080 F;Former Yugoslav Republic of Macedonia;MK;Former Yugoslav Republic of Macedonia;26;;700000;700000;511000
2/2/2018;2018;Steel;7208529110 F;Ukraine;UA;Ukraine;20;;1222706;1222706;702634
2/2/2018;2018;Steel;7208519810 F;Ukraine;UA;Ukraine;20;;203534;203534;106520
2/2/2018;2018;Steel;7208519110 F;Ukraine;UA;Ukraine;20;;106455;106455;56838
2/2/2018;2018;Steel;7208512010 F;Ukraine;UA;Ukraine;20;;618620;618620;324023
2/2/2018;2018;Steel;7318190090 F;China;CN;China;4562;;21382;21382;29308
2/2/2018;2018;Steel;7216311000 F;Turkey;TR;Turkey;34;;9900;9900;4885
2/2/2018;2018;Steel;7216321100 F;Turkey;TR;Turkey;34;;19800;19800;9859
2/2/2018;2018;Steel;7216311000 F;Turkey;TR;Turkey;34;;29700;29700;14655
2/2/2018;2018;Steel;7216321100 F;Turkey;TR;Turkey;34;;51700;51700;25652
2/2/2018;2018;Steel;7208519890 F;Ukraine;UA;Ukraine;34;;83683;83683;44976
2/2/2018;2018;Steel;7208519190 F;Ukraine;UA;Ukraine;34;;63800;63800;35041
2/2/2018;2018;Steel;7208529190 F;Ukraine;UA;Ukraine;34;;283091;283091;163857
2/2/2018;2018;Steel;7208512090 F;Ukraine;UA;Ukraine;34;;478857;478857;258632
5/2/2018;2018;Steel;7219351000 F;Taiwan;TW;Taiwan;2007;;13346;13346;18700
5/2/2018;2018;Steel;7210490080 F;Turkey;TR;Turkey;4558;;24200;24200;15598
5/2/2018;2018;Steel;7209179000 F;Egypt;EG;Egypt;34;;33000;33000;18934
5/2/2018;2018;Steel;7216311000 F;Turkey;TR;Turkey;34;;28380;28380;15609
5/2/2018;2018;Steel;7216319000 F;Turkey;TR;Turkey;34;;7040;7040;3872
5/2/2018;2018;Steel;7216321100 F;Turkey;TR;Turkey;34;;60610;60610;33335
5/2/2018;2018;Steel;7216329100 F;Turkey;TR;Turkey;34;;38500;38500;21175
5/2/2018;2018;Steel;7216331000 F;Turkey;TR;Turkey;34;;123970;123970;68183
5/2/2018;2018;Steel;7216339000 F;Turkey;TR;Turkey;34;;40920;40920;22915
5/2/2018;2018;Steel;7216401000 F;Turkey;TR;Turkey;34;;22440;22440;12342
5/2/2018;2018;Steel;7216311000 F;Turkey;TR;Turkey;34;;3520;3520;1936
5/2/2018;2018;Steel;7216319000 F;Turkey;TR;Turkey;34;;3630;3630;1996
5/2/2018;2018;Steel;7216321100 F;Turkey;TR;Turkey;34;;11880;11880;6534
5/2/2018;2018;Steel;7216329100 F;Turkey;TR;Turkey;34;;13200;13200;7260
5/2/2018;2018;Steel;7216331000 F;Turkey;TR;Turkey;34;;6270;6270;3448
5/2/2018;2018;Steel;7216339000 F;Turkey;TR;Turkey;34;;15840;15840;8870
5/2/2018;2018;Steel;7306307280 F;Turkey;TR;Turkey;34;;27500;27500;20286
5/2/2018;2018;Steel;7216401000 F;Turkey;TR;Turkey;34;;11000;11000;5852
5/2/2018;2018;Steel;7216501000 F;Turkey;TR;Turkey;34;;20900;20900;11035
5/2/2018;2018;Steel;7214911090 F;Turkey;TR;Turkey;34;;5500;5500;2904
5/2/2018;2018;Steel;7216100000 F;Turkey;TR;Turkey;34;;12100;12100;6507
5/2/2018;2018;Steel;7216100000 F;Turkey;TR;Turkey;34;;5500;5500;2965
5/2/2018;2018;Steel;7216501000 F;Turkey;TR;Turkey;34;;7700;7700;3850
5/2/2018;2018;Steel;7214993900 F;Turkey;TR;Turkey;34;;17600;17600;8800
5/2/2018;2018;Steel;7214911090 F;Turkey;TR;Turkey;34;;57200;57200;28600
5/2/2018;2018;Steel;7216501000 F;Turkey;TR;Turkey;34;;14300;14300;7150
5/2/2018;2018;Steel;7214911090 F;Turkey;TR;Turkey;34;;13200;13200;6600
5/2/2018;2018;Steel;7209169000 F;Egypt;EG;Egypt;34;;27500;27500;15408
6/2/2018;2018;Steel;7209179000 F;Former Yugoslav Republic of Macedonia;MK;Former Yugoslav Republic of Macedonia;31;;220000;220000;138600
6/2/2018;2018;Steel;7209169000 F;Former Yugoslav Republic of Macedonia;MK;Former Yugoslav Republic of Macedonia;31;;176000;176000;110880
6/2/2018;2018;Steel;7210490080 F;Turkey;TR;Turkey;3661;;100000;100000;68000
6/2/2018;2018;Steel;7210490080 F;Turkey;TR;Turkey;3661;;400000;400000;278400
6/2/2018;2018;Steel;7216319000 F;Turkey;TR;Turkey;14;;71500;71500;36965
6/2/2018;2018;Steel;7216401000 F;Turkey;TR;Turkey;14;;30250;30250;16618
6/2/2018;2018;Steel;7216321900 F;Turkey;TR;Turkey;14;;99000;99000;50875
6/2/2018;2018;Steel;7214993900 F;Turkey;TR;Turkey;14;;11000;11000;5731
6/2/2018;2018;Steel;7216210000 F;Turkey;TR;Turkey;14;;104500;104500;53828
6/2/2018;2018;Steel;7214911090 F;Turkey;TR;Turkey;14;;38500;38500;20058
6/2/2018;2018;Steel;7210708099 F;India;IN;India;27;;110000;110000;96500
6/2/2018;2018;Steel;7306308000 F;Former Yugoslav Republic of Macedonia;MK;Former Yugoslav Republic of Macedonia;47;;24785;24785;14491
6/2/2018;2018;Steel;7208370090 F;Turkey;TR;Turkey;4574;;2624000;2624000;1342590
6/2/2018;2018;Steel;7208360000 F;Turkey;TR;Turkey;4574;;1966000;1966000;1005920
6/2/2018;2018;Steel;7210490080 F;Taiwan;TW;Taiwan;27;;220000;220000;152000
6/2/2018;2018;Steel;7222203100 F;India;IN;India;16;;17620;17620;34561
6/2/2018;2018;Steel;7222208100 F;India;IN;India;16;;6712;6712;15862
6/2/2018;2018;Steel;7306699000 F;China;CN;China;4602;;12632;12632;13259
6/2/2018;2018;Steel;7318129090 F;Vietnam;VN;Vietnam;4053;;39910;39910;61543
6/2/2018;2018;Steel;7306508000 F;Turkey;TR;Turkey;4617;;2723;2723;6152
6/2/2018;2018;Steel;7318169290 F;China;CN;China;4579;;22037;22037;28569
6/2/2018;2018;Steel;7318169290 F;China;CN;China;4579;;6045;6045;9516
6/2/2018;2018;Steel;7210490080 F;Former Yugoslav Republic of Macedonia;MK;Former Yugoslav Republic of Macedonia;2718;;50000;50000;34250
6/2/2018;2018;Steel;7210122010 F;China;CN;China;16;;104590;104590;77477
6/2/2018;2018;Steel;7217203000 F;Ukraine;UA;Ukraine;41;;312000;312000;219189
6/2/2018;2018;Steel;7306307280 F;Turkey;TR;Turkey;3136;;60753;60753;42082
6/2/2018;2018;Steel;7306619900 F;Turkey;TR;Turkey;3136;;15917;15917;8377
6/2/2018;2018;Steel;7216210000 F;Turkey;TR;Turkey;34;;4000;4000;2100
6/2/2018;2018;Steel;7214911090 F;Turkey;TR;Turkey;34;;18580;18580;10047
6/2/2018;2018;Steel;7208512090 F;Former Yugoslav Republic of Macedonia;MK;Former Yugoslav Republic of Macedonia;4590;;6217;6217;4547
7/2/2018;2018;Steel;7210490080 F;Egypt;EG;Egypt;2477;;220000;220000;132772
7/2/2018;2018;Steel;7210490080 F;Egypt;EG;Egypt;2477;;220000;220000;122337
7/2/2018;2018;Steel;7228306190 F;China;CN;China;38;;23515;23515;26810
7/2/2018;2018;Steel;7214997190 F;China;CN;China;38;;16028;16028;12876
7/2/2018;2018;Steel;7228306990 F;China;CN;China;38;;10036;10036;9303
7/2/2018;2018;Steel;7214919090 F;Turkey;TR;Turkey;38;;9675;9675;6367
7/2/2018;2018;Steel;7214997990 F;Turkey;TR;Turkey;38;;5750;5750;3545
7/2/2018;2018;Steel;7214997190 F;China;CN;Turkey;38;;3105;3105;2670
7/2/2018;2018;Steel;7306307780 F;Turkey;TR;Turkey;38;;52690;52690;31778
7/2/2018;2018;Steel;7306619900 F;Former Yugoslav Republic of Macedonia;MK;Former Yugoslav Republic of Macedonia;2477;;80000;80000;47200
7/2/2018;2018;Steel;7306619200 F;Former Yugoslav Republic of Macedonia;MK;Former Yugoslav Republic of Macedonia;2477;;20000;20000;11800
7/2/2018;2018;Steel;7306307780 F;Former Yugoslav Republic of Macedonia;MK;Former Yugoslav Republic of Macedonia;2477;;20000;20000;11800
7/2/2018;2018;Steel;7318156890 F;China;CN;China;4553;;14769;14769;15881
7/2/2018;2018;Steel;7214911090 F;Turkey;TR;Turkey;14;;4200;4200;2331
7/2/2018;2018;Steel;7214993900 F;Turkey;TR;Turkey;14;;15750;15750;8583
7/2/2018;2018;Steel;7216311000 F;Turkey;TR;Turkey;14;;10500;10500;5722
7/2/2018;2018;Steel;7216321900 F;Turkey;TR;Turkey;14;;64050;64050;34907
7/2/2018;2018;Steel;7216210000 F;Turkey;TR;Turkey;14;;33600;33600;18312
7/2/2018;2018;Steel;7216501000 F;Turkey;TR;Turkey;14;;6300;6300;3559
7/2/2018;2018;Steel;7214993900 F;Turkey;TR;Turkey;14;;29400;29400;17787
7/2/2018;2018;Steel;7216210000 F;Turkey;TR;Turkey;14;;37800;37800;20979
7/2/2018;2018;Steel;7214911090 F;Turkey;TR;Turkey;14;;126000;126000;71190
7/2/2018;2018;Steel;7208519810 F;Ukraine;UA;Ukraine;24;;159330;159330;85360
7/2/2018;2018;Steel;7208519110 F;Ukraine;UA;Ukraine;24;;25720;25720;13880
7/2/2018;2018;Steel;7209179000 F;Ukraine;UA;Ukraine;24;;31500;31500;17480
7/2/2018;2018;Steel;7209169000 F;Ukraine;UA;Ukraine;24;;283500;283500;158920
7/2/2018;2018;Steel;7208370090 F;Turkey;TR;Turkey;14;;121000;121000;67102
7/2/2018;2018;Steel;7208380090 F;Turkey;TR;Turkey;14;;71500;71500;39651
7/2/2018;2018;Steel;7208390090 F;Turkey;TR;Turkey;14;;121000;121000;67102
7/2/2018;2018;Steel;7306307780 F;Former Yugoslav Republic of Macedonia;MK;Former Yugoslav Republic of Macedonia;24;;13640;13640;8230
7/2/2018;2018;Steel;7306619900 F;Former Yugoslav Republic of Macedonia;MK;Former Yugoslav Republic of Macedonia;24;;8140;8140;4960
7/2/2018;2018;Steel;7306408000 F;Taiwan;TW;Taiwan;59;;15294;15294;35448
7/2/2018;2018;Steel;7210708099 F;Former Yugoslav Republic of Macedonia;MK;Former Yugoslav Republic of Macedonia;3910;;24250;24250;21340
7/2/2018;2018;Steel;7210708099 F;India;IN;India;27;;268000;268000;210700
8/2/2018;2018;Steel;7208512010 F;Ukraine;UA;Ukraine;24;;352120;352120;186450
8/2/2018;2018;Steel;7208529110 F;Ukraine;UA;Ukraine;24;;222860;222860;124028
9/2/2018;2018;Steel;7219351000 F;Indonesia;ID;Indonesia;16;;9900;9900;12984
9/2/2018;2018;Steel;7210122090 F;Turkey;TR;Turkey;3664;;49071;49071;38112
9/2/2018;2018;Steel;7219341000 F;Indonesia;ID;Indonesia;16;;27940;27940;47077
9/2/2018;2018;Steel;7306307280 F;Turkey;TR;Turkey;24;;321200;321200;216600
9/2/2018;2018;Steel;7306619900 F;Former Yugoslav Republic of Macedonia;MK;Former Yugoslav Republic of Macedonia;24;;13640;13640;8130
9/2/2018;2018;Steel;7210122090 F;Turkey;TR;Turkey;3664;;46058;46058;35683
9/2/2018;2018;Steel;7306304120 F;Pakistan;PK;Pakistan;2060;;72764;72764;54449
9/2/2018;2018;Steel;7214919090 F;Turkey;TR;Turkey;4645;;21760;21760;14560
9/2/2018;2018;Steel;7217103900 F;Ukraine;UA;Ukraine;41;;52000;52000;28869
9/2/2018;2018;Steel;7217203000 F;Turkey;TR;Turkey;41;;286000;286000;190791
9/2/2018;2018;Steel;7306307790 F;Turkey;TR;Turkey;1d7e1bfa-42ce-46da-ac2f;;206800;206800;141658
9/2/2018;2018;Steel;7318129090 F;Vietnam;VN;Vietnam;4540;;12970;12970;22400
9/2/2018;2018;Steel;7217909000 F;Albania;AL;Albania;4682;;6000;6000;3960
9/2/2018;2018;Steel;7209169000 F;Egypt;EG;Egypt;34;;258500;258500;148319
12/2/2018;2018;Steel;7210490080 F;Former Yugoslav Republic of Macedonia;MK;Former Yugoslav Republic of Macedonia;4528;;54080;54080;37694
12/2/2018;2018;Steel;7210490080 F;Former Yugoslav Republic of Macedonia;MK;Former Yugoslav Republic of Macedonia;4528;;7220;7220;3538
12/2/2018;2018;Steel;7210490080 F;Former Yugoslav Republic of Macedonia;MK;Former Yugoslav Republic of Macedonia;4528;;9650;9650;3484
12/2/2018;2018;Steel;7210490080 F;Former Yugoslav Republic of Macedonia;MK;Former Yugoslav Republic of Macedonia;4528;;6150;6150;3721
12/2/2018;2018;Steel;7210490080 F;Former Yugoslav Republic of Macedonia;MK;Former Yugoslav Republic of Macedonia;4528;;5220;5220;2046
12/2/2018;2018;Steel;7210490080 F;Former Yugoslav Republic of Macedonia;MK;Former Yugoslav Republic of Macedonia;4528;;5960;5960;2354
12/2/2018;2018;Steel;7210490080 F;Former Yugoslav Republic of Macedonia;MK;Former Yugoslav Republic of Macedonia;4528;;5370;5370;1987
12/2/2018;2018;Steel;7306307780 F;Former Yugoslav Republic of Macedonia;MK;Former Yugoslav Republic of Macedonia;4317;;18790;18790;12042
12/2/2018;2018;Steel;7210908099 F;India;IN;India;4528;;42020;42020;27555
12/2/2018;2018;Steel;7210490080 F;Egypt;EG;Egypt;34;;29066;29066;23771
12/2/2018;2018;Steel;7210490080 F;Egypt;EG;Egypt;34;;75210;75210;57709
12/2/2018;2018;Steel;7210122010 F;China;CN;China;16;;755064;755064;532055
12/2/2018;2018;Steel;7213991000 F;Turkey;TR;Turkey;4541;;24000;24000;14760
12/2/2018;2018;Steel;7213914900 F;Turkey;TR;Turkey;4541;;24000;24000;14760
12/2/2018;2018;Steel;7318158290 F;China;CN;China;4547;;22692;22692;23022
12/2/2018;2018;Steel;7318149989 F;Taiwan;TW;Taiwan;4672;;7424;7424;13370
12/2/2018;2018;Steel;7210490020 F;Turkey;TR;Turkey;24;;536569;536569;298790
12/2/2018;2018;Steel;7210490020 F;Turkey;TR;Turkey;24;;1037058;1037058;580120
12/2/2018;2018;Steel;7210490080 F;Former Yugoslav Republic of Macedonia;MK;Former Yugoslav Republic of Macedonia;56;;30000;30000;23190
12/2/2018;2018;Steel;7210708099 F;Turkey;TR;Turkey;56;;82500;82500;61781
12/2/2018;2018;Steel;7318159590 F;Taiwan;TW;Taiwan;4579;;18540;18540;26400
12/2/2018;2018;Steel;7318159590 F;Taiwan;TW;Taiwan;4579;;20308;20308;28800
12/2/2018;2018;Steel;7306619900 F;Former Yugoslav Republic of Macedonia;MK;Former Yugoslav Republic of Macedonia;3700;;20560;20560;12511
12/2/2018;2018;Steel;7306307780 F;Former Yugoslav Republic of Macedonia;MK;Former Yugoslav Republic of Macedonia;3700;;4690;4690;2837
12/2/2018;2018;Steel;7217103900 F;Albania;AL;Albania;48;;25000;25000;15425
12/2/2018;2018;Steel;7318159590 F;Taiwan;TW;Taiwan;4579;;16016;16016;24500
12/2/2018;2018;Steel;7223001900 F;China;CN;China;4420;;4003;4003;13852
12/2/2018;2018;Steel;7208529900 F;Former Yugoslav Republic of Macedonia;MK;Former Yugoslav Republic of Macedonia;7f92d9d7-b03a-42e6-80dc;;21513;21513;15875
12/2/2018;2018;Steel;7219349000 F;Malaysia;MY;Malaysia;4642;;44128;44128;55731
12/2/2018;2018;Steel;7306619900 F;Former Yugoslav Republic of Macedonia;MK;Former Yugoslav Republic of Macedonia;34;;11275;11275;6708
12/2/2018;2018;Steel;7210490080 F;Egypt;EG;Egypt;34;;110000;110000;77343
12/2/2018;2018;Steel;7208519190 F;Former Yugoslav Republic of Macedonia;MK;Former Yugoslav Republic of Macedonia;4560;;3014;3014;1386
12/2/2018;2018;Steel;7208512090 F;Former Yugoslav Republic of Macedonia;MK;Former Yugoslav Republic of Macedonia;4560;;13837;13837;6610
12/2/2018;2018;Steel;7208529190 F;Former Yugoslav Republic of Macedonia;MK;Former Yugoslav Republic of Macedonia;4560;;5775;5775;2605
12/2/2018;2018;Steel;7208519190 F;Former Yugoslav Republic of Macedonia;MK;Former Yugoslav Republic of Macedonia;4560;;4632;4632;2130
13/2/2018;2018;Steel;7210708091 F;Former Yugoslav Republic of Macedonia;MK;Former Yugoslav Republic of Macedonia;41;;20870;20870;19410
13/2/2018;2018;Steel;7304318030 F;Turkey;TR;Turkey;4273;;48150;48150;52483
13/2/2018;2018;Steel;7210490080 F;Turkey;TR;Turkey;28;;1617000;1617000;1074320
13/2/2018;2018;Steel;7210708011 F;Former Yugoslav Republic of Macedonia;MK;Former Yugoslav Republic of Macedonia;19;;134000;134000;114570
13/2/2018;2018;Steel;7217203000 F;China;CN;China;4532;;125000;125000;115062
13/2/2018;2018;Steel;7217203000 F;China;CN;China;4532;;125000;125000;115336
13/2/2018;2018;Steel;7219908000 F;Turkey;TR;Turkey;4623;;24980;24980;71708
13/2/2018;2018;Steel;7210500010 F;China;CN;China;16;;286066;286066;211536
13/2/2018;2018;Steel;7210122010 F;China;CN;China;16;;24030;24030;19080
13/2/2018;2018;Steel;7219331000 F;South Korea;KR;South Korea;38;;16986;16986;34447
13/2/2018;2018;Steel;7219341000 F;South Korea;KR;South Korea;38;;7121;7121;14614
13/2/2018;2018;Steel;7219321000 F;Vietnam;VN;Vietnam;38;;17812;17812;36339
13/2/2018;2018;Steel;7219331000 F;Vietnam;VN;Vietnam;38;;118500;118500;242481
13/2/2018;2018;Steel;7306301900 F;Former Yugoslav Republic of Macedonia;MK;Former Yugoslav Republic of Macedonia;50;;100000;100000;62000
13/2/2018;2018;Steel;7220908000 F;Japan;JP;Japan;4576;;19925;19925;145900
13/2/2018;2018;Steel;7318158290 F;China;CN;China;4661;;9805;9805;9664
13/2/2018;2018;Steel;7318154290 F;China;CN;China;4661;;5342;5342;4325
13/2/2018;2018;Steel;7318159590 F;China;CN;China;4545;;18259;18259;26370
13/2/2018;2018;Steel;7318159590 F;China;CN;China;4545;;17852;17852;23180
13/2/2018;2018;Steel;7210490080 F;Former Yugoslav Republic of Macedonia;MK;Former Yugoslav Republic of Macedonia;4551;;23930;23930;19392
14/2/2018;2018;Steel;7217203000 F;China;CN;China;41;;14000;14000;11857
14/2/2018;2018;Steel;7217103900 F;China;CN;China;41;;74000;74000;49298
14/2/2018;2018;Steel;7318149190 F;Taiwan;TW;Taiwan;4540;;10383;10383;21900
14/2/2018;2018;Steel;7210708099 F;India;IN;India;4528;;46460;46460;33288
14/2/2018;2018;Steel;7226997096 F;China;CN;China;4665;;25271;25271;21537
14/2/2018;2018;Steel;7306307280 F;Turkey;TR;Turkey;24;;7200;7200;5260
14/2/2018;2018;Steel;7318156890 F;China;CN;China;4610;;5595;5595;8489
14/2/2018;2018;Steel;7208512010 F;Ukraine;UA;Ukraine;20;;430766;430766;232765
14/2/2018;2018;Steel;7208529110 F;Ukraine;UA;Ukraine;20;;554065;554065;321564
14/2/2018;2018;Steel;7208519810 F;Ukraine;UA;Ukraine;20;;148174;148174;79695
14/2/2018;2018;Steel;7216339000 F;Turkey;TR;Turkey;20;;198000;198000;110880
14/2/2018;2018;Steel;7216321100 F;Turkey;TR;Turkey;20;;176000;176000;96800
14/2/2018;2018;Steel;7216329100 F;Turkey;TR;Turkey;20;;231000;231000;127050
14/2/2018;2018;Steel;7216311000 F;Turkey;TR;Turkey;20;;110000;110000;60500
14/2/2018;2018;Steel;7216331000 F;Turkey;TR;Turkey;20;;555500;555500;305525
14/2/2018;2018;Steel;7216319000 F;Turkey;TR;Turkey;20;;33000;33000;18150
14/2/2018;2018;Steel;7216401000 F;Turkey;TR;Turkey;20;;11000;11000;6050
14/2/2018;2018;Steel;7216220000 F;Turkey;TR;Turkey;20;;31900;31900;18602
14/2/2018;2018;Steel;7216100000 F;Turkey;TR;Turkey;20;;23100;23100;12455
14/2/2018;2018;Steel;7216100000 F;Turkey;TR;Turkey;20;;11000;11000;5450
14/2/2018;2018;Steel;7216210000 F;Turkey;TR;Turkey;20;;326700;326700;161874
14/2/2018;2018;Steel;7216401000 F;Turkey;TR;Turkey;20;;44000;44000;21801
14/2/2018;2018;Steel;7209169000 F;Serbia;RS;Serbia;20;;60900;60900;39476
14/2/2018;2018;Steel;7210490020 F;Turkey;TR;Turkey;20;;660000;660000;449537
14/2/2018;2018;Steel;7210490020 F;Turkey;TR;Turkey;20;;2970000;2970000;2012982
14/2/2018;2018;Steel;7216509100 F;Turkey;TR;Turkey;20;;25110;25110;17953
14/2/2018;2018;Steel;7216509100 F;Turkey;TR;Turkey;20;;24970;24970;17853
14/2/2018;2018;Steel;7216401000 F;Turkey;TR;Turkey;20;;26250;26250;16348
14/2/2018;2018;Steel;7216321100 F;Turkey;TR;Turkey;20;;264000;264000;132703
14/2/2018;2018;Steel;7216100000 F;Turkey;TR;Turkey;20;;33000;33000;16587
14/2/2018;2018;Steel;7216311000 F;Turkey;TR;Turkey;20;;203500;203500;102291
14/2/2018;2018;Steel;7216331000 F;Turkey;TR;Turkey;20;;165000;165000;90750
14/2/2018;2018;Steel;7216339000 F;Turkey;TR;Turkey;20;;192500;192500;107800
14/2/2018;2018;Steel;7216321100 F;Turkey;TR;Turkey;20;;159500;159500;87725
14/2/2018;2018;Steel;7216329100 F;Turkey;TR;Turkey;20;;159500;159500;87725
14/2/2018;2018;Steel;7216311000 F;Turkey;TR;Turkey;20;;71500;71500;39325
14/2/2018;2018;Steel;7216319000 F;Turkey;TR;Turkey;20;;11000;11000;6050
16/2/2018;2018;Steel;7214997190 F;Turkey;TR;Turkey;4564;;50600;50600;31133
16/2/2018;2018;Steel;7307931199 F;China;CN;China;4538;;17793;17793;17000
16/2/2018;2018;Steel;7217203000 F;Turkey;TR;Turkey;4539;;22501;22501;24006
16/2/2018;2018;Steel;7219321000 F;Indonesia;ID;Indonesia;16;;15705;15705;28607
16/2/2018;2018;Steel;7219341000 F;Indonesia;ID;Indonesia;16;;7110;7110;13699
16/2/2018;2018;Steel;7216321900 F;Turkey;TR;Turkey;20;;6600;6600;3317
16/2/2018;2018;Steel;7210122010 F;China;CN;China;16;;342623;342623;280317
16/2/2018;2018;Steel;7210500010 F;China;CN;China;16;;38801;38801;28923
16/2/2018;2018;Steel;7217203000 F;China;CN;China;41;;51500;51500;43583
16/2/2018;2018;Steel;7210708091 F;Turkey;TR;Turkey;20c98566-04b9-4e48-b621;;6400;6400;10064
16/2/2018;2018;Steel;7210708011 F;Former Yugoslav Republic of Macedonia;MK;Former Yugoslav Republic of Macedonia;2693;;110000;110000;92400
16/2/2018;2018;Steel;7318159590 F;Turkey;TR;Turkey;4537;;10816;10816;17220
16/2/2018;2018;Steel;7217203000 F;Turkey;TR;Turkey;4554;;20224;20224;26007
16/2/2018;2018;Steel;7217203000 F;Turkey;TR;Turkey;4554;;26220;26220;26446
16/2/2018;2018;Steel;7210122090 F;Turkey;TR;Turkey;3664;;22884;22884;18482
16/2/2018;2018;Steel;7210122090 F;Turkey;TR;Turkey;3664;;24244;24244;18907
16/2/2018;2018;Steel;7210490020 F;Turkey;TR;Turkey;18;;495000;495000;318285
16/2/2018;2018;Steel;7210122010 F;China;CN;China;16;;318317;318317;243509
16/2/2018;2018;Steel;7210500010 F;China;CN;China;16;;549854;549854;403617
16/2/2018;2018;Steel;7210122010 F;China;CN;China;16;;62766;62766;48653
16/2/2018;2018;Steel;7216329100 F;Turkey;TR;Turkey;34;;27280;27280;15004
16/2/2018;2018;Steel;7216339000 F;Turkey;TR;Turkey;34;;27170;27170;15215
16/2/2018;2018;Steel;7216321100 F;Turkey;TR;Turkey;34;;12980;12980;7139
16/2/2018;2018;Steel;7216331000 F;Turkey;TR;Turkey;34;;11220;11220;6171
16/2/2018;2018;Steel;7216339000 F;Turkey;TR;Turkey;34;;17710;17710;9917
16/2/2018;2018;Steel;7214911090 F;Turkey;TR;Turkey;34;;50600;50600;25089
16/2/2018;2018;Steel;7216501000 F;Turkey;TR;Turkey;34;;28600;28600;14180
16/2/2018;2018;Steel;7214993900 F;Turkey;TR;Turkey;34;;30800;30800;15271
16/2/2018;2018;Steel;7216501000 F;Turkey;TR;Turkey;34;;7700;7700;3817
16/2/2018;2018;Steel;7214993900 F;Turkey;TR;Turkey;34;;4400;4400;2181
16/2/2018;2018;Steel;7214911090 F;Turkey;TR;Turkey;34;;15400;15400;7635
16/2/2018;2018;Steel;7209169000 F;Egypt;EG;Egypt;34;;27500;27500;16541
16/2/2018;2018;Steel;7209169000 F;Egypt;EG;Egypt;34;;110000;110000;66165
16/2/2018;2018;Steel;7216321100 F;Turkey;TR;Turkey;34;;22000;22000;12100
16/2/2018;2018;Steel;7216329100 F;Turkey;TR;Turkey;34;;51700;51700;28435
16/2/2018;2018;Steel;7216329100 F;Turkey;TR;Turkey;34;;6600;6600;3630
16/2/2018;2018;Steel;7216321100 F;Turkey;TR;Turkey;34;;129800;129800;63820
16/2/2018;2018;Steel;7216311000 F;Turkey;TR;Turkey;34;;29700;29700;14533
16/2/2018;2018;Steel;7216100000 F;Turkey;TR;Turkey;34;;3300;3300;1614
16/2/2018;2018;Steel;7216401000 F;Turkey;TR;Turkey;34;;3300;3300;1606
16/2/2018;2018;Steel;7216210000 F;Turkey;TR;Turkey;34;;26400;26400;12988
16/2/2018;2018;Steel;7216210000 F;Turkey;TR;Turkey;34;;41800;41800;20419
16/2/2018;2018;Steel;7216401000 F;Turkey;TR;Turkey;34;;3300;3300;1620
16/2/2018;2018;Steel;7216311000 F;Turkey;TR;Turkey;34;;6600;6600;3229
16/2/2018;2018;Steel;7216321100 F;Turkey;TR;Turkey;34;;3300;3300;1620
16/2/2018;2018;Steel;7318158290 F;China;CN;China;4577;;5700;5700;6000
16/2/2018;2018;Steel;7219341000 F;Indonesia;ID;Indonesia;16;;38035;38035;57220
20/2/2018;2018;Steel;7210490020 F;Turkey;TR;Turkey;19;;82500;82500;54450
20/2/2018;2018;Steel;7209169000 F;Ukraine;UA;Ukraine;19;;768000;768000;432887
20/2/2018;2018;Steel;7209179000 F;Ukraine;UA;Ukraine;19;;184480;184480;103973
20/2/2018;2018;Steel;7210490020 F;Former Yugoslav Republic of Macedonia;MK;Former Yugoslav Republic of Macedonia;19;;60000;60000;44100
20/2/2018;2018;Steel;7209169000 F;Ukraine;UA;Ukraine;19;;472500;472500;287044
20/2/2018;2018;Steel;7209179000 F;Ukraine;UA;Ukraine;19;;283500;283500;172226
20/2/2018;2018;Steel;7219908000 F;Turkey;TR;Turkey;4623;;9209;9209;20452
20/2/2018;2018;Steel;7304399320 F;Ukraine;UA;Ukraine;9a6dfe34-a596-44c3-ae5d;;206404;206404;281538
20/2/2018;2018;Steel;7304399230 F;Ukraine;UA;Ukraine;9a6dfe34-a596-44c3-ae5d;;165027;165027;69492
20/2/2018;2018;Steel;7217103900 F;Turkey;TR;Turkey;41;;28600;28600;19162
20/2/2018;2018;Steel;7306307280 F;Turkey;TR;Turkey;41;;79200;79200;57155
20/2/2018;2018;Steel;7306304120 F;Turkey;TR;Turkey;59;;37640;37640;33751
20/2/2018;2018;Steel;7306304120 F;Turkey;TR;Turkey;1965;;385000;385000;284677
20/2/2018;2018;Steel;7318129090 F;Vietnam;VN;Vietnam;4602;;38970;38970;56527
20/2/2018;2018;Steel;7306408000 F;Turkey;TR;Turkey;8270ea94-a2e5-414e-bff1;;98325;98325;440983
20/2/2018;2018;Steel;7318149989 F;Taiwan;TW;Taiwan;26;;51291;51291;101425
20/2/2018;2018;Steel;7210490080 F;Former Yugoslav Republic of Macedonia;MK;Former Yugoslav Republic of Macedonia;26;;350000;350000;256900
20/2/2018;2018;Steel;7217203000 F;Turkey;TR;Turkey;4539;;22499;22499;24213
20/2/2018;2018;Steel;7306408000 F;Taiwan;TW;Taiwan;2007;;15875;15875;41700
20/2/2018;2018;Steel;7306611000 F;Taiwan;TW;Taiwan;2007;;4731;4731;10800
20/2/2018;2018;Steel;7306408000 F;Taiwan;TW;Taiwan;2007;;24819;24819;57900
20/2/2018;2018;Steel;7306611000 F;Taiwan;TW;Taiwan;2007;;16336;16336;34800
20/2/2018;2018;Steel;7219908000 F;Turkey;TR;Turkey;4578;;3591;3591;6572
20/2/2018;2018;Steel;7209179000 F;Ukraine;UA;Ukraine;28;;378000;378000;213890
20/2/2018;2018;Steel;7209169000 F;Ukraine;UA;Ukraine;28;;756000;756000;429660
20/2/2018;2018;Steel;7216210000 F;Turkey;TR;Turkey;28;;126500;126500;66340
20/2/2018;2018;Steel;7216401000 F;Turkey;TR;Turkey;28;;115500;115500;60560
20/2/2018;2018;Steel;7216210000 F;Turkey;TR;Turkey;28;;22000;22000;11530
20/2/2018;2018;Steel;7216401000 F;Turkey;TR;Turkey;28;;82500;82500;45210
20/2/2018;2018;Steel;7216100000 F;Turkey;TR;Turkey;28;;88000;88000;46110
20/2/2018;2018;Steel;7216100000 F;Turkey;TR;Turkey;28;;38500;38500;20170
20/2/2018;2018;Steel;7214993900 F;Turkey;TR;Turkey;28;;52800;52800;29200
20/2/2018;2018;Steel;7214993100 F;Turkey;TR;Turkey;28;;4400;4400;2090
20/2/2018;2018;Steel;7214993900 F;Turkey;TR;Turkey;28;;24200;24200;13380
20/2/2018;2018;Steel;7214993100 F;Turkey;TR;Turkey;28;;4400;4400;2090
20/2/2018;2018;Steel;7209169000 F;Ukraine;UA;Ukraine;18;;330000;330000;181500
20/2/2018;2018;Steel;7318158890 F;China;CN;China;4577;;11500;11500;14500
20/2/2018;2018;Steel;7210490080 F;Former Yugoslav Republic of Macedonia;MK;Former Yugoslav Republic of Macedonia;4641;;26400;26400;21912
20/2/2018;2018;Steel;7306307780 F;Former Yugoslav Republic of Macedonia;MK;Former Yugoslav Republic of Macedonia;24;;7700;7700;4770
20/2/2018;2018;Steel;7306111000 F;China;CN;China;3333;;4891;4891;14250
20/2/2018;2018;Steel;7305110000 F;Turkey;TR;Turkey;e342d385-5aea-4b3b-b757;;15380;15380;31086
20/2/2018;2018;Steel;7210490080 F;United Arab Emirates;AE;United Arab Emirates;53;;93137;93137;68254
21/2/2018;2018;Steel;7210708099 F;Former Yugoslav Republic of Macedonia;MK;Former Yugoslav Republic of Macedonia;28;;471100;471100;435300
21/2/2018;2018;Steel;7208512090 F;Former Yugoslav Republic of Macedonia;MK;Former Yugoslav Republic of Macedonia;4645;;32913;32913;20241
21/2/2018;2018;Steel;7208519890 F;Former Yugoslav Republic of Macedonia;MK;Former Yugoslav Republic of Macedonia;4645;;7920;7920;4870
21/2/2018;2018;Steel;7306307780 F;Former Yugoslav Republic of Macedonia;MK;Former Yugoslav Republic of Macedonia;39;;10000;10000;6020
21/2/2018;2018;Steel;7306619900 F;Former Yugoslav Republic of Macedonia;MK;Former Yugoslav Republic of Macedonia;39;;20000;20000;12040
21/2/2018;2018;Steel;7318159590 F;Vietnam;VN;Vietnam;4579;;28633;28633;29900
21/2/2018;2018;Steel;7306307780 F;Former Yugoslav Republic of Macedonia;MK;Former Yugoslav Republic of Macedonia;58;;50305;50305;30388
21/2/2018;2018;Steel;7219341000 F;South Africa;ZA;South Africa;2007;;13115;13115;21426
21/2/2018;2018;Steel;7219331000 F;South Africa;ZA;South Africa;2007;;13060;13060;25763
21/2/2018;2018;Steel;7219321000 F;South Africa;ZA;South Africa;2007;;18440;18440;22497
22/2/2018;2018;Steel;7217203000 F;Turkey;TR;Turkey;4554;;39838;39838;51313
22/2/2018;2018;Steel;7214911090 F;Former Yugoslav Republic of Macedonia;MK;Former Yugoslav Republic of Macedonia;23;;2000000;2000000;1020000
22/2/2018;2018;Steel;7214919090 F;Turkey;TR;Turkey;38;;6910;6910;4422
22/2/2018;2018;Steel;7215501900 F;Turkey;TR;Turkey;38;;6140;6140;4267
22/2/2018;2018;Steel;7229909000 F;China;CN;China;c9af600e-1a38-419e-98bd;;47200;47200;46602
22/2/2018;2018;Steel;7306307780 F;Former Yugoslav Republic of Macedonia;MK;Former Yugoslav Republic of Macedonia;24;;13750;13750;8510
22/2/2018;2018;Steel;7209169000 F;Former Yugoslav Republic of Macedonia;MK;Former Yugoslav Republic of Macedonia;24;;210000;210000;135740
22/2/2018;2018;Steel;7306301900 F;Former Yugoslav Republic of Macedonia;MK;Former Yugoslav Republic of Macedonia;4646;;25855;25855;15771
22/2/2018;2018;Steel;7208519190 F;Former Yugoslav Republic of Macedonia;MK;Former Yugoslav Republic of Macedonia;13eba77c-1af0-4ea2-bb24;;135924;135924;82913
22/2/2018;2018;Steel;7208519890 F;Former Yugoslav Republic of Macedonia;MK;Former Yugoslav Republic of Macedonia;13eba77c-1af0-4ea2-bb24;;5766;5766;3373
22/2/2018;2018;Steel;7208529190 F;Former Yugoslav Republic of Macedonia;MK;Former Yugoslav Republic of Macedonia;13eba77c-1af0-4ea2-bb24;;72068;72068;46564
22/2/2018;2018;Steel;7208529900 F;Former Yugoslav Republic of Macedonia;MK;Former Yugoslav Republic of Macedonia;13eba77c-1af0-4ea2-bb24;;3390;3390;2118
22/2/2018;2018;Steel;7307910090 F;China;CN;China;29;;37765;37765;41603
22/2/2018;2018;Steel;7211130000 F;Turkey;TR;Turkey;d63d334d-e193-4148-802c;;19450;19450;13453
22/2/2018;2018;Steel;7210490080 F;Former Yugoslav Republic of Macedonia;MK;Former Yugoslav Republic of Macedonia;4528;;16600;16600;5256
26/2/2018;2018;Steel;7216210000 F;Turkey;TR;Turkey;3136;;53499;53499;26815
26/2/2018;2018;Steel;7216401000 F;Turkey;TR;Turkey;3136;;3060;3060;1511
26/2/2018;2018;Steel;7216311000 F;Turkey;TR;Turkey;3136;;5421;5421;2734
26/2/2018;2018;Steel;7216321900 F;Turkey;TR;Turkey;3136;;14500;14500;7336
26/2/2018;2018;Steel;7318149190 F;Taiwan;TW;Taiwan;4610;;12263;12263;17670
26/2/2018;2018;Steel;7222203100 F;India;IN;Turkey;16;;4293;4293;10410
26/2/2018;2018;Steel;7210708011 F;Turkey;TR;Turkey;19;;22902;22902;16970
26/2/2018;2018;Steel;7210708011 F;Turkey;TR;Turkey;19;;22737;22737;17417
26/2/2018;2018;Steel;7306619900 F;Former Yugoslav Republic of Macedonia;MK;Former Yugoslav Republic of Macedonia;2154;;81537;81537;51993
26/2/2018;2018;Steel;7210490080 F;Turkey;TR;Turkey;4679;;26400;26400;18612
26/2/2018;2018;Steel;7210490080 F;Ukraine;UA;Ukraine;30;;1291500;1291500;834183
26/2/2018;2018;Steel;7209169000 F;Ukraine;UA;Ukraine;30;;441000;441000;263718
26/2/2018;2018;Steel;7209179000 F;Ukraine;UA;Ukraine;30;;126000;126000;75348
26/2/2018;2018;Steel;7210708091 F;India;IN;India;30;;1149500;1149500;1003585
26/2/2018;2018;Steel;7210701090 F;China;CN;China;4675;;80650;80650;69463
26/2/2018;2018;Steel;7307910090 F;China;CN;China;3333;;9300;9300;11200
26/2/2018;2018;Steel;7306619200 F;Turkey;TR;Turkey;34;;39600;39600;21870
26/2/2018;2018;Steel;7306619900 F;Turkey;TR;Turkey;34;;234300;234300;131833
26/2/2018;2018;Steel;7306619200 F;Turkey;TR;Turkey;34;;69300;69300;38274
26/2/2018;2018;Steel;7306619900 F;Turkey;TR;Turkey;34;;96800;96800;53819
26/2/2018;2018;Steel;7306619200 F;Former Yugoslav Republic of Macedonia;MK;Former Yugoslav Republic of Macedonia;31;;27165;27165;16027
26/2/2018;2018;Steel;7306619900 F;Former Yugoslav Republic of Macedonia;MK;Former Yugoslav Republic of Macedonia;31;;12018;12018;7090
26/2/2018;2018;Steel;7306307780 F;Former Yugoslav Republic of Macedonia;MK;Former Yugoslav Republic of Macedonia;31;;16473;16473;9718
26/2/2018;2018;Steel;7219341000 F;Taiwan;TW;Taiwan;4425;;12631;12631;27788
26/2/2018;2018;Steel;7219351000 F;Taiwan;TW;Taiwan;4425;;5992;5992;13302
26/2/2018;2018;Steel;7210708099 F;Turkey;TR;Turkey;4558;;132000;132000;105600
26/2/2018;2018;Steel;7306307780 F;Former Yugoslav Republic of Macedonia;MK;Former Yugoslav Republic of Macedonia;788a53c8-3b78-40a5-9795;;21840;21840;13256
26/2/2018;2018;Steel;7219341000 F;Vietnam;VN;Vietnam;4425;;23303;23303;31600
26/2/2018;2018;Steel;7216321100 F;Turkey;TR;Turkey;34;;39270;39270;20420
26/2/2018;2018;Steel;7216331000 F;Turkey;TR;Turkey;34;;4360;4360;2267
26/2/2018;2018;Steel;7210490080 F;Turkey;TR;Turkey;34;;163605;163605;106343
26/2/2018;2018;Steel;7306307780 F;Former Yugoslav Republic of Macedonia;MK;Former Yugoslav Republic of Macedonia;34;;27379;27379;16646
26/2/2018;2018;Steel;7216321100 F;Turkey;TR;Turkey;24;;22550;22550;11611
26/2/2018;2018;Steel;7216329100 F;Turkey;TR;Turkey;24;;3920;3920;2018
26/2/2018;2018;Steel;7219331000 F;Malaysia;MY;Taiwan;4425;;5825;5825;11650
27/2/2018;2018;Steel;7222203100 F;India;IN;India;2007;;17054;17054;35089
27/2/2018;2018;Steel;7222202100 F;India;IN;India;2007;;3746;3746;8343
27/2/2018;2018;Steel;7306308000 F;Former Yugoslav Republic of Macedonia;MK;Former Yugoslav Republic of Macedonia;47;;19010;19010;12071
27/2/2018;2018;Steel;7306308000 F;Former Yugoslav Republic of Macedonia;MK;Former Yugoslav Republic of Macedonia;e9c48d7d-0845-4f56-91a3;;24190;24190;15239
27/2/2018;2018;Steel;7217909000 F;Albania;AL;Albania;3251;;13000;13000;8800
27/2/2018;2018;Steel;7219331000 F;Turkey;TR;Turkey;2007;;20000;20000;41000
27/2/2018;2018;Steel;7219351000 F;South Korea;KR;South Korea;4677;;40010;40010;86000
27/2/2018;2018;Steel;7318220095 F;China;CN;China;4537;;9632;9632;15205
27/2/2018;2018;Steel;7318154290 F;China;CN;China;4537;;5927;5927;6820
27/2/2018;2018;Steel;7318169290 F;China;CN;China;4537;;8150;8150;9500
27/2/2018;2018;Steel;7210500010 F;Taiwan;TW;Taiwan;4594;;1100000;1100000;833333
27/2/2018;2018;Steel;7210122010 F;Taiwan;TW;Taiwan;4594;;330000;330000;233871
27/2/2018;2018;Steel;7306308000 F;Former Yugoslav Republic of Macedonia;MK;Former Yugoslav Republic of Macedonia;4399;;39865;39865;25314
27/2/2018;2018;Steel;7210122090 F;United States of America;US;United States of America;3664;;64085;64085;40987
27/2/2018;2018;Steel;7210122090 F;United States of America;US;United States of America;3664;;107121;107121;62209
27/2/2018;2018;Steel;7210490080 F;Turkey;TR;Turkey;2718;;461640;461640;310650
27/2/2018;2018;Steel;7210490080 F;Turkey;TR;Turkey;2718;;398270;398270;284300
27/2/2018;2018;Steel;7217109090 F;China;CN;China;86219992-57e2-4c85-b856;;21111;21111;18788
28/2/2018;2018;Steel;7306304190 F;Turkey;TR;Turkey;4585;;100000;100000;86000
28/2/2018;2018;Steel;7208529110 F;Former Yugoslav Republic of Macedonia;MK;Former Yugoslav Republic of Macedonia;4182;;51786;51786;30902
28/2/2018;2018;Steel;7208529900 F;Former Yugoslav Republic of Macedonia;MK;Former Yugoslav Republic of Macedonia;4182;;31626;31626;18585
28/2/2018;2018;Steel;7208512010 F;Former Yugoslav Republic of Macedonia;MK;Former Yugoslav Republic of Macedonia;4182;;421095;421095;264639
28/2/2018;2018;Steel;7208519110 F;Former Yugoslav Republic of Macedonia;MK;Former Yugoslav Republic of Macedonia;4182;;68830;68830;42654
28/2/2018;2018;Steel;7208519810 F;Former Yugoslav Republic of Macedonia;MK;Former Yugoslav Republic of Macedonia;4182;;108997;108997;64977
28/2/2018;2018;Steel;7306301900 F;Former Yugoslav Republic of Macedonia;MK;Former Yugoslav Republic of Macedonia;4646;;25500;25500;15555
28/2/2018;2018;Steel;7306619900 F;Former Yugoslav Republic of Macedonia;MK;Former Yugoslav Republic of Macedonia;24;;78950;78950;47570
28/2/2018;2018;Steel;7306307780 F;Former Yugoslav Republic of Macedonia;MK;Former Yugoslav Republic of Macedonia;24;;3020;3020;1800
28/2/2018;2018;Steel;7217309000 F;Brazil;BR;Brazil;4ccd4dbf-99e9-4f3e-abbe;;5000;5000;20000
28/2/2018;2018;Steel;7210490080 F;Former Yugoslav Republic of Macedonia;MK;Former Yugoslav Republic of Macedonia;4641;;24000;24000;21960
28/2/2018;2018;Steel;7209179000 F;Serbia;RS;Serbia;28;;25200;25200;16480
28/2/2018;2018;Steel;7209169000 F;Serbia;RS;Serbia;28;;69300;69300;45270
28/2/2018;2018;Steel;7209150090 F;Serbia;RS;Serbia;28;;35700;35700;23420
28/2/2018;2018;Steel;7306619900 F;Former Yugoslav Republic of Macedonia;MK;Former Yugoslav Republic of Macedonia;41;;23997;23997;14518
28/2/2018;2018;Steel;7306619200 F;Former Yugoslav Republic of Macedonia;MK;Former Yugoslav Republic of Macedonia;41;;2932;2932;1773
28/2/2018;2018;Steel;7229200000 F;Turkey;TR;Turkey;4732;;8370;8370;7503
28/2/2018;2018;Steel;7210708011 F;Turkey;TR;Turkey;19;;10235;10235;10081
1/3/2018;2018;Steel;7212300080 F;Turkey;TR;Turkey;4654;;24000;24000;18960
1/3/2018;2018;Steel;7210708091 F;Turkey;TR;Turkey;53;;21692;21692;16486
1/3/2018;2018;Steel;7217203000 F;Turkey;TR;Turkey;4539;;15730;15730;16920
1/3/2018;2018;Steel;7210490020 F;Turkey;TR;Turkey;20;;66000;66000;42265
1/3/2018;2018;Steel;7209169000 F;Turkey;TR;Turkey;20;;66000;66000;40341
1/3/2018;2018;Steel;7219341000 F;Indonesia;ID;Indonesia;16;;27410;27410;32376
1/3/2018;2018;Steel;7219351000 F;Indonesia;ID;Indonesia;16;;18255;18255;23941
1/3/2018;2018;Steel;7222191000 F;India;IN;India;16;;13408;13408;27481
1/3/2018;2018;Steel;7222203100 F;India;IN;India;16;;10526;10526;20723
1/3/2018;2018;Steel;7219211000 F;China;CN;Turkey;16;;8900;8900;22339
1/3/2018;2018;Steel;7222203100 F;Switzerland;CH;Switzerland;4273;;100000;100000;410000
1/3/2018;2018;Steel;7209179000 F;Ukraine;UA;Ukraine;19;;393750;393750;220500
1/3/2018;2018;Steel;7208380090 F;Egypt;EG;Egypt;19;;7240;7240;3636
1/3/2018;2018;Steel;7209169000 F;Ukraine;UA;Ukraine;19;;509915;509915;285067
1/3/2018;2018;Steel;7208390090 F;Egypt;EG;Egypt;19;;3836;3836;1967
1/3/2018;2018;Steel;7210490020 F;Turkey;TR;Turkey;19;;94150;94150;58416
1/3/2018;2018;Steel;7306301100 F;China;CN;China;4693;;22926;22926;12478
2/3/2018;2018;Steel;7210708091 F;Turkey;TR;Turkey;53;;39590;39590;33405
2/3/2018;2018;Steel;7222202100 F;India;IN;India;16;;7829;7829;15289
2/3/2018;2018;Steel;7222203100 F;India;IN;India;16;;10795;10795;21735
2/3/2018;2018;Steel;7222191000 F;India;IN;India;16;;4034;4034;7850
2/3/2018;2018;Steel;7209169000 F;Egypt;EG;Egypt;18;;165000;165000;99316
2/3/2018;2018;Steel;7210490080 F;Former Yugoslav Republic of Macedonia;MK;Former Yugoslav Republic of Macedonia;4528;;61220;61220;27319
2/3/2018;2018;Steel;7210708091 F;Former Yugoslav Republic of Macedonia;MK;Former Yugoslav Republic of Macedonia;4528;;137500;137500;125125
2/3/2018;2018;Steel;7210708099 F;India;IN;India;4528;;23950;23950;20036
2/3/2018;2018;Steel;7210490080 F;Former Yugoslav Republic of Macedonia;MK;Former Yugoslav Republic of Macedonia;4551;;19980;19980;16478
2/3/2018;2018;Steel;7210708099 F;Former Yugoslav Republic of Macedonia;MK;Former Yugoslav Republic of Macedonia;4551;;4110;4110;3883
2/3/2018;2018;Steel;7307910090 F;China;CN;China;61;;21580;21580;23443
2/3/2018;2018;Steel;7306619900 F;Former Yugoslav Republic of Macedonia;MK;Former Yugoslav Republic of Macedonia;39;;22000;22000;13244
2/3/2018;2018;Steel;7306307780 F;Former Yugoslav Republic of Macedonia;MK;Former Yugoslav Republic of Macedonia;39;;7000;7000;4214
2/3/2018;2018;Steel;7216210000 F;Turkey;TR;Turkey;20;;226600;226600;111349
2/3/2018;2018;Steel;7216321100 F;Turkey;TR;Turkey;20;;122100;122100;59998
2/3/2018;2018;Steel;7216311000 F;Turkey;TR;Turkey;20;;220000;220000;108105
2/3/2018;2018;Steel;7216321900 F;Turkey;TR;Turkey;20;;9900;9900;4864
2/3/2018;2018;Steel;7208390090 F;Turkey;TR;Turkey;20;;1485000;1485000;802083
2/3/2018;2018;Steel;7208380090 F;Turkey;TR;Turkey;20;;1155000;1155000;623842
2/3/2018;2018;Steel;7208370090 F;Turkey;TR;Turkey;20;;110000;110000;59413
2/3/2018;2018;Steel;7216331000 F;Turkey;TR;Turkey;20;;291500;291500;160325
2/3/2018;2018;Steel;7216321100 F;Turkey;TR;Turkey;20;;33000;33000;18150
2/3/2018;2018;Steel;7216329100 F;Turkey;TR;Turkey;20;;27500;27500;15125
2/3/2018;2018;Steel;7208100000 F;Serbia;RS;Serbia;20;;116550;116550;67542
2/3/2018;2018;Steel;7209169000 F;Egypt;EG;Egypt;20;;110000;110000;66114
2/3/2018;2018;Steel;7208390090 F;Turkey;TR;Turkey;20;;1870000;1870000;1002525
2/3/2018;2018;Steel;7208380090 F;Turkey;TR;Turkey;20;;1870000;1870000;1004982
2/3/2018;2018;Steel;7208370090 F;Turkey;TR;Turkey;20;;363000;363000;196413
2/3/2018;2018;Steel;7306619200 F;Turkey;TR;Turkey;20;;44000;44000;25194
2/3/2018;2018;Steel;7306619900 F;Turkey;TR;Turkey;20;;310200;310200;172531
2/3/2018;2018;Steel;7306307780 F;Turkey;TR;Turkey;20;;159500;159500;87936
2/3/2018;2018;Steel;7214995000 F;Turkey;TR;Turkey;20;;6600;6600;4052
2/3/2018;2018;Steel;7214911090 F;Turkey;TR;Turkey;20;;20900;20900;11236
2/3/2018;2018;Steel;7210490020 F;Former Yugoslav Republic of Macedonia;MK;Former Yugoslav Republic of Macedonia;20;;112500;112500;88087
2/3/2018;2018;Steel;7210490080 F;India;IN;India;3438;;147255;147255;95084
2/3/2018;2018;Steel;7219908000 F;Turkey;TR;Turkey;4623;;11764;11764;27209
5/3/2018;2018;Steel;7306308000 F;Turkey;TR;Turkey;20;;11000;11000;6120
5/3/2018;2018;Steel;7210490080 F;United Arab Emirates;AE;United Arab Emirates;27;;600000;600000;468480
5/3/2018;2018;Steel;7210708099 F;India;IN;India;27;;440000;440000;396000
5/3/2018;2018;Steel;7210708099 F;Turkey;TR;Turkey;27;;1430000;1430000;1181000
5/3/2018;2018;Steel;7210708099 F;Turkey;TR;Turkey;27;;220000;220000;192000
5/3/2018;2018;Steel;7210490080 F;Turkey;TR;Turkey;27;;600000;600000;370000
5/3/2018;2018;Steel;7229200000 F;Turkey;TR;Turkey;0310cb48-2a80-4ea3-8647;;6480;6480;6906
5/3/2018;2018;Steel;7210490020 F;Egypt;EG;Egypt;18;;330000;330000;210690
5/3/2018;2018;Steel;7318220095 F;China;CN;China;839ce33e-388b-4f75-bd23;;7413;7413;8281
5/3/2018;2018;Steel;7318169290 F;China;CN;China;839ce33e-388b-4f75-bd23;;12247;12247;12685
5/3/2018;2018;Steel;7318155890 F;Vietnam;VN;Vietnam;4571;;18661;18661;32000
5/3/2018;2018;Steel;7210708099 F;Turkey;TR;Turkey;4679;;15400;15400;13921
5/3/2018;2018;Steel;7212408099 F;Turkey;TR;Turkey;4679;;11000;11000;10203
5/3/2018;2018;Steel;7210490080 F;Former Yugoslav Republic of Macedonia;MK;Former Yugoslav Republic of Macedonia;28;;258000;258000;180860
5/3/2018;2018;Steel;7208529900 F;Former Yugoslav Republic of Macedonia;MK;Former Yugoslav Republic of Macedonia;7f92d9d7-b03a-42e6-80dc;;23148;23148;17824
5/3/2018;2018;Steel;7214919090 F;Turkey;TR;Turkey;4689;;25000;25000;18675
6/3/2018;2018;Steel;7304391010 F;Ukraine;UA;Ukraine;58;;12928;12928;12670
6/3/2018;2018;Steel;7210490080 F;Ukraine;UA;Ukraine;30;;1239000;1239000;753637
6/3/2018;2018;Steel;7216321900 F;Turkey;TR;Turkey;3136;;88000;88000;48000
6/3/2018;2018;Steel;7210490080 F;Turkey;TR;Turkey;3136;;55000;55000;37000
6/3/2018;2018;Steel;7210490080 F;Turkey;TR;Turkey;3136;;137500;137500;92000
6/3/2018;2018;Steel;7214911090 F;Turkey;TR;Turkey;3136;;11000;11000;6500
6/3/2018;2018;Steel;7216210000 F;Turkey;TR;Turkey;3136;;11000;11000;6500
6/3/2018;2018;Steel;7214995000 F;Turkey;TR;Turkey;3136;;8800;8800;5000
6/3/2018;2018;Steel;7216311000 F;Turkey;TR;Turkey;3136;;5500;5500;3000
6/3/2018;2018;Steel;7216319000 F;Turkey;TR;Turkey;3136;;5000;5000;3000
6/3/2018;2018;Steel;7216321900 F;Turkey;TR;Turkey;3136;;71500;71500;38000
6/3/2018;2018;Steel;7306307280 F;Turkey;TR;Turkey;3136;;202800;202800;147000
6/3/2018;2018;Steel;7306619200 F;Turkey;TR;Turkey;3136;;79200;79200;45000
6/3/2018;2018;Steel;7306619900 F;Turkey;TR;Turkey;3136;;121200;121200;68000
6/3/2018;2018;Steel;7306304120 F;Turkey;TR;Turkey;3136;;98400;98400;77000
6/3/2018;2018;Steel;7306301900 F;China;CN;China;4638;;24332;24332;22600
6/3/2018;2018;Steel;7217109090 F;Albania;AL;Albania;b2ef5aea-12bc-47cb-8af5;;25000;25000;15875
6/3/2018;2018;Steel;7304399320 F;Azerbaijan;AZ;Azerbaijan;38;;40810;40810;33464
6/3/2018;2018;Steel;7318158890 F;Turkey;TR;Turkey;4544;;21757;21757;38594
6/3/2018;2018;Steel;7210708099 F;Former Yugoslav Republic of Macedonia;MK;Former Yugoslav Republic of Macedonia;4558;;7710;7710;6322
6/3/2018;2018;Steel;7210490020 F;Turkey;TR;Turkey;24;;70675;70675;48065
6/3/2018;2018;Steel;7304399230 F;Azerbaijan;AZ;Azerbaijan;38;;11000;11000;9020
6/3/2018;2018;Steel;7307191090 F;Brazil;BR;Brazil;4463;;4968;4968;13281
7/3/2018;2018;Steel;7216339000 F;Turkey;TR;Turkey;3136;;10420;10420;6408
7/3/2018;2018;Steel;7210490080 F;Turkey;TR;Turkey;53;;66383;66383;47135
7/3/2018;2018;Steel;7210610080 F;Vietnam;VN;Vietnam;53;;37950;37950;27000
7/3/2018;2018;Steel;7306619900 F;Former Yugoslav Republic of Macedonia;MK;Former Yugoslav Republic of Macedonia;24;;7700;7700;4690
7/3/2018;2018;Steel;7307191090 F;China;CN;China;4365;;17550;17550;22333
7/3/2018;2018;Steel;7307931199 F;China;CN;China;59;;22389;22389;20636
7/3/2018;2018;Steel;7307910090 F;China;CN;China;59;;22504;22504;35926
7/3/2018;2018;Steel;7306619200 F;China;CN;China;3136;;134195;134195;88000
7/3/2018;2018;Steel;7306619900 F;China;CN;China;3136;;56120;56120;39500
7/3/2018;2018;Steel;7210490080 F;Former Yugoslav Republic of Macedonia;MK;Former Yugoslav Republic of Macedonia;56;;8210;8210;4889
7/3/2018;2018;Steel;7214911090 F;Turkey;TR;Turkey;34;;20900;20900;11369
7/3/2018;2018;Steel;7216100000 F;Turkey;TR;Turkey;34;;7700;7700;4188
7/3/2018;2018;Steel;7214911090 F;Turkey;TR;Turkey;34;;16500;16500;8523
7/3/2018;2018;Steel;7216100000 F;Turkey;TR;Turkey;34;;11000;11000;5709
7/3/2018;2018;Steel;7210490080 F;Egypt;EG;Egypt;34;;26829;26829;16501
7/3/2018;2018;Steel;7210490080 F;Turkey;TR;Turkey;34;;924000;924000;602371
7/3/2018;2018;Steel;7210490080 F;Turkey;TR;Turkey;34;;220000;220000;141966
7/3/2018;2018;Steel;7219331000 F;Turkey;TR;Turkey;2007;;15000;15000;31600
7/3/2018;2018;Steel;7219341000 F;Turkey;TR;Turkey;2007;;10000;10000;21400
8/3/2018;2018;Steel;7222202100 F;India;IN;India;16;;6270;6270;12977
8/3/2018;2018;Steel;7222203100 F;India;IN;India;16;;7758;7758;15904
8/3/2018;2018;Steel;7222191000 F;India;IN;India;16;;9880;9880;20575
8/3/2018;2018;Steel;7210122090 F;China;CN;China;36;;39794;39794;30123
8/3/2018;2018;Steel;7210490080 F;Former Yugoslav Republic of Macedonia;MK;Former Yugoslav Republic of Macedonia;4641;;90000;90000;62550
8/3/2018;2018;Steel;7304399230 F;China;CN;China;59;;44745;44745;21812
8/3/2018;2018;Steel;7304193080 F;China;CN;China;50;;60000;60000;43905
8/3/2018;2018;Steel;7304191080 F;China;CN;China;50;;18000;18000;13171
8/3/2018;2018;Steel;7217105000 F;China;CN;China;4684;;11000;11000;9037
9/3/2018;2018;Steel;7210490020 F;Turkey;TR;Turkey;18;;330000;330000;206250
9/3/2018;2018;Steel;7210708091 F;Turkey;TR;Turkey;30;;2123000;2123000;1716003
9/3/2018;2018;Steel;7210490080 F;Turkey;TR;Turkey;30;;203500;203500;131581
9/3/2018;2018;Steel;7210610020 F;Turkey;TR;Turkey;30;;93500;93500;65466
9/3/2018;2018;Steel;7210490080 F;Ukraine;UA;Ukraine;30;;1344000;1344000;828534
9/3/2018;2018;Steel;7306304120 F;Turkey;TR;Turkey;29;;68010;68010;59586
9/3/2018;2018;Steel;7216329100 F;Bahrain;BH;Bahrain;4317;;856609;856609;522322
9/3/2018;2018;Steel;7211130000 F;Turkey;TR;Turkey;d63d334d-e193-4148-802c;;70000;70000;44100
9/3/2018;2018;Steel;7306304920 F;Turkey;TR;Turkey;2055;;48400;48400;52635
9/3/2018;2018;Steel;7216210000 F;Turkey;TR;Turkey;30;;23100;23100;11444
9/3/2018;2018;Steel;7216100000 F;Turkey;TR;Turkey;30;;22000;22000;10899
9/3/2018;2018;Steel;7216321100 F;Turkey;TR;Turkey;30;;37400;37400;18529
9/3/2018;2018;Steel;7210708099 F;Turkey;TR;Turkey;3961;;9000;9000;10560
9/3/2018;2018;Steel;7214911090 F;Turkey;TR;Turkey;41;;88000;88000;50578
9/3/2018;2018;Steel;7216321100 F;Turkey;TR;Turkey;41;;4400;4400;2486
9/3/2018;2018;Steel;7306301900 F;China;CN;China;4721;;79209;79209;58300
9/3/2018;2018;Steel;7306304920 F;Turkey;TR;Turkey;29;;5960;5960;3942
12/3/2018;2018;Steel;7215501900 F;Turkey;TR;Turkey;4722;;23800;23800;15232
12/3/2018;2018;Steel;7306304120 F;Pakistan;PK;Pakistan;2060;;122131;122131;93705
12/3/2018;2018;Steel;7210490080 F;India;IN;India;3661;;375205;375205;262643
12/3/2018;2018;Steel;7210708091 F;Turkey;TR;Turkey;20c98566-04b9-4e48-b621;;19595;19595;23807
12/3/2018;2018;Steel;7306191000 F;Turkey;TR;Turkey;59;;46000;46000;44635
12/3/2018;2018;Steel;7219331000 F;South Africa;ZA;South Africa;2007;;10260;10260;22938
12/3/2018;2018;Steel;7219341000 F;South Africa;ZA;South Africa;2007;;4440;4440;9990
12/3/2018;2018;Steel;7219321000 F;South Africa;ZA;South Africa;2007;;5140;5140;6270
12/3/2018;2018;Steel;7306304120 F;Turkey;TR;Turkey;1965;;297000;297000;230440
12/3/2018;2018;Steel;7306307290 F;Turkey;TR;Turkey;1965;;35200;35200;27936
12/3/2018;2018;Steel;7219349000 F;Malaysia;MY;Malaysia;4642;;45820;45820;58107
12/3/2018;2018;Steel;7216210000 F;Turkey;TR;Turkey;34;;4400;4400;2288
12/3/2018;2018;Steel;7216321100 F;Turkey;TR;Turkey;34;;9900;9900;5148
12/3/2018;2018;Steel;7208370090 F;Turkey;TR;Turkey;24;;2780;2780;1510
12/3/2018;2018;Steel;7208529900 F;Turkey;TR;Turkey;24;;39340;39340;21362
12/3/2018;2018;Steel;7208100000 F;Serbia;RS;Serbia;24;;10090;10090;5832
12/3/2018;2018;Steel;7208390090 F;Turkey;TR;Turkey;24;;28440;28440;15441
12/3/2018;2018;Steel;7208380090 F;Turkey;TR;Turkey;24;;52720;52720;28620
12/3/2018;2018;Steel;7209179000 F;Former Yugoslav Republic of Macedonia;MK;Former Yugoslav Republic of Macedonia;56;;2980;2980;1892
13/3/2018;2018;Steel;7210490080 F;Former Yugoslav Republic of Macedonia;MK;Former Yugoslav Republic of Macedonia;2261;;82500;82500;62700
13/3/2018;2018;Steel;7306301100 F;China;CN;China;4693;;22926;22926;12478
13/3/2018;2018;Steel;7318169990 F;China;CN;China;4541;;20736;20736;19546
13/3/2018;2018;Steel;7210708011 F;Former Yugoslav Republic of Macedonia;MK;Former Yugoslav Republic of Macedonia;19;;30000;30000;24900
13/3/2018;2018;Steel;7226110092 F;Japan;JP;Turkey;4546;;66000;66000;160380
13/3/2018;2018;Steel;7228506900 F;China;CN;China;3275aa6e-7bcc-4cf5-938b;;11143;11143;19185
13/3/2018;2018;Steel;7217103900 F;China;CN;China;41;;54000;54000;35396
13/3/2018;2018;Steel;7216321100 F;Turkey;TR;Turkey;20;;55000;55000;30250
13/3/2018;2018;Steel;7210708011 F;Former Yugoslav Republic of Macedonia;MK;Former Yugoslav Republic of Macedonia;19;;54985;54985;47617
13/3/2018;2018;Steel;7210708011 F;Former Yugoslav Republic of Macedonia;MK;Former Yugoslav Republic of Macedonia;19;;30000;30000;25710
13/3/2018;2018;Steel;7216321100 F;Turkey;TR;Turkey;28;;49500;49500;26590
13/3/2018;2018;Steel;7216311000 F;Turkey;TR;Turkey;28;;11000;11000;5850
13/3/2018;2018;Steel;7216319000 F;Turkey;TR;Turkey;28;;5500;5500;2970
13/3/2018;2018;Steel;7216321100 F;Turkey;TR;Turkey;28;;27500;27500;14720
13/3/2018;2018;Steel;7216311000 F;Turkey;TR;Turkey;28;;5500;5500;2920
13/3/2018;2018;Steel;7216319000 F;Turkey;TR;Turkey;28;;5500;5500;2970
13/3/2018;2018;Steel;7216210000 F;Turkey;TR;Turkey;28;;22000;22000;12010
13/3/2018;2018;Steel;7216401000 F;Turkey;TR;Turkey;28;;71500;71500;41380
13/3/2018;2018;Steel;7216100000 F;Turkey;TR;Turkey;28;;88000;88000;47990
13/3/2018;2018;Steel;7216100000 F;Turkey;TR;Turkey;28;;33000;33000;18010
13/3/2018;2018;Steel;7306619900 F;Former Yugoslav Republic of Macedonia;MK;Former Yugoslav Republic of Macedonia;2477;;57987;57987;35030
13/3/2018;2018;Steel;7306619200 F;Former Yugoslav Republic of Macedonia;MK;Former Yugoslav Republic of Macedonia;2477;;7700;7700;4620
13/3/2018;2018;Steel;7306307780 F;Former Yugoslav Republic of Macedonia;MK;Former Yugoslav Republic of Macedonia;2477;;17523;17523;10513
13/3/2018;2018;Steel;7219351000 F;Vietnam;VN;Vietnam;38;;14068;14068;31422
13/3/2018;2018;Steel;7219341000 F;Vietnam;VN;Vietnam;38;;82729;82729;174704
13/3/2018;2018;Steel;7219331000 F;Vietnam;VN;Vietnam;38;;5134;5134;10633
13/3/2018;2018;Steel;7214919090 F;Turkey;TR;Turkey;38;;10600;10600;6822
13/3/2018;2018;Steel;7214993100 F;Turkey;TR;Turkey;38;;7268;7268;5562
13/3/2018;2018;Steel;7214997190 F;China;CN;China;38;;12452;12452;9837
13/3/2018;2018;Steel;7228306190 F;China;CN;China;38;;10739;10739;10501
13/3/2018;2018;Steel;7306307780 F;Former Yugoslav Republic of Macedonia;MK;Former Yugoslav Republic of Macedonia;14;;100000;100000;59000
13/3/2018;2018;Steel;7306619900 F;Former Yugoslav Republic of Macedonia;MK;Former Yugoslav Republic of Macedonia;14;;200000;200000;118000
13/3/2018;2018;Steel;7306308000 F;Former Yugoslav Republic of Macedonia;MK;Former Yugoslav Republic of Macedonia;14;;50000;50000;30000
13/3/2018;2018;Steel;7306619200 F;Former Yugoslav Republic of Macedonia;MK;Former Yugoslav Republic of Macedonia;14;;150000;150000;88500
13/3/2018;2018;Steel;7216401000 F;Turkey;TR;Turkey;14;;25450;25450;16165
13/3/2018;2018;Steel;7208400010 F;Turkey;TR;Turkey;14;;27500000;27500000;15812
13/3/2018;2018;Steel;7216401000 F;Turkey;TR;Turkey;14;;11000;11000;6435
13/3/2018;2018;Steel;7216321900 F;Turkey;TR;Turkey;14;;16500;16500;8591
13/3/2018;2018;Steel;7216319000 F;Turkey;TR;Turkey;14;;16500;16500;8712
13/3/2018;2018;Steel;7216100000 F;Turkey;TR;Turkey;14;;27500;27500;14652
13/3/2018;2018;Steel;7216501000 F;Turkey;TR;Turkey;14;;44000;44000;23188
13/3/2018;2018;Steel;7307191090 F;Turkey;TR;Turkey;4526;;9066;9066;11559
13/3/2018;2018;Steel;7208380090 F;Turkey;TR;Turkey;18;;110000;110000;60940
13/3/2018;2018;Steel;7208390090 F;Turkey;TR;Turkey;18;;1320000;1320000;731280
13/3/2018;2018;Steel;7210701090 F;Switzerland;CH;Switzerland;baff24ae-f59d-43a3-9303;;8372;8372;16356
13/3/2018;2018;Steel;7210701090 F;Switzerland;CH;Switzerland;baff24ae-f59d-43a3-9303;;4752;4752;9660
14/3/2018;2018;Steel;7217203000 F;Turkey;TR;Turkey;3836;;11000;11000;10230
14/3/2018;2018;Steel;7229200000 F;Turkey;TR;Turkey;0310cb48-2a80-4ea3-8647;;8400;8400;8665
14/3/2018;2018;Steel;7307910090 F;China;CN;China;4538;;37757;37757;36500
14/3/2018;2018;Steel;7217203000 F;Ukraine;UA;Ukraine;41;;364000;364000;262607
14/3/2018;2018;Steel;7219341000 F;South Africa;ZA;South Africa;2007;;13378;13378;21982
14/3/2018;2018;Steel;7219321000 F;South Africa;ZA;South Africa;2007;;13030;13030;15897
14/3/2018;2018;Steel;7220908000 F;Japan;JP;Japan;4576;;15120;15120;116700
14/3/2018;2018;Steel;7214993900 F;Former Yugoslav Republic of Macedonia;MK;Former Yugoslav Republic of Macedonia;23;;1500000;1500000;765000
14/3/2018;2018;Steel;7214995000 F;Former Yugoslav Republic of Macedonia;MK;Former Yugoslav Republic of Macedonia;23;;1500000;1500000;765000
14/3/2018;2018;Steel;7216210000 F;Former Yugoslav Republic of Macedonia;MK;Former Yugoslav Republic of Macedonia;23;;1500000;1500000;765000
14/3/2018;2018;Steel;7318220095 F;China;CN;China;4691;;8461;8461;9420
14/3/2018;2018;Steel;7318159590 F;China;CN;China;4691;;7052;7052;6820
15/3/2018;2018;Steel;7208519890 F;Ukraine;UA;Ukraine;14;;261560;261560;159980
15/3/2018;2018;Steel;7304391010 F;Ukraine;UA;Ukraine;58;;86450;86450;58700
15/3/2018;2018;Steel;7210490080 F;Turkey;TR;Turkey;4623;;24750;24750;18072
15/3/2018;2018;Steel;7209269000 F;Turkey;TR;Turkey;4623;;100100;100100;69084
15/3/2018;2018;Steel;7208539000 F;Turkey;TR;Turkey;4623;;49500;49500;32185
15/3/2018;2018;Steel;7208512090 F;Former Yugoslav Republic of Macedonia;MK;Former Yugoslav Republic of Macedonia;4732;;772671;772671;500493
15/3/2018;2018;Steel;7208519190 F;Former Yugoslav Republic of Macedonia;MK;Former Yugoslav Republic of Macedonia;4732;;81203;81203;50478
15/3/2018;2018;Steel;7208519890 F;Former Yugoslav Republic of Macedonia;MK;Former Yugoslav Republic of Macedonia;4732;;36551;36551;22640
15/3/2018;2018;Steel;7208529190 F;Former Yugoslav Republic of Macedonia;MK;Former Yugoslav Republic of Macedonia;4732;;12742;12742;7718
15/3/2018;2018;Steel;7208529900 F;Former Yugoslav Republic of Macedonia;MK;Former Yugoslav Republic of Macedonia;4732;;18339;18339;10890
15/3/2018;2018;Steel;7306619200 F;Former Yugoslav Republic of Macedonia;MK;Former Yugoslav Republic of Macedonia;2154;;3965;3965;2422
15/3/2018;2018;Steel;7306619900 F;Former Yugoslav Republic of Macedonia;MK;Former Yugoslav Republic of Macedonia;2154;;70757;70757;43368
15/3/2018;2018;Steel;7306307780 F;Former Yugoslav Republic of Macedonia;MK;Former Yugoslav Republic of Macedonia;2154;;8321;8321;5084
15/3/2018;2018;Steel;7216321900 F;Turkey;TR;Turkey;2154;;63800;63800;35794
15/3/2018;2018;Steel;7216311000 F;Turkey;TR;Turkey;2154;;33000;33000;18627
15/3/2018;2018;Steel;7306402000 F;China;CN;China;4725;;6914;6914;21555
15/3/2018;2018;Steel;7210122090 F;Turkey;TR;Turkey;3664;;24269;24269;20486
15/3/2018;2018;Steel;7217203000 F;China;CN;China;4532;;100000;100000;93161
15/3/2018;2018;Steel;7210490020 F;Turkey;TR;Turkey;19;;1203158;1203158;767968
15/3/2018;2018;Steel;7222202100 F;India;IN;India;16;;8484;8484;16432
15/3/2018;2018;Steel;7222203100 F;India;IN;India;16;;12973;12973;25450
15/3/2018;2018;Steel;7210500010 F;China;CN;China;16;;114698;114698;87142
15/3/2018;2018;Steel;7210122010 F;China;CN;China;16;;111994;111994;90884
15/3/2018;2018;Steel;7210490080 F;Former Yugoslav Republic of Macedonia;MK;Former Yugoslav Republic of Macedonia;53;;204380;204380;125000
16/3/2018;2018;Steel;7209250090 F;Turkey;TR;Turkey;4578;;19800;19800;12479
16/3/2018;2018;Steel;7210490080 F;Turkey;TR;Turkey;4578;;25850;25850;18875
16/3/2018;2018;Steel;7208270000 F;Turkey;TR;Turkey;4578;;23100;23100;15251
16/3/2018;2018;Steel;7209269000 F;Turkey;TR;Turkey;4578;;11550;11550;7801
16/3/2018;2018;Steel;7210122010 F;Vietnam;VN;Vietnam;4594;;990000;990000;933309
16/3/2018;2018;Steel;7210500010 F;Vietnam;VN;Vietnam;4594;;22000;22000;16929
16/3/2018;2018;Steel;7210490080 F;India;IN;India;2693;;247500;247500;157749
16/3/2018;2018;Steel;7211190090 F;Turkey;TR;Turkey;2154;;4400;4400;2362
16/3/2018;2018;Steel;7211140090 F;Turkey;TR;Turkey;2154;;64900;64900;34271
16/3/2018;2018;Steel;7214993900 F;Turkey;TR;Turkey;2154;;23650;23650;12298
16/3/2018;2018;Steel;7216210000 F;Turkey;TR;Turkey;2154;;53900;53900;27813
16/3/2018;2018;Steel;7216501000 F;Turkey;TR;Turkey;2154;;14300;14300;7436
16/3/2018;2018;Steel;7214993900 F;Turkey;TR;Turkey;2154;;15400;15400;8285
16/3/2018;2018;Steel;7216501000 F;Turkey;TR;Turkey;2154;;8800;8800;4734
16/3/2018;2018;Steel;7216210000 F;Turkey;TR;Turkey;2154;;35200;35200;18585
16/3/2018;2018;Steel;7211190090 F;Turkey;TR;Turkey;2154;;41800;41800;22818
16/3/2018;2018;Steel;7211140090 F;Turkey;TR;Turkey;2154;;52800;52800;28956
16/3/2018;2018;Steel;7306619200 F;China;CN;China;3136;;154272;154272;103713
16/3/2018;2018;Steel;7210490080 F;Turkey;TR;Turkey;3661;;200000;200000;151400
16/3/2018;2018;Steel;7222208100 F;India;IN;India;4606;;4262;4262;9778
16/3/2018;2018;Steel;7222203100 F;India;IN;India;4606;;8144;8144;17584
16/3/2018;2018;Steel;7222202100 F;India;IN;India;4606;;8803;8803;19170
16/3/2018;2018;Steel;7222201100 F;India;IN;India;4606;;3590;3590;7431
16/3/2018;2018;Steel;7306307280 F;Turkey;TR;Turkey;34;;357500;357500;271328
16/3/2018;2018;Steel;7210490020 F;Turkey;TR;Turkey;19;;29680;29680;18283
16/3/2018;2018;Steel;7209169000 F;Egypt;EG;Egypt;34;;110000;110000;66058
16/3/2018;2018;Steel;7216311000 F;Turkey;TR;Turkey;34;;61600;61600;34003
16/3/2018;2018;Steel;7216321100 F;Turkey;TR;Turkey;34;;49500;49500;27368
16/3/2018;2018;Steel;7216311000 F;Turkey;TR;Turkey;34;;11000;11000;6072
16/3/2018;2018;Steel;7216321100 F;Turkey;TR;Turkey;34;;14300;14300;7893
16/3/2018;2018;Steel;7306619900 F;Turkey;TR;Turkey;34;;167740;167740;105539
16/3/2018;2018;Steel;7306619200 F;Turkey;TR;Turkey;34;;53900;53900;31931
16/3/2018;2018;Steel;7306307780 F;Turkey;TR;Turkey;34;;44000;44000;26066
16/3/2018;2018;Steel;7208529190 F;Ukraine;UA;Ukraine;34;;160995;160995;92984
16/3/2018;2018;Steel;7208512090 F;Ukraine;UA;Ukraine;34;;396551;396551;220340
16/3/2018;2018;Steel;7306307780 F;Turkey;TR;Turkey;34;;16500;16500;9774
16/3/2018;2018;Steel;7306619200 F;Turkey;TR;Turkey;34;;63800;63800;37795
16/3/2018;2018;Steel;7306619900 F;Turkey;TR;Turkey;34;;244200;244200;147862
16/3/2018;2018;Steel;7213999000 F;Turkey;TR;Turkey;009a94b6-5a4e-43e7-a137;;1200000;1200000;672514
19/3/2018;2018;Steel;7307910090 F;China;CN;China;59;;20701;20701;31097
19/3/2018;2018;Steel;7306307280 F;Turkey;TR;Turkey;3136;;229200;229200;173000
19/3/2018;2018;Steel;7306619900 F;Turkey;TR;Turkey;3136;;63600;63600;37000
19/3/2018;2018;Steel;7216501000 F;Turkey;TR;Turkey;34;;3300;3300;1768
19/3/2018;2018;Steel;7214993900 F;Turkey;TR;Turkey;34;;16500;16500;8837
19/3/2018;2018;Steel;7214911090 F;Turkey;TR;Turkey;34;;7700;7700;4124
19/3/2018;2018;Steel;7214993900 F;Turkey;TR;Turkey;34;;6600;6600;3374
19/3/2018;2018;Steel;7214911090 F;Turkey;TR;Turkey;34;;73700;73700;37680
19/3/2018;2018;Steel;7216311000 F;Turkey;TR;Turkey;34;;39600;39600;19665
19/3/2018;2018;Steel;7216321100 F;Turkey;TR;Turkey;34;;23100;23100;11471
19/3/2018;2018;Steel;7216210000 F;Turkey;TR;Turkey;34;;36300;36300;18026
19/3/2018;2018;Steel;7216401000 F;Turkey;TR;Turkey;34;;9900;9900;4916
19/3/2018;2018;Steel;7216311000 F;Turkey;TR;Turkey;34;;13200;13200;6555
19/3/2018;2018;Steel;7216321100 F;Turkey;TR;Turkey;34;;13200;13200;6555
19/3/2018;2018;Steel;7216210000 F;Turkey;TR;Turkey;34;;33000;33000;16387
19/3/2018;2018;Steel;7216311000 F;Turkey;TR;Turkey;34;;24200;24200;12962
19/3/2018;2018;Steel;7216321100 F;Turkey;TR;Turkey;34;;5500;5500;2946
19/3/2018;2018;Steel;7216321100 F;Turkey;TR;Turkey;34;;5500;5500;2946
19/3/2018;2018;Steel;7306307780 F;Turkey;TR;Turkey;34;;22457;22457;15490
19/3/2018;2018;Steel;7318129090 F;Taiwan;TW;Taiwan;4570;;5787;5787;11983
19/3/2018;2018;Steel;7210490080 F;Former Yugoslav Republic of Macedonia;MK;Former Yugoslav Republic of Macedonia;4528;;82710;82710;43000
19/3/2018;2018;Steel;7209279000 F;Turkey;TR;Turkey;2155;;300000;300000;193950
19/3/2018;2018;Steel;7318159590 F;China;CN;China;4545;;20800;20800;26970
19/3/2018;2018;Steel;7210490080 F;Turkey;TR;Turkey;3136;;170500;170500;120000
19/3/2018;2018;Steel;7306307780 F;Turkey;TR;Turkey;20;;17600;17600;10578
19/3/2018;2018;Steel;7306304120 F;Turkey;TR;Turkey;20;;115500;115500;83491
19/3/2018;2018;Steel;7306307280 F;Turkey;TR;Turkey;20;;272800;272800;193875
19/3/2018;2018;Steel;7208512010 F;Former Yugoslav Republic of Macedonia;MK;Former Yugoslav Republic of Macedonia;20;;417890;417890;276889
19/3/2018;2018;Steel;7208519110 F;Former Yugoslav Republic of Macedonia;MK;Former Yugoslav Republic of Macedonia;20;;30265;30265;18970
19/3/2018;2018;Steel;7208519810 F;Former Yugoslav Republic of Macedonia;MK;Former Yugoslav Republic of Macedonia;20;;35136;35136;22406
19/3/2018;2018;Steel;7208519110 F;Former Yugoslav Republic of Macedonia;MK;Former Yugoslav Republic of Macedonia;20;;43942;43942;26968
19/3/2018;2018;Steel;7208519810 F;Former Yugoslav Republic of Macedonia;MK;Former Yugoslav Republic of Macedonia;20;;13688;13688;8956
19/3/2018;2018;Steel;7208512010 F;Former Yugoslav Republic of Macedonia;MK;Former Yugoslav Republic of Macedonia;20;;129121;129121;84574
19/3/2018;2018;Steel;7208512010 F;Former Yugoslav Republic of Macedonia;MK;Former Yugoslav Republic of Macedonia;20;;166449;166449;105695
19/3/2018;2018;Steel;7210490020 F;Turkey;TR;Turkey;20;;462000;462000;319493
19/3/2018;2018;Steel;7210708091 F;Turkey;TR;Turkey;20;;489500;489500;378817
19/3/2018;2018;Steel;7208370090 F;Egypt;EG;Egypt;34;;16478;16478;8162
19/3/2018;2018;Steel;7208390090 F;Egypt;EG;Egypt;34;;99561;99561;49318
19/3/2018;2018;Steel;7210490080 F;Former Yugoslav Republic of Macedonia;MK;Former Yugoslav Republic of Macedonia;28;;492500;492500;330470
19/3/2018;2018;Steel;7210490080 F;Egypt;EG;Egypt;34;;22781;22781;14510
20/3/2018;2018;Steel;7318154290 F;China;CN;China;4584;;12476;12476;12500
20/3/2018;2018;Steel;7306308000 F;Turkey;TR;Turkey;34;;5504;5504;3796
20/3/2018;2018;Steel;7208529110 F;Former Yugoslav Republic of Macedonia;MK;Former Yugoslav Republic of Macedonia;20;;5496;5496;3352
20/3/2018;2018;Steel;7208529900 F;Former Yugoslav Republic of Macedonia;MK;Former Yugoslav Republic of Macedonia;20;;5422;5422;3307
20/3/2018;2018;Steel;7208529900 F;Former Yugoslav Republic of Macedonia;MK;Former Yugoslav Republic of Macedonia;20;;25945;25945;15923
20/3/2018;2018;Steel;7306619900 F;Former Yugoslav Republic of Macedonia;MK;Former Yugoslav Republic of Macedonia;20;;165000;165000;102300
20/3/2018;2018;Steel;7222309790 F;India;IN;India;9cc77181-6fb2-4b76-bce2;;21486;21486;35760
20/3/2018;2018;Steel;7210122090 F;Serbia;RS;Serbia;3664;;23900;23900;19818
20/3/2018;2018;Steel;7210708011 F;India;IN;India;2693;;55000;55000;44633
20/3/2018;2018;Steel;7318129090 F;Vietnam;VN;Vietnam;4053;;41467;41467;58573
20/3/2018;2018;Steel;7216210000 F;Turkey;TR;Turkey;51;;86900;86900;48874
20/3/2018;2018;Steel;7216401000 F;Turkey;TR;Turkey;51;;127050;127050;79560
20/3/2018;2018;Steel;7208390010 F;Turkey;TR;Turkey;1271;;2200000;2200000;1188000
20/3/2018;2018;Steel;7217203000 F;Turkey;TR;Turkey;4554;;18105;18105;26252
20/3/2018;2018;Steel;7216501000 F;Turkey;TR;Turkey;34;;5500;5500;2811
20/3/2018;2018;Steel;7214993900 F;Turkey;TR;Turkey;34;;4400;4400;2249
20/3/2018;2018;Steel;7214911090 F;Turkey;TR;Turkey;34;;8910;8910;4555
20/3/2018;2018;Steel;7228306990 F;Turkey;TR;Turkey;38;;3020;3020;3322
20/3/2018;2018;Steel;7228306990 F;Egypt;EG;Turkey;38;;4630;4630;5093
20/3/2018;2018;Steel;7214997190 F;China;CN;Turkey;38;;2640;2640;2296
20/3/2018;2018;Steel;7210490020 F;Former Yugoslav Republic of Macedonia;MK;Former Yugoslav Republic of Macedonia;19;;7670;7670;4951
20/3/2018;2018;Steel;7210490020 F;Former Yugoslav Republic of Macedonia;MK;Former Yugoslav Republic of Macedonia;19;;8250;8250;5078
20/3/2018;2018;Steel;7212300080 F;Turkey;TR;Turkey;4656;;40720;40720;31560
20/3/2018;2018;Steel;7208512090 F;Former Yugoslav Republic of Macedonia;MK;Former Yugoslav Republic of Macedonia;14;;150000;150000;60750
20/3/2018;2018;Steel;7208519190 F;Former Yugoslav Republic of Macedonia;MK;Former Yugoslav Republic of Macedonia;14;;75000;75000;30375
20/3/2018;2018;Steel;7208519890 F;Former Yugoslav Republic of Macedonia;MK;Former Yugoslav Republic of Macedonia;14;;75000;75000;30375
20/3/2018;2018;Steel;7208529190 F;Former Yugoslav Republic of Macedonia;MK;Former Yugoslav Republic of Macedonia;14;;150000;150000;60750
20/3/2018;2018;Steel;7208529900 F;Former Yugoslav Republic of Macedonia;MK;Former Yugoslav Republic of Macedonia;14;;50000;50000;20250
20/3/2018;2018;Steel;7306307780 F;Former Yugoslav Republic of Macedonia;MK;Former Yugoslav Republic of Macedonia;e9c48d7d-0845-4f56-91a3;;4180;4180;2570
20/3/2018;2018;Steel;7306308000 F;Former Yugoslav Republic of Macedonia;MK;Former Yugoslav Republic of Macedonia;e9c48d7d-0845-4f56-91a3;;16720;16720;10617
20/3/2018;2018;Steel;7209169000 F;Ukraine;UA;Ukraine;18;;330000;330000;189090
20/3/2018;2018;Steel;7219341000 F;Turkey;TR;Turkey;4425;;15966;15966;38201
20/3/2018;2018;Steel;7216339000 F;Turkey;TR;Turkey;24;;8680;8680;4644
20/3/2018;2018;Steel;7216501000 F;Turkey;TR;Turkey;34;;5800;5800;2997
20/3/2018;2018;Steel;7216321100 F;Turkey;TR;Turkey;34;;15390;15390;8003
20/3/2018;2018;Steel;7216311000 F;Turkey;TR;Turkey;34;;2640;2640;1372
20/3/2018;2018;Steel;7306619900 F;Former Yugoslav Republic of Macedonia;MK;Former Yugoslav Republic of Macedonia;4560;;11110;11110;6669
21/3/2018;2018;Steel;7228307090 F;Turkey;TR;Turkey;2346;;24200;24200;16522
21/3/2018;2018;Steel;7208529900 F;Former Yugoslav Republic of Macedonia;MK;Former Yugoslav Republic of Macedonia;7f92d9d7-b03a-42e6-80dc;;23148;23148;17823
21/3/2018;2018;Steel;7216210000 F;Turkey;TR;Turkey;24;;5500;5500;2980
21/3/2018;2018;Steel;7216321900 F;Turkey;TR;Turkey;24;;16500;16500;8950
21/3/2018;2018;Steel;7216311000 F;Turkey;TR;Turkey;24;;110000;110000;59890
21/3/2018;2018;Steel;7216319000 F;Turkey;TR;Turkey;24;;22000;22000;12100
21/3/2018;2018;Steel;7216321100 F;Turkey;TR;Turkey;24;;110000;110000;60010
21/3/2018;2018;Steel;7216329100 F;Turkey;TR;Turkey;24;;22000;22000;11930
21/3/2018;2018;Steel;7214911090 F;Turkey;TR;Turkey;24;;5500;5500;3030
21/3/2018;2018;Steel;7216311000 F;Turkey;TR;Turkey;24;;16500;16500;8950
21/3/2018;2018;Steel;7216321100 F;Turkey;TR;Turkey;24;;33000;33000;17980
21/3/2018;2018;Steel;7214993900 F;Turkey;TR;Turkey;24;;8250;8250;4540
21/3/2018;2018;Steel;7306408000 F;Taiwan;TW;Taiwan;3239;;7806;7806;18654
21/3/2018;2018;Steel;7306611000 F;Taiwan;TW;Taiwan;3239;;13147;13147;28876
21/3/2018;2018;Steel;7318190090 F;China;CN;China;4731;;19296;19296;19800
21/3/2018;2018;Steel;7216329100 F;Bahrain;BH;Bahrain;4317;;781453;781453;479223
21/3/2018;2018;Steel;7208380090 F;Serbia;RS;Serbia;28;;75600;75600;43470
21/3/2018;2018;Steel;7208390090 F;Serbia;RS;Serbia;28;;113400;113400;63450
21/3/2018;2018;Steel;7208370090 F;Serbia;RS;Serbia;28;;151200;151200;88830
21/3/2018;2018;Steel;7208100000 F;Serbia;RS;Serbia;28;;46200;46200;26980
23/3/2018;2018;Steel;7220908000 F;Japan;JP;Japan;4576;;14629;14629;96600
23/3/2018;2018;Steel;7208512090 F;Former Yugoslav Republic of Macedonia;MK;Former Yugoslav Republic of Macedonia;328c8d4d-a454-4a35-bf92;;579412;579412;367926
23/3/2018;2018;Steel;7208529900 F;Former Yugoslav Republic of Macedonia;MK;Former Yugoslav Republic of Macedonia;328c8d4d-a454-4a35-bf92;;11165;11165;7089
23/3/2018;2018;Steel;7208519190 F;Former Yugoslav Republic of Macedonia;MK;Former Yugoslav Republic of Macedonia;4604;;22438;22438;15145
23/3/2018;2018;Steel;7208512090 F;Former Yugoslav Republic of Macedonia;MK;Former Yugoslav Republic of Macedonia;4604;;7913;7913;5341
23/3/2018;2018;Steel;7208519890 F;Former Yugoslav Republic of Macedonia;MK;Former Yugoslav Republic of Macedonia;4604;;3390;3390;2288
23/3/2018;2018;Steel;7208529190 F;Former Yugoslav Republic of Macedonia;MK;Former Yugoslav Republic of Macedonia;4604;;14202;14202;9586
23/3/2018;2018;Steel;7318190090 F;China;CN;China;4562;;24330;24330;25316
23/3/2018;2018;Steel;7210500010 F;China;CN;China;16;;519818;519818;375684
23/3/2018;2018;Steel;7210122010 F;China;CN;China;16;;339635;339635;282017
23/3/2018;2018;Steel;7210500010 F;China;CN;China;16;;225126;225126;168779
23/3/2018;2018;Steel;7210500090 F;China;CN;China;3546;;115090;115090;90000
23/3/2018;2018;Steel;7226110092 F;Japan;JP;Turkey;4546;;66000;66000;160380
23/3/2018;2018;Steel;7208512090 F;South Korea;KR;South Korea;4574;;11272162;11272162;6134136
23/3/2018;2018;Steel;7318190090 F;Turkey;TR;Turkey;4694;;19910;19910;18529
23/3/2018;2018;Steel;7318154290 F;China;CN;China;4610;;8100;8100;6451
23/3/2018;2018;Steel;7318154290 F;China;CN;China;4610;;20230;20230;16819
23/3/2018;2018;Steel;7318149190 F;Taiwan;TW;Taiwan;4610;;8499;8499;12696
23/3/2018;2018;Steel;7306199000 F;Turkey;TR;Turkey;63ee4620-f600-4526-9b5c;;57250;57250;66114
23/3/2018;2018;Steel;7210490080 F;Former Yugoslav Republic of Macedonia;MK;Former Yugoslav Republic of Macedonia;3661;;500000;500000;378000
23/3/2018;2018;Steel;7210490080 F;Turkey;TR;Turkey;3661;;75000;75000;53175
23/3/2018;2018;Steel;7217203000 F;Turkey;TR;Turkey;4554;;26110;26110;32115
23/3/2018;2018;Steel;7219341000 F;Indonesia;ID;Indonesia;16;;15430;15430;18422
23/3/2018;2018;Steel;7318169290 F;China;CN;China;4537;;21625;21625;25600
23/3/2018;2018;Steel;7306304990 F;Turkey;TR;Turkey;29;;6380;6380;4111
23/3/2018;2018;Steel;7306304920 F;Turkey;TR;Turkey;29;;26160;26160;16947
23/3/2018;2018;Steel;7306304120 F;Turkey;TR;Turkey;29;;82040;82040;71804
23/3/2018;2018;Steel;7222203100 F;India;IN;India;16;;8962;8962;17411
23/3/2018;2018;Steel;7222202100 F;India;IN;India;16;;6871;6871;15075
23/3/2018;2018;Steel;7222191000 F;India;IN;India;16;;3260;3260;6413
23/3/2018;2018;Steel;7217909000 F;Turkey;TR;Turkey;4711;;150000;150000;105246
27/3/2018;2018;Steel;7307191090 F;China;CN;China;4526;;29900;29900;31829
27/3/2018;2018;Steel;7217304100 F;China;CN;China;4620;;21520;21520;20450
27/3/2018;2018;Steel;7210490080 F;Egypt;EG;Egypt;26;;263270;263270;181129
27/3/2018;2018;Steel;7210122090 F;Turkey;TR;Turkey;3664;;255000;255000;244025
27/3/2018;2018;Steel;7210490080 F;Former Yugoslav Republic of Macedonia;MK;Former Yugoslav Republic of Macedonia;26;;910000;910000;689780
27/3/2018;2018;Steel;7306619200 F;Turkey;TR;Turkey;24;;118800;118800;71280
27/3/2018;2018;Steel;7306619900 F;Turkey;TR;Turkey;24;;353100;353100;211860
27/3/2018;2018;Steel;7306307780 F;Turkey;TR;Turkey;24;;57200;57200;34320
27/3/2018;2018;Steel;7306619900 F;Turkey;TR;Turkey;14;;135300;135300;77718
27/3/2018;2018;Steel;7306619200 F;Turkey;TR;Turkey;14;;102300;102300;58338
27/3/2018;2018;Steel;7306307780 F;Turkey;TR;Turkey;14;;75900;75900;43284
27/3/2018;2018;Steel;7306619900 F;Turkey;TR;Turkey;14;;210100;210100;126761
27/3/2018;2018;Steel;7306619200 F;Turkey;TR;Turkey;14;;85800;85800;57085
27/3/2018;2018;Steel;7306307790 F;Turkey;TR;Turkey;14;;28600;28600;17669
27/3/2018;2018;Steel;7210708091 F;India;IN;India;53;;114360;114360;100500
27/3/2018;2018;Steel;7217209090 F;China;CN;China;4573;;700000;700000;857500
27/3/2018;2018;Steel;7212300080 F;Turkey;TR;Turkey;4654;;25000;25000;19125
27/3/2018;2018;Steel;7306304120 F;Turkey;TR;Turkey;59;;51920;51920;44305
27/3/2018;2018;Steel;7229200000 F;Former Yugoslav Republic of Macedonia;MK;Former Yugoslav Republic of Macedonia;4273;;300000;300000;294000
27/3/2018;2018;Steel;7209169000 F;Former Yugoslav Republic of Macedonia;MK;Former Yugoslav Republic of Macedonia;56;;60000;60000;39300
27/3/2018;2018;Steel;7210490080 F;Former Yugoslav Republic of Macedonia;MK;Former Yugoslav Republic of Macedonia;56;;120000;120000;91800
27/3/2018;2018;Steel;7213991000 F;Turkey;TR;Turkey;4541;;12000;12000;7920
27/3/2018;2018;Steel;7213914900 F;Turkey;TR;Turkey;4541;;12000;12000;7290
27/3/2018;2018;Steel;7210500090 F;China;CN;China;3546;;182308;182308;136000
27/3/2018;2018;Steel;7306619200 F;Turkey;TR;Turkey;24;;29700;29700;16900
27/3/2018;2018;Steel;7306619900 F;Turkey;TR;Turkey;24;;105600;105600;61170
27/3/2018;2018;Steel;7306307780 F;Turkey;TR;Turkey;24;;18700;18700;10640
27/3/2018;2018;Steel;7306619900 F;Turkey;TR;Turkey;24;;302500;302500;179090
27/3/2018;2018;Steel;7306307780 F;Turkey;TR;Turkey;24;;103400;103400;58860
27/3/2018;2018;Steel;7208512010 F;Former Yugoslav Republic of Macedonia;MK;Former Yugoslav Republic of Macedonia;24;;281617;281617;189100
27/3/2018;2018;Steel;7306619200 F;Turkey;TR;Turkey;24;;8170;8170;4695
27/3/2018;2018;Steel;7306307280 F;Turkey;TR;Turkey;3136;;119900;119900;93000
27/3/2018;2018;Steel;7306199000 F;Turkey;TR;Turkey;4729;;18000;18000;21470
28/3/2018;2018;Steel;7217203000 F;Ukraine;UA;Ukraine;41;;55000;55000;40302
28/3/2018;2018;Steel;7220908000 F;India;IN;India;4697;;5158;5158;18056
28/3/2018;2018;Steel;7210490020 F;Turkey;TR;Turkey;18;;550000;550000;346500
28/3/2018;2018;Steel;7210490080 F;Turkey;TR;Turkey;3700;;200000;200000;129142
28/3/2018;2018;Steel;7306619200 F;Former Yugoslav Republic of Macedonia;MK;Former Yugoslav Republic of Macedonia;41;;3080;3080;1863
28/3/2018;2018;Steel;7210708099 F;Former Yugoslav Republic of Macedonia;MK;Former Yugoslav Republic of Macedonia;3910;;18900;18900;16254
28/3/2018;2018;Steel;7223001900 F;China;CN;China;4420;;3019;3019;10448
28/3/2018;2018;Steel;7217201000 F;China;CN;China;4559;;20000;20000;16604
28/3/2018;2018;Steel;7217203000 F;China;CN;China;4559;;5000;5000;3927
28/3/2018;2018;Steel;7219341000 F;South Korea;KR;South Korea;2007;;20000;20000;42800
28/3/2018;2018;Steel;7318169990 F;China;CN;China;4541;;19913;19913;23789
28/3/2018;2018;Steel;7306619900 F;Turkey;TR;Turkey;14;;210100;210100;126761
28/3/2018;2018;Steel;7306619200 F;Turkey;TR;Turkey;14;;85800;85800;57085
28/3/2018;2018;Steel;7306307790 F;Turkey;TR;Turkey;14;;28600;28600;17669
28/3/2018;2018;Steel;7306619900 F;Turkey;TR;Turkey;14;;135300;135300;77718
28/3/2018;2018;Steel;7306619200 F;Turkey;TR;Turkey;14;;102300;102300;58338
28/3/2018;2018;Steel;7306307780 F;Turkey;TR;Turkey;14;;75900;75900;43284
28/3/2018;2018;Steel;7210708099 F;Former Yugoslav Republic of Macedonia;MK;Former Yugoslav Republic of Macedonia;4558;;266000;266000;236024
28/3/2018;2018;Steel;7210490080 F;Former Yugoslav Republic of Macedonia;MK;Former Yugoslav Republic of Macedonia;4558;;18000;18000;13770
28/3/2018;2018;Steel;7208380090 F;Turkey;TR;Turkey;20;;44000;44000;24587
28/3/2018;2018;Steel;7208390090 F;Turkey;TR;Turkey;20;;132000;132000;73762
29/3/2018;2018;Steel;7306307780 F;Former Yugoslav Republic of Macedonia;MK;Former Yugoslav Republic of Macedonia;41;;11704;11704;7081
29/3/2018;2018;Steel;7307191010 F;China;CN;China;4538;;27449;27449;53400
29/3/2018;2018;Steel;7212402010 F;Vietnam;VN;Vietnam;3181;;26027;26027;19630
29/3/2018;2018;Steel;7210490080 F;Egypt;EG;Egypt;34;;26829;26829;16229
29/3/2018;2018;Steel;7306308000 F;Former Yugoslav Republic of Macedonia;MK;Former Yugoslav Republic of Macedonia;e9c48d7d-0845-4f56-91a3;;25445;25445;16157
29/3/2018;2018;Steel;7306308000 F;Former Yugoslav Republic of Macedonia;MK;Former Yugoslav Republic of Macedonia;e9c48d7d-0845-4f56-91a3;;23835;23835;15135
29/3/2018;2018;Steel;7219331000 F;Indonesia;ID;Indonesia;16;;14595;14595;34970
29/3/2018;2018;Steel;7219341000 F;Indonesia;ID;Indonesia;16;;14710;14710;36559
29/3/2018;2018;Steel;7217209090 F;China;CN;China;863d72fc-4c31-44b1-a281;;100000;100000;89181
29/3/2018;2018;Steel;7318155890 F;China;CN;China;4610;;7707;7707;9227
29/3/2018;2018;Steel;7210490020 F;Turkey;TR;Turkey;24;;874500;874500;745450
29/3/2018;2018;Steel;7210490020 F;Turkey;TR;Turkey;24;;440000;440000;362860
29/3/2018;2018;Steel;7210490020 F;Former Yugoslav Republic of Macedonia;MK;Former Yugoslav Republic of Macedonia;24;;60000;60000;43930
29/3/2018;2018;Steel;7216339000 F;South Korea;KR;Turkey;24;;50470;50470;36700
29/3/2018;2018;Steel;7220908000 F;Japan;JP;Japan;4576;;15803;15803;122000
29/3/2018;2018;Steel;7210708091 F;Turkey;TR;Turkey;20;;385000;385000;323647
29/3/2018;2018;Steel;7210708091 F;Egypt;EG;Egypt;20;;192500;192500;163052
29/3/2018;2018;Steel;7208370090 F;Turkey;TR;Turkey;20;;187000;187000;104533
29/3/2018;2018;Steel;7208390090 F;Turkey;TR;Turkey;20;;1100000;1100000;590700
29/3/2018;2018;Steel;7208380090 F;Turkey;TR;Turkey;20;;1254000;1254000;673398
29/3/2018;2018;Steel;7208370090 F;Turkey;TR;Turkey;20;;1391500;1391500;747235
29/3/2018;2018;Steel;7208370090 F;Turkey;TR;Turkey;20;;253000;253000;141427
29/3/2018;2018;Steel;7208360000 F;Turkey;TR;Turkey;20;;55000;55000;30745
29/3/2018;2018;Steel;7210708091 F;India;IN;India;20;;467500;467500;437552
29/3/2018;2018;Steel;7216321100 F;Turkey;TR;Turkey;24;;13640;13640;6890
29/3/2018;2018;Steel;7216210000 F;Turkey;TR;Turkey;24;;10200;10200;5170
29/3/2018;2018;Steel;7216401000 F;Turkey;TR;Turkey;24;;12940;12940;6680
29/3/2018;2018;Steel;7216311000 F;Turkey;TR;Turkey;24;;12940;12940;6530
29/3/2018;2018;Steel;7306619200 F;Former Yugoslav Republic of Macedonia;MK;Former Yugoslav Republic of Macedonia;24;;4400;4400;2680
29/3/2018;2018;Steel;7306307780 F;Former Yugoslav Republic of Macedonia;MK;Former Yugoslav Republic of Macedonia;17;;10534;10534;6236
29/3/2018;2018;Steel;7210708011 F;Turkey;TR;Turkey;43;;57690;57690;51658
29/3/2018;2018;Steel;7306307280 F;Turkey;TR;Turkey;17;;7340;7340;5857
29/3/2018;2018;Steel;7210490020 F;Former Yugoslav Republic of Macedonia;MK;Former Yugoslav Republic of Macedonia;19;;9860;9860;7119
29/3/2018;2018;Steel;7210490020 F;Turkey;TR;Turkey;3136;;26930;26930;18365
29/3/2018;2018;Steel;7306304120 F;Turkey;TR;Turkey;17;;9000;9000;7263
29/3/2018;2018;Steel;7306619900 F;Former Yugoslav Republic of Macedonia;MK;Former Yugoslav Republic of Macedonia;17;;26618;26618;15758
29/3/2018;2018;Steel;7306619900 F;Former Yugoslav Republic of Macedonia;MK;Former Yugoslav Republic of Macedonia;41;;15334;15334;9277
30/3/2018;2018;Steel;7306619900 F;Former Yugoslav Republic of Macedonia;MK;Former Yugoslav Republic of Macedonia;41;;24200;24200;14641
30/3/2018;2018;Steel;7305390000 F;Turkey;TR;Turkey;4315;;2300000;2300000;1682000
30/3/2018;2018;Steel;7210500010 F;Taiwan;TW;Taiwan;4594;;220000;220000;180000
30/3/2018;2018;Steel;7318149989 F;Taiwan;TW;Taiwan;4683;;17251;17251;43859
30/3/2018;2018;Steel;7210490080 F;Egypt;EG;Egypt;26;;19520;19520;13429
30/3/2018;2018;Steel;7318154290 F;China;CN;China;4625;;24480;24480;21000
30/3/2018;2018;Steel;7210500010 F;China;CN;China;16;;224997;224997;170130
30/3/2018;2018;Steel;7210490020 F;Ukraine;UA;Ukraine;19;;523840;523840;336448
30/3/2018;2018;Steel;7222202900 F;India;IN;India;47;;10411;10411;19676
30/3/2018;2018;Steel;7216321900 F;Turkey;TR;Turkey;24;;9900;9900;4990
30/3/2018;2018;Steel;7216311000 F;Turkey;TR;Turkey;24;;6600;6600;3320
30/3/2018;2018;Steel;7216210000 F;Turkey;TR;Turkey;24;;99000;99000;49940
30/3/2018;2018;Steel;7216401000 F;Turkey;TR;Turkey;24;;22000;22000;11100
30/3/2018;2018;Steel;7216321100 F;Turkey;TR;Turkey;24;;68200;68200;34400
30/3/2018;2018;Steel;7216100000 F;Turkey;TR;Turkey;24;;13200;13200;6660
30/3/2018;2018;Steel;7216321900 F;Turkey;TR;Turkey;24;;6600;6600;3330
30/3/2018;2018;Steel;7216210000 F;Turkey;TR;Turkey;24;;102300;102300;51600
30/3/2018;2018;Steel;7216100000 F;Turkey;TR;Turkey;24;;11000;11000;5550
2/4/2018;2018;Steel;7210708099 F;Former Yugoslav Republic of Macedonia;MK;Former Yugoslav Republic of Macedonia;28;;315000;315000;288230
2/4/2018;2018;Steel;7216339000 F;South Korea;KR;Turkey;28;;97341;97341;73020
2/4/2018;2018;Steel;7306307280 F;Turkey;TR;Turkey;41;;5750;5750;3736
2/4/2018;2018;Steel;7306619900 F;Turkey;TR;Turkey;41;;4750;4750;2469
2/4/2018;2018;Steel;7306619900 F;India;IN;India;2060;;24271;24271;16625
2/4/2018;2018;Steel;7306307780 F;Former Yugoslav Republic of Macedonia;MK;Former Yugoslav Republic of Macedonia;44;;82500;82500;49500
2/4/2018;2018;Steel;7306308000 F;Former Yugoslav Republic of Macedonia;MK;Former Yugoslav Republic of Macedonia;44;;16500;16500;10395
2/4/2018;2018;Steel;7306619200 F;Former Yugoslav Republic of Macedonia;MK;Former Yugoslav Republic of Macedonia;44;;121000;121000;72600
2/4/2018;2018;Steel;7306619900 F;Former Yugoslav Republic of Macedonia;MK;Former Yugoslav Republic of Macedonia;44;;121000;121000;72600
2/4/2018;2018;Steel;7222201100 F;India;IN;India;16;;2890;2890;5678
2/4/2018;2018;Steel;7222202100 F;India;IN;India;16;;9181;9181;19016
2/4/2018;2018;Steel;7222203100 F;India;IN;India;16;;8044;8044;17472
2/4/2018;2018;Steel;7222208100 F;India;IN;India;16;;3460;3460;8678
2/4/2018;2018;Steel;7216401000 F;Turkey;TR;Turkey;34;;26250;26250;16912
2/4/2018;2018;Steel;7208380090 F;Turkey;TR;Turkey;34;;352000;352000;196416
2/4/2018;2018;Steel;7208390090 F;Turkey;TR;Turkey;34;;88000;88000;49104
2/4/2018;2018;Steel;7208370090 F;Turkey;TR;Turkey;34;;660000;660000;368280
2/4/2018;2018;Steel;7214993900 F;Turkey;TR;Turkey;34;;3300;3300;1821
2/4/2018;2018;Steel;7214911090 F;Turkey;TR;Turkey;34;;24200;24200;13356
2/4/2018;2018;Steel;7210490080 F;Ukraine;UA;Ukraine;34;;209000;209000;133760
2/4/2018;2018;Steel;7216210000 F;Turkey;TR;Turkey;34;;39600;39600;20780
2/4/2018;2018;Steel;7216100000 F;Turkey;TR;Turkey;34;;3300;3300;1731
2/4/2018;2018;Steel;7216311000 F;Turkey;TR;Turkey;34;;13200;13200;6926
2/4/2018;2018;Steel;7216210000 F;Turkey;TR;Turkey;34;;52800;52800;27707
2/4/2018;2018;Steel;7216311000 F;Turkey;TR;Turkey;34;;23100;23100;12122
2/4/2018;2018;Steel;7216321100 F;Turkey;TR;Turkey;34;;6600;6600;3463
2/4/2018;2018;Steel;7210708099 F;Turkey;TR;Turkey;3961;;70000;70000;85200
2/4/2018;2018;Steel;7210708099 F;Turkey;TR;Turkey;3961;;24370;24370;28428
2/4/2018;2018;Steel;7306619900 F;Former Yugoslav Republic of Macedonia;MK;Former Yugoslav Republic of Macedonia;34;;23997;23997;13797
2/4/2018;2018;Steel;7216339000 F;Turkey;TR;Turkey;24;;32855;32855;21900
2/4/2018;2018;Steel;7216321100 F;Turkey;TR;Turkey;34;;11000;11000;5665
2/4/2018;2018;Steel;7214911090 F;Turkey;TR;Turkey;24;;10000;10000;5249
2/4/2018;2018;Steel;7208519810 F;Turkey;TR;Turkey;24;;9680;9680;5257
2/4/2018;2018;Steel;7306619900 F;Turkey;TR;Turkey;28;;82500;82500;47530
2/4/2018;2018;Steel;7306619900 F;Turkey;TR;Turkey;34;;9900;9900;5829
3/4/2018;2018;Steel;7210490080 F;United Arab Emirates;AE;United Arab Emirates;53;;195400;195400;138852
3/4/2018;2018;Steel;7210490080 F;India;IN;India;53;;92865;92865;63705
3/4/2018;2018;Steel;7217203000 F;Turkey;TR;Turkey;4539;;20529;20529;21045
3/4/2018;2018;Steel;7210500010 F;China;CN;China;3136;;63252;63252;50000
3/4/2018;2018;Steel;7306619900 F;China;CN;China;3136;;102396;102396;73000
3/4/2018;2018;Steel;7306619200 F;China;CN;China;3136;;49000;49000;31000
3/4/2018;2018;Steel;7306301900 F;China;CN;China;4638;;73930;73930;70000
3/4/2018;2018;Steel;7217103900 F;China;CN;China;41;;97000;97000;80580
3/4/2018;2018;Steel;7306307280 F;Turkey;TR;Turkey;28;;82500;82500;68710
3/4/2018;2018;Steel;7306307280 F;Turkey;TR;Turkey;28;;93500;93500;78050
3/4/2018;2018;Steel;7306304120 F;Turkey;TR;Turkey;28;;16500;16500;14320
3/4/2018;2018;Steel;7208390090 F;Turkey;TR;Turkey;34;;229760;229760;121847
3/4/2018;2018;Steel;7219221000 F;China;CN;Turkey;6c0d0db1-80d9-4ef8-923f;;3613;3613;11706
4/4/2018;2018;Steel;7306307780 F;Former Yugoslav Republic of Macedonia;MK;Former Yugoslav Republic of Macedonia;14;;200000;200000;95000
4/4/2018;2018;Steel;7306619900 F;Former Yugoslav Republic of Macedonia;MK;Former Yugoslav Republic of Macedonia;14;;500000;500000;237500
4/4/2018;2018;Steel;7306619200 F;Former Yugoslav Republic of Macedonia;MK;Former Yugoslav Republic of Macedonia;14;;200000;200000;95000
4/4/2018;2018;Steel;7306308000 F;Former Yugoslav Republic of Macedonia;MK;Former Yugoslav Republic of Macedonia;14;;100000;100000;48000
4/4/2018;2018;Steel;7217304100 F;China;CN;China;4563;;9640;9640;11262
4/4/2018;2018;Steel;7222201100 F;India;IN;India;4674;;20846;20846;34812
4/4/2018;2018;Steel;7228307090 F;Turkey;TR;Turkey;2346;;20292;20292;14955
5/4/2018;2018;Steel;7229909000 F;China;CN;China;c9af600e-1a38-419e-98bd;;23680;23680;25079
5/4/2018;2018;Steel;7228506900 F;Turkey;TR;Turkey;50;;25000;25000;17000
5/4/2018;2018;Steel;7219331000 F;Turkey;TR;Turkey;2007;;20000;20000;44000
5/4/2018;2018;Steel;7209169000 F;Former Yugoslav Republic of Macedonia;MK;Former Yugoslav Republic of Macedonia;24;;54000;54000;34360
5/4/2018;2018;Steel;7208270000 F;Serbia;RS;Serbia;28;;149100;149100;87790
5/4/2018;2018;Steel;7208260000 F;Serbia;RS;Serbia;28;;23100;23100;13400
5/4/2018;2018;Steel;7208250000 F;Serbia;RS;Serbia;28;;27300;27300;15780
5/4/2018;2018;Steel;7208390090 F;Serbia;RS;Serbia;28;;222600;222600;124030
5/4/2018;2018;Steel;7208380090 F;Serbia;RS;Serbia;28;;253050;253050;140230
5/4/2018;2018;Steel;7208370090 F;Serbia;RS;Serbia;28;;262500;262500;146840
5/4/2018;2018;Steel;7209179000 F;Ukraine;UA;Ukraine;14;;61030;61030;36618
5/4/2018;2018;Steel;7209169000 F;Ukraine;UA;Ukraine;14;;195545;195545;115672
5/4/2018;2018;Steel;7210490080 F;Ukraine;UA;Ukraine;14;;77680;77680;48938
5/4/2018;2018;Steel;7318149190 F;Taiwan;TW;Taiwan;4537;;16338;16338;28990
5/4/2018;2018;Steel;7306307780 F;Former Yugoslav Republic of Macedonia;MK;Former Yugoslav Republic of Macedonia;42;;13480;13480;8642
5/4/2018;2018;Steel;7306308000 F;Former Yugoslav Republic of Macedonia;MK;Former Yugoslav Republic of Macedonia;42;;12170;12170;7849
5/4/2018;2018;Steel;7210708091 F;Former Yugoslav Republic of Macedonia;MK;Former Yugoslav Republic of Macedonia;28;;24000;24000;19200
5/4/2018;2018;Steel;7306619900 F;Former Yugoslav Republic of Macedonia;MK;Former Yugoslav Republic of Macedonia;24;;100980;100980;62010
5/4/2018;2018;Steel;7210610020 F;Turkey;TR;Turkey;19;;77760;77760;59526
10/4/2018;2018;Steel;7217209090 F;Turkey;TR;Turkey;4573;;550000;550000;490500
10/4/2018;2018;Steel;7210610080 F;India;IN;India;2693;;132820;132820;100610
10/4/2018;2018;Steel;7216329100 F;Bahrain;BH;United Arab Emirates;4317;;457533;457533;280580
10/4/2018;2018;Steel;7216329100 F;Bahrain;BH;United Arab Emirates;4317;;148398;148398;91005
10/4/2018;2018;Steel;7217103900 F;Former Yugoslav Republic of Macedonia;MK;Former Yugoslav Republic of Macedonia;4595;;22000;22000;15700
10/4/2018;2018;Steel;7208519190 F;Former Yugoslav Republic of Macedonia;MK;Former Yugoslav Republic of Macedonia;a17d0b63-34b4-4e9d-816e;;9420;9420;6311
10/4/2018;2018;Steel;7208512090 F;Former Yugoslav Republic of Macedonia;MK;Former Yugoslav Republic of Macedonia;a17d0b63-34b4-4e9d-816e;;6280;6280;4208
10/4/2018;2018;Steel;7208529190 F;Former Yugoslav Republic of Macedonia;MK;Former Yugoslav Republic of Macedonia;a17d0b63-34b4-4e9d-816e;;7850;7850;5260
10/4/2018;2018;Steel;7306619200 F;Turkey;TR;Turkey;34;;12100;12100;6408
10/4/2018;2018;Steel;7216321100 F;Turkey;TR;Turkey;34;;7700;7700;4004
10/4/2018;2018;Steel;7306619200 F;Turkey;TR;Turkey;34;;31900;31900;17007
10/4/2018;2018;Steel;7209179000 F;Egypt;EG;Egypt;34;;12410;12410;6834
10/4/2018;2018;Steel;7209179000 F;Former Yugoslav Republic of Macedonia;MK;Former Yugoslav Republic of Macedonia;24;;77480;77480;47180
11/4/2018;2018;Steel;7306307780 F;Former Yugoslav Republic of Macedonia;MK;Former Yugoslav Republic of Macedonia;4732;;17000;17000;9945
11/4/2018;2018;Steel;7305190000 F;China;CN;China;4600;;4636;4636;17067
11/4/2018;2018;Steel;7217203000 F;China;CN;China;4532;;100000;100000;94416
11/4/2018;2018;Steel;7209179000 F;Serbia;RS;Serbia;28;;76630;76630;46990
11/4/2018;2018;Steel;7208390090 F;Turkey;TR;Turkey;54;;57140;57140;33215
11/4/2018;2018;Steel;7208380090 F;Turkey;TR;Turkey;54;;99300;99300;57723
11/4/2018;2018;Steel;7306199000 F;Turkey;TR;Turkey;4729;;17480;17480;21470
11/4/2018;2018;Steel;7215900090 F;Turkey;TR;Turkey;3073;;13000;13000;16000
11/4/2018;2018;Steel;7306619900 F;Former Yugoslav Republic of Macedonia;MK;Former Yugoslav Republic of Macedonia;2154;;77918;77918;47965
11/4/2018;2018;Steel;7306307780 F;Former Yugoslav Republic of Macedonia;MK;Former Yugoslav Republic of Macedonia;2154;;5407;5407;3303
12/4/2018;2018;Steel;7208512090 F;Former Yugoslav Republic of Macedonia;MK;Former Yugoslav Republic of Macedonia;13eba77c-1af0-4ea2-bb24;;105530;105530;64373
12/4/2018;2018;Steel;7210500090 F;Taiwan;TW;Taiwan;3546;;212784;212784;162000
12/4/2018;2018;Steel;7306307280 F;Turkey;TR;Turkey;4673;;25800;25800;17331
12/4/2018;2018;Steel;7210122090 F;China;CN;China;36;;209686;209686;150918
12/4/2018;2018;Steel;7210410080 F;China;CN;China;28;;51225;51225;36910
12/4/2018;2018;Steel;7210410080 F;China;CN;China;28;;130240;130240;93180
12/4/2018;2018;Steel;7217103900 F;China;CN;China;41;;20000;20000;11431
12/4/2018;2018;Steel;7307239085 F;Malaysia;MY;Malaysia;59;;3302;3302;15053
12/4/2018;2018;Steel;7306304120 F;Turkey;TR;Turkey;59;;50360;50360;42506
12/4/2018;2018;Steel;7210490080 F;Egypt;EG;Egypt;2477;;330000;330000;213983
12/4/2018;2018;Steel;7209179000 F;Egypt;EG;Egypt;2477;;55000;55000;33350
12/4/2018;2018;Steel;7208512090 F;Turkey;TR;Turkey;14;;26400;26400;15256
12/4/2018;2018;Steel;7208519190 F;Turkey;TR;Turkey;14;;33000;33000;19070
12/4/2018;2018;Steel;7306307290 F;Turkey;TR;Turkey;14;;130390;130390;98352
12/4/2018;2018;Steel;7216321900 F;Turkey;TR;Turkey;14;;125400;125400;53644
12/4/2018;2018;Steel;7216329900 F;Turkey;TR;Turkey;14;;174900;174900;90433
12/4/2018;2018;Steel;7216319000 F;Turkey;TR;Turkey;14;;46200;46200;23469
12/4/2018;2018;Steel;7216311000 F;Turkey;TR;Turkey;14;;62700;62700;31972
12/4/2018;2018;Steel;7216331000 F;Turkey;TR;Turkey;14;;92400;92400;47434
12/4/2018;2018;Steel;7216339000 F;Turkey;TR;Turkey;14;;70400;70400;36874
12/4/2018;2018;Steel;7216509900 F;Turkey;TR;Turkey;14;;94600;94600;49854
12/4/2018;2018;Steel;7214993900 F;Turkey;TR;Turkey;14;;26400;26400;13912
12/4/2018;2018;Steel;7214919090 F;Turkey;TR;Turkey;14;;24000;24000;15520
12/4/2018;2018;Steel;7214997990 F;Turkey;TR;Turkey;14;;2550;2550;1814
12/4/2018;2018;Steel;7216501000 F;Turkey;TR;Turkey;14;;5000;5000;3275
12/4/2018;2018;Steel;7215501900 F;Turkey;TR;Turkey;14;;14000;14000;8650
12/4/2018;2018;Steel;7213999000 F;Turkey;TR;Turkey;009a94b6-5a4e-43e7-a137;;199080;199080;111806
12/4/2018;2018;Steel;7318159590 F;Taiwan;TW;Taiwan;4537;;15747;15747;24255
13/4/2018;2018;Steel;7217209090 F;China;CN;China;4571;;9385;9385;8200
13/4/2018;2018;Steel;7306307780 F;Former Yugoslav Republic of Macedonia;MK;Former Yugoslav Republic of Macedonia;39;;24410;24410;14694
13/4/2018;2018;Steel;7217203000 F;Ukraine;UA;Ukraine;41;;55000;55000;40727
13/4/2018;2018;Steel;7306307780 F;Former Yugoslav Republic of Macedonia;MK;Former Yugoslav Republic of Macedonia;17;;14026;14026;8416
13/4/2018;2018;Steel;7210500090 F;China;CN;China;3546;;278104;278104;210000
13/4/2018;2018;Steel;7304312099 F;Turkey;TR;Turkey;4626;;25000;25000;39299
13/4/2018;2018;Steel;7214919090 F;Turkey;TR;Turkey;4626;;32000;32000;29051
13/4/2018;2018;Steel;7216329100 F;Bahrain;BH;United Arab Emirates;4317;;244138;244138;147664
13/4/2018;2018;Steel;7216329100 F;Bahrain;BH;United Arab Emirates;4317;;301473;301473;182342
13/4/2018;2018;Steel;7217909000 F;Turkey;TR;Turkey;4711;;25000;25000;16700
13/4/2018;2018;Steel;7217909000 F;Turkey;TR;Turkey;4711;;125000;125000;85800
13/4/2018;2018;Steel;7211130000 F;Turkey;TR;Turkey;d63d334d-e193-4148-802c;;70000;70000;44100
13/4/2018;2018;Steel;7307191090 F;China;CN;China;61;;5793;5793;12204
13/4/2018;2018;Steel;7307910090 F;China;CN;China;61;;2969;2969;4647
13/4/2018;2018;Steel;7215100000 F;Turkey;TR;Turkey;9c34b988-4bb3-4b9f-a2f5;;22046;22046;18937
16/4/2018;2018;Steel;7216339000 F;South Korea;KR;Turkey;14;;25609;25609;16902
16/4/2018;2018;Steel;7219341000 F;Vietnam;VN;Vietnam;38;;59841;59841;125551
16/4/2018;2018;Steel;7228306190 F;China;CN;China;38;;24245;24245;30386
16/4/2018;2018;Steel;7212300080 F;Turkey;TR;Turkey;4679;;50600;50600;38220
16/4/2018;2018;Steel;7306307780 F;Former Yugoslav Republic of Macedonia;MK;Former Yugoslav Republic of Macedonia;39;;25690;25690;15465
16/4/2018;2018;Steel;7318149190 F;Taiwan;TW;Taiwan;4537;;12715;12715;22985
16/4/2018;2018;Steel;7216311000 F;Turkey;TR;Turkey;24;;3440;3440;1730
16/4/2018;2018;Steel;7216321100 F;Turkey;TR;Turkey;24;;7660;7660;3900
16/4/2018;2018;Steel;7306619900 F;Turkey;TR;Turkey;24;;20760;20760;11630
16/4/2018;2018;Steel;7216321100 F;Turkey;TR;Turkey;24;;28240;28240;14300
16/4/2018;2018;Steel;7306307780 F;Turkey;TR;Turkey;24;;3690;3690;2010
16/4/2018;2018;Steel;7306619200 F;Turkey;TR;Turkey;24;;15390;15390;7920
16/4/2018;2018;Steel;7210122010 F;China;CN;China;16;;478683;478683;386913
16/4/2018;2018;Steel;7306619900 F;Turkey;TR;Turkey;24;;37550;37550;19750
17/4/2018;2018;Steel;7226110092 F;Japan;JP;Turkey;4546;;20764;20764;49833
17/4/2018;2018;Steel;7216321100 F;Turkey;TR;Turkey;34;;3300;3300;1716
17/4/2018;2018;Steel;7222203100 F;China;CN;China;4425;;6484;6484;13235
17/4/2018;2018;Steel;7222401000 F;China;CN;China;4425;;9216;9216;20326
17/4/2018;2018;Steel;7216329100 F;Bahrain;BH;United Arab Emirates;4317;;204836;204836;123892
17/4/2018;2018;Steel;7216329100 F;Bahrain;BH;United Arab Emirates;4317;;156777;156777;94824
17/4/2018;2018;Steel;7216329100 F;Bahrain;BH;United Arab Emirates;4317;;121012;121012;73193
17/4/2018;2018;Steel;7210122090 F;Turkey;TR;Turkey;3664;;22158;22158;18928
17/4/2018;2018;Steel;7229200000 F;Turkey;TR;Turkey;0310cb48-2a80-4ea3-8647;;10800;10800;13000
17/4/2018;2018;Steel;7216321900 F;Turkey;TR;Turkey;3136;;19880;19880;10000
17/4/2018;2018;Steel;7318169990 F;China;CN;China;4547;;44778;44778;43192
17/4/2018;2018;Steel;7318129090 F;Vietnam;VN;Vietnam;4053;;39714;39714;57140
17/4/2018;2018;Steel;7210490020 F;Former Yugoslav Republic of Macedonia;MK;Former Yugoslav Republic of Macedonia;24;;49220;49220;33157
18/4/2018;2018;Steel;7306304120 F;Turkey;TR;Turkey;59;;21700;21700;17160
18/4/2018;2018;Steel;7210490080 F;Former Yugoslav Republic of Macedonia;MK;Former Yugoslav Republic of Macedonia;4528;;55000;55000;36850
18/4/2018;2018;Steel;7210490080 F;Former Yugoslav Republic of Macedonia;MK;Former Yugoslav Republic of Macedonia;56;;23440;23440;15131
18/4/2018;2018;Steel;7208529900 F;Turkey;TR;Turkey;4649;;52000;52000;37240
18/4/2018;2018;Steel;7209169000 F;Former Yugoslav Republic of Macedonia;MK;Former Yugoslav Republic of Macedonia;28;;683500;683500;421720
18/4/2018;2018;Steel;7209179000 F;Former Yugoslav Republic of Macedonia;MK;Former Yugoslav Republic of Macedonia;28;;197000;197000;121550
18/4/2018;2018;Steel;7209169000 F;Serbia;RS;Serbia;28;;216300;216300;138060
18/4/2018;2018;Steel;7210122010 F;China;CN;China;16;;207994;207994;186218
18/4/2018;2018;Steel;7210500010 F;China;CN;China;16;;243760;243760;172752
18/4/2018;2018;Steel;7219341000 F;Turkey;TR;Turkey;4425;;5010;5010;12024
18/4/2018;2018;Steel;7219321000 F;Turkey;TR;Turkey;4425;;6485;6485;14915
18/4/2018;2018;Steel;7306619200 F;Albania;AL;Albania;679fab97-e46d-4a70-8792;;5742;5742;3359
18/4/2018;2018;Steel;7306619900 F;Albania;AL;Albania;679fab97-e46d-4a70-8792;;4488;4488;2888
18/4/2018;2018;Steel;7306307780 F;Albania;AL;Albania;679fab97-e46d-4a70-8792;;2860;2860;1790
18/4/2018;2018;Steel;7214995000 F;Albania;AL;Albania;679fab97-e46d-4a70-8792;;4340;4340;2560
18/4/2018;2018;Steel;7208529900 F;Albania;AL;Albania;679fab97-e46d-4a70-8792;;7502;7502;4467
18/4/2018;2018;Steel;7210490020 F;Ukraine;UA;Ukraine;19;;122430;122430;75907
19/4/2018;2018;Steel;7208512090 F;Former Yugoslav Republic of Macedonia;MK;Former Yugoslav Republic of Macedonia;328c8d4d-a454-4a35-bf92;;290484;290484;184457
19/4/2018;2018;Steel;7219341000 F;Indonesia;ID;Indonesia;16;;41625;41625;54116
19/4/2018;2018;Steel;7210490020 F;Turkey;TR;Turkey;19;;1127500;1127500;711227
19/4/2018;2018;Steel;7214999590 F;Turkey;TR;Turkey;38;;3300;3300;2475
19/4/2018;2018;Steel;7214997190 F;Turkey;TR;Turkey;38;;3300;3300;2475
19/4/2018;2018;Steel;7214993100 F;Turkey;TR;Turkey;38;;26950;26950;20372
19/4/2018;2018;Steel;7228306990 F;Turkey;TR;Turkey;38;;6600;6600;7227
19/4/2018;2018;Steel;7214993900 F;Turkey;TR;Turkey;38;;4400;4400;3388
19/4/2018;2018;Steel;7215501100 F;Turkey;TR;Turkey;38;;24200;24200;25500
19/4/2018;2018;Steel;7208908090 F;Former Yugoslav Republic of Macedonia;MK;Former Yugoslav Republic of Macedonia;4525;;100000;100000;49000
19/4/2018;2018;Steel;7217203000 F;China;CN;China;4532;;200000;200000;173775
20/4/2018;2018;Steel;7306307780 F;Former Yugoslav Republic of Macedonia;MK;Former Yugoslav Republic of Macedonia;4668;;24790;24790;14874
20/4/2018;2018;Steel;7215508000 F;Turkey;TR;Turkey;38;;25300;25300;18562
20/4/2018;2018;Steel;7208519890 F;Former Yugoslav Republic of Macedonia;MK;Former Yugoslav Republic of Macedonia;2077;;61286;61286;36628
20/4/2018;2018;Steel;7208529190 F;Former Yugoslav Republic of Macedonia;MK;Former Yugoslav Republic of Macedonia;2077;;28260;28260;16814
20/4/2018;2018;Steel;7208529900 F;Former Yugoslav Republic of Macedonia;MK;Former Yugoslav Republic of Macedonia;2077;;429261;429261;263372
20/4/2018;2018;Steel;7306619900 F;Former Yugoslav Republic of Macedonia;MK;Former Yugoslav Republic of Macedonia;39;;7500;7500;4515
20/4/2018;2018;Steel;7306307780 F;Former Yugoslav Republic of Macedonia;MK;Former Yugoslav Republic of Macedonia;39;;17500;17500;10535
20/4/2018;2018;Steel;7217909000 F;Turkey;TR;Turkey;4711;;50000;50000;34550
20/4/2018;2018;Steel;7306304190 F;Turkey;TR;Turkey;4585;;630000;630000;508070
20/4/2018;2018;Steel;7306304990 F;Turkey;TR;Turkey;4585;;340000;340000;218410
20/4/2018;2018;Steel;7302105000 F;Turkey;TR;Turkey;50;;14000;14000;10710
20/4/2018;2018;Steel;7302400000 F;Turkey;TR;Turkey;50;;13000;13000;10725
20/4/2018;2018;Steel;7222202100 F;India;IN;India;16;;8719;8719;17561
20/4/2018;2018;Steel;7222203100 F;India;IN;India;16;;9612;9612;19531
20/4/2018;2018;Steel;7222208100 F;India;IN;India;16;;2618;2618;6585
20/4/2018;2018;Steel;7222191000 F;India;IN;India;16;;4637;4637;9472
20/4/2018;2018;Steel;7210122090 F;China;CN;China;4575;;502998;502998;434049
20/4/2018;2018;Steel;7318149190 F;Vietnam;VN;Vietnam;4553;;19695;19695;32237
20/4/2018;2018;Steel;7306307780 F;Former Yugoslav Republic of Macedonia;MK;Former Yugoslav Republic of Macedonia;39;;17670;17670;10796
20/4/2018;2018;Steel;7306619900 F;Former Yugoslav Republic of Macedonia;MK;Former Yugoslav Republic of Macedonia;39;;15960;15960;9751
20/4/2018;2018;Steel;7306619200 F;Former Yugoslav Republic of Macedonia;MK;Former Yugoslav Republic of Macedonia;39;;9865;9865;6027
20/4/2018;2018;Steel;7210708099 F;Former Yugoslav Republic of Macedonia;MK;Former Yugoslav Republic of Macedonia;28;;131700;131700;125110
23/4/2018;2018;Steel;7210500010 F;China;CN;China;16;;69513;69513;51906
23/4/2018;2018;Steel;7214911090 F;Turkey;TR;Turkey;4645;;4580;4580;4400
23/4/2018;2018;Steel;7208260000 F;Serbia;RS;Serbia;28;;27300;27300;16190
23/4/2018;2018;Steel;7210708011 F;Former Yugoslav Republic of Macedonia;MK;Former Yugoslav Republic of Macedonia;19;;95260;95260;81637
23/4/2018;2018;Steel;7219221000 F;China;CN;Turkey;16;;3604;3604;10775
23/4/2018;2018;Steel;7216210000 F;Former Yugoslav Republic of Macedonia;MK;Former Yugoslav Republic of Macedonia;23;;1500000;1500000;795000
23/4/2018;2018;Steel;7210708099 F;Turkey;TR;Turkey;4558;;11550;11550;11489
23/4/2018;2018;Steel;7210122010 F;China;CN;China;16;;364975;364975;274246
23/4/2018;2018;Steel;7214911090 F;Former Yugoslav Republic of Macedonia;MK;Former Yugoslav Republic of Macedonia;23;;2000000;2000000;1060000
23/4/2018;2018;Steel;7209279000 F;Turkey;TR;Turkey;2155;;1000000;1000000;630000
24/4/2018;2018;Steel;7210708099 F;India;IN;India;27;;62988;62988;53445
24/4/2018;2018;Steel;7208512090 F;South Korea;KR;South Korea;4574;;6427528;6427528;3505164
24/4/2018;2018;Steel;7208512090 F;South Korea;KR;South Korea;4574;;990227;990227;540007
24/4/2018;2018;Steel;7208512090 F;South Korea;KR;South Korea;4574;;901520;901520;557444
24/4/2018;2018;Steel;7208512010 F;Former Yugoslav Republic of Macedonia;MK;Former Yugoslav Republic of Macedonia;24;;52300;52300;37390
24/4/2018;2018;Steel;7208529110 F;Former Yugoslav Republic of Macedonia;MK;Former Yugoslav Republic of Macedonia;24;;66882;66882;44920
24/4/2018;2018;Steel;7318220095 F;Vietnam;VN;Vietnam;4579;;18857;18857;19310
24/4/2018;2018;Steel;7210122090 F;United States of America;US;United States of America;3664;;23478;23478;16434
24/4/2018;2018;Steel;7210122090 F;China;CN;China;3664;;23250;23250;18085
24/4/2018;2018;Steel;7306308000 F;Former Yugoslav Republic of Macedonia;MK;Former Yugoslav Republic of Macedonia;4317;;19305;19305;12722
24/4/2018;2018;Steel;7306619900 F;Turkey;TR;Turkey;34;;56448;56448;38253
24/4/2018;2018;Steel;7210122090 F;Turkey;TR;Turkey;3664;;106470;106470;87187
24/4/2018;2018;Steel;7306307780 F;Former Yugoslav Republic of Macedonia;MK;Former Yugoslav Republic of Macedonia;24;;6600;6600;4050
24/4/2018;2018;Steel;7210122090 F;Serbia;RS;Serbia;3664;;160000;160000;145805
24/4/2018;2018;Steel;7210708099 F;Taiwan;TW;Taiwan;27;;2090000;2090000;1824350
24/4/2018;2018;Steel;7210708099 F;South Korea;KR;South Korea;27;;60235;60235;57996
24/4/2018;2018;Steel;7216319000 F;Turkey;TR;Turkey;3136;;4900;4900;3000
24/4/2018;2018;Steel;7210708099 F;Turkey;TR;Turkey;27;;308935;308935;249105
24/4/2018;2018;Steel;7306199000 F;Turkey;TR;Turkey;4729;;16840;16840;21470
25/4/2018;2018;Steel;7209150090 F;Egypt;EG;Egypt;34;;16500;16500;7921
25/4/2018;2018;Steel;7318154290 F;China;CN;China;4661;;6533;6533;5775
25/4/2018;2018;Steel;7318169990 F;China;CN;China;4661;;15450;15450;16121
25/4/2018;2018;Steel;7210122090 F;China;CN;China;43731623-f09d-426d-b8a2;;23396;23396;18280
25/4/2018;2018;Steel;7304391010 F;Ukraine;UA;Ukraine;58;;88000;88000;74200
25/4/2018;2018;Steel;7306308000 F;Former Yugoslav Republic of Macedonia;MK;Former Yugoslav Republic of Macedonia;47;;50575;50575;33030
25/4/2018;2018;Steel;7304391010 F;Ukraine;UA;Ukraine;58;;20520;20520;18076
25/4/2018;2018;Steel;7210122010 F;China;CN;China;16;;632075;632075;478780
25/4/2018;2018;Steel;7210122010 F;Turkey;TR;Turkey;4594;;200000;200000;170000
25/4/2018;2018;Steel;7307191090 F;China;CN;China;4365;;33100;33100;39793
25/4/2018;2018;Steel;7216619000 F;China;CN;China;4530;;23854;23854;19441
26/4/2018;2018;Steel;7228306190 F;China;CN;China;38;;51090;51090;63345
26/4/2018;2018;Steel;7212300080 F;Turkey;TR;Turkey;4679;;50600;50600;39543
26/4/2018;2018;Steel;7306619900 F;Former Yugoslav Republic of Macedonia;MK;Former Yugoslav Republic of Macedonia;2477;;59147;59147;35488
26/4/2018;2018;Steel;7306307780 F;Former Yugoslav Republic of Macedonia;MK;Former Yugoslav Republic of Macedonia;2477;;23463;23463;14077
26/4/2018;2018;Steel;7318154290 F;China;CN;China;4540;;10781;10781;11500
27/4/2018;2018;Steel;7212300080 F;Turkey;TR;Turkey;26;;99740;99740;73109
27/4/2018;2018;Steel;7208529190 F;Former Yugoslav Republic of Macedonia;MK;Former Yugoslav Republic of Macedonia;4525;;70516;70516;35738
27/4/2018;2018;Steel;7208512090 F;Former Yugoslav Republic of Macedonia;MK;Former Yugoslav Republic of Macedonia;4525;;10725;10725;6060
27/4/2018;2018;Steel;7210490080 F;China;CN;China;2693;;27500;27500;19222
27/4/2018;2018;Steel;7209179000 F;Former Yugoslav Republic of Macedonia;MK;Former Yugoslav Republic of Macedonia;31;;220000;220000;134200
27/4/2018;2018;Steel;7306304120 F;Turkey;TR;Turkey;1965;;363000;363000;289478
27/4/2018;2018;Steel;7306191000 F;Turkey;TR;Turkey;1965;;254640;254640;203712
27/4/2018;2018;Steel;7306307780 F;Former Yugoslav Republic of Macedonia;MK;Former Yugoslav Republic of Macedonia;2154;;4422;4422;2701
27/4/2018;2018;Steel;7306619900 F;Former Yugoslav Republic of Macedonia;MK;Former Yugoslav Republic of Macedonia;2154;;77654;77654;49412
27/4/2018;2018;Steel;7210490020 F;Egypt;EG;Egypt;18;;44000;44000;26688
27/4/2018;2018;Steel;7210490020 F;Egypt;EG;Egypt;18;;44000;44000;27626
27/4/2018;2018;Steel;7210122010 F;China;CN;China;16;;106850;106850;92965
27/4/2018;2018;Steel;7219331000 F;Indonesia;ID;Indonesia;16;;34765;34765;41946
27/4/2018;2018;Steel;7219341000 F;Indonesia;ID;Indonesia;16;;97990;97990;124337
27/4/2018;2018;Steel;7219351000 F;Indonesia;ID;Indonesia;16;;10245;10245;13800
27/4/2018;2018;Steel;7217909000 F;Turkey;TR;Turkey;4711;;25500;25500;18457
27/4/2018;2018;Steel;7213914900 F;Ukraine;UA;Ukraine;30;;4620000;4620000;2320974
27/4/2018;2018;Steel;7318155890 F;Taiwan;TW;Taiwan;3cfb4b51-02ba-4fb5-b599;;19598;19598;38797
30/4/2018;2018;Steel;7219349000 F;Indonesia;ID;Indonesia;4530;;25200;25200;44825
30/4/2018;2018;Steel;7210708099 F;Former Yugoslav Republic of Macedonia;MK;Former Yugoslav Republic of Macedonia;4558;;60000;60000;52800
30/4/2018;2018;Steel;7304399230 F;Ukraine;UA;Ukraine;9a6dfe34-a596-44c3-ae5d;;39480;39480;36230
30/4/2018;2018;Steel;7304399320 F;Ukraine;UA;Ukraine;9a6dfe34-a596-44c3-ae5d;;26010;26010;23743
30/4/2018;2018;Steel;7210708099 F;India;IN;India;4528;;95890;95890;74671
30/4/2018;2018;Steel;7307931199 F;China;CN;China;4538;;18501;18501;20000
30/4/2018;2018;Steel;7210708099 F;India;IN;India;27;;109090;109090;83500
30/4/2018;2018;Steel;7210490020 F;Turkey;TR;Turkey;19;;29497;29497;18464
30/4/2018;2018;Steel;7306307780 F;Former Yugoslav Republic of Macedonia;MK;Former Yugoslav Republic of Macedonia;24;;20550;20550;12245
30/4/2018;2018;Steel;7306619900 F;Former Yugoslav Republic of Macedonia;MK;Former Yugoslav Republic of Macedonia;24;;37660;37660;22510
30/4/2018;2018;Steel;7208512090 F;Former Yugoslav Republic of Macedonia;MK;Former Yugoslav Republic of Macedonia;328c8d4d-a454-4a35-bf92;;357280;357280;226873
30/4/2018;2018;Steel;7306619200 F;Former Yugoslav Republic of Macedonia;MK;Former Yugoslav Republic of Macedonia;24;;11270;11270;6860
30/4/2018;2018;Steel;7306619900 F;Former Yugoslav Republic of Macedonia;MK;Former Yugoslav Republic of Macedonia;24;;64660;64660;39450
30/4/2018;2018;Steel;7210490080 F;Former Yugoslav Republic of Macedonia;MK;Former Yugoslav Republic of Macedonia;53;;22920;22920;47768
30/4/2018;2018;Steel;7210708091 F;India;IN;India;53;;23520;23520;527790
30/4/2018;2018;Steel;7210128090 F;China;CN;China;3546;;46847;46847;36000
30/4/2018;2018;Steel;7210708091 F;India;IN;India;53;;552125;552125;483255
30/4/2018;2018;Steel;7210708091 F;Former Yugoslav Republic of Macedonia;MK;Former Yugoslav Republic of Macedonia;53;;6120;6120;194339
30/4/2018;2018;Steel;7210708091 F;India;IN;India;53;;552125;552125;483255
30/4/2018;2018;Steel;7210610080 F;India;IN;India;53;;6700;6700;26201
30/4/2018;2018;Steel;7210490080 F;Former Yugoslav Republic of Macedonia;MK;Former Yugoslav Republic of Macedonia;53;;111160;111160;79400
2/5/2018;2018;Steel;7216321900 F;Turkey;TR;Turkey;2154;;57460;57460;30971
2/5/2018;2018;Steel;7304191020 F;China;CN;China;3333;;17420;17420;17900
2/5/2018;2018;Steel;7304395220 F;China;CN;China;3333;;7950;7950;10100
2/5/2018;2018;Steel;7304193020 F;China;CN;China;3333;;9630;9630;9800
2/5/2018;2018;Steel;7318154290 F;China;CN;China;4545;;20830;20830;18950
2/5/2018;2018;Steel;7210122010 F;Turkey;TR;Turkey;fc21acd2-1104-4e1d-984f;;1250000;1250000;1509700
2/5/2018;2018;Steel;7210122090 F;Serbia;RS;Serbia;fc21acd2-1104-4e1d-984f;;50000;50000;45400
2/5/2018;2018;Steel;7210122010 F;Serbia;RS;Serbia;fc21acd2-1104-4e1d-984f;;275000;275000;270076
2/5/2018;2018;Steel;7318158290 F;Taiwan;TW;Taiwan;4648;;6443;6443;10108
2/5/2018;2018;Steel;7216311000 F;Turkey;TR;Turkey;34;;12900;12900;7121
2/5/2018;2018;Steel;7211130000 F;Turkey;TR;Turkey;d63d334d-e193-4148-802c;;150000;150000;96000
2/5/2018;2018;Steel;7306304190 F;Turkey;TR;Turkey;59;;49740;49740;42643
3/5/2018;2018;Steel;7306304190 F;Turkey;TR;Turkey;59;;27000;27000;22197
3/5/2018;2018;Steel;7210122090 F;China;CN;China;3694;;104974;104974;78180
3/5/2018;2018;Steel;7219211000 F;Taiwan;TW;Taiwan;2007;;10360;10360;23500
3/5/2018;2018;Steel;7219221000 F;Taiwan;TW;Taiwan;2007;;3191;3191;6300
3/5/2018;2018;Steel;7216100000 F;Turkey;TR;Turkey;20;;26400;26400;14076
3/5/2018;2018;Steel;7214997190 F;Turkey;TR;Turkey;38;;5445;5445;4084
3/5/2018;2018;Steel;7306307780 F;Former Yugoslav Republic of Macedonia;MK;Former Yugoslav Republic of Macedonia;42;;23295;23295;14460
3/5/2018;2018;Steel;7217103900 F;Ukraine;UA;Ukraine;41;;55000;55000;31652
3/5/2018;2018;Steel;7210708011 F;Former Yugoslav Republic of Macedonia;MK;Former Yugoslav Republic of Macedonia;43;;84840;84840;74235
3/5/2018;2018;Steel;7220908000 F;Japan;JP;Japan;4576;;25596;25596;194400
3/5/2018;2018;Steel;7318169990 F;China;CN;China;4627;;12546;12546;13800
3/5/2018;2018;Steel;7210490080 F;Tunisia;TN;Tunisia;28;;132000;132000;86990
3/5/2018;2018;Steel;7210490080 F;Turkey;TR;Turkey;28;;30000;30000;23460
3/5/2018;2018;Steel;7306301900 F;China;CN;China;4721;;53688;53688;38500
3/5/2018;2018;Steel;7210708091 F;India;IN;India;28;;220000;220000;200590
3/5/2018;2018;Steel;7210708091 F;India;IN;India;28;;264000;264000;226170
3/5/2018;2018;Steel;7306304190 F;India;IN;India;29;;6600;6600;6140
3/5/2018;2018;Steel;7306304120 F;India;IN;India;29;;128330;128330;109015
3/5/2018;2018;Steel;7318149989 F;Taiwan;TW;Taiwan;4608;;8429;8429;14012
3/5/2018;2018;Steel;7216210000 F;Turkey;TR;Turkey;34;;21000;21000;10920
3/5/2018;2018;Steel;7318149989 F;Taiwan;TW;Taiwan;4608;;17573;17573;31577
3/5/2018;2018;Steel;7216401000 F;Turkey;TR;Turkey;34;;26250;26250;13650
3/5/2018;2018;Steel;7216311000 F;Turkey;TR;Turkey;34;;57750;57750;30030
3/5/2018;2018;Steel;7216321100 F;Turkey;TR;Turkey;34;;26250;26250;13650
3/5/2018;2018;Steel;7217203000 F;Turkey;TR;Turkey;4539;;55358;55358;63326
3/5/2018;2018;Steel;7217209090 F;China;CN;China;4573;;147305;147305;177503
3/5/2018;2018;Steel;7216210000 F;Turkey;TR;Turkey;34;;9900;9900;5103
3/5/2018;2018;Steel;7214911090 F;Turkey;TR;Turkey;34;;4400;4400;2284
3/5/2018;2018;Steel;7216100000 F;Turkey;TR;Turkey;34;;9900;9900;5226
3/5/2018;2018;Steel;7216401000 F;Turkey;TR;Turkey;34;;31350;31350;16302
3/5/2018;2018;Steel;7216501000 F;Turkey;TR;Turkey;34;;44000;44000;22568
3/5/2018;2018;Steel;7214993900 F;Turkey;TR;Turkey;34;;16500;16500;8463
3/5/2018;2018;Steel;7214911090 F;Turkey;TR;Turkey;34;;49500;49500;25389
3/5/2018;2018;Steel;7216311000 F;Turkey;TR;Turkey;34;;5000;5000;2595
3/5/2018;2018;Steel;7216321100 F;Turkey;TR;Turkey;34;;15000;15000;7825
3/5/2018;2018;Steel;7216329100 F;Turkey;TR;Turkey;34;;23870;23870;12890
3/5/2018;2018;Steel;7216210000 F;Turkey;TR;Turkey;34;;29700;29700;15238
3/5/2018;2018;Steel;7214993900 F;Turkey;TR;Turkey;34;;12100;12100;6206
3/5/2018;2018;Steel;7216501000 F;Turkey;TR;Turkey;34;;4400;4400;2258
3/5/2018;2018;Steel;7214911090 F;Turkey;TR;Turkey;34;;11000;11000;5642
3/5/2018;2018;Steel;7306619200 F;China;CN;China;34;;105000;105000;68171
3/5/2018;2018;Steel;7306619200 F;China;CN;China;34;;110000;110000;69496
3/5/2018;2018;Steel;7306619900 F;Turkey;TR;Turkey;34;;26803;26803;18117
3/5/2018;2018;Steel;7216311000 F;Turkey;TR;Turkey;34;;26400;26400;13702
3/5/2018;2018;Steel;7216319000 F;Turkey;TR;Turkey;34;;5500;5500;2899
3/5/2018;2018;Steel;7216321100 F;Turkey;TR;Turkey;34;;30800;30800;16073
3/5/2018;2018;Steel;7216321100 F;Turkey;TR;Turkey;34;;56100;56100;28772
3/5/2018;2018;Steel;7216311000 F;Turkey;TR;Turkey;34;;26400;26400;13540
3/5/2018;2018;Steel;7216210000 F;Turkey;TR;Turkey;34;;39600;39600;20310
3/5/2018;2018;Steel;7216401000 F;Turkey;TR;Turkey;34;;13200;13200;6770
3/5/2018;2018;Steel;7216100000 F;Turkey;TR;Turkey;34;;3300;3300;1692
3/5/2018;2018;Steel;7216100000 F;Turkey;TR;Turkey;34;;3300;3300;1693
3/5/2018;2018;Steel;7216210000 F;Turkey;TR;Turkey;34;;26400;26400;13540
3/5/2018;2018;Steel;7216401000 F;Turkey;TR;Turkey;34;;3300;3300;1692
4/5/2018;2018;Steel;7318169290 F;China;CN;China;4555;;7200;7200;7880
4/5/2018;2018;Steel;7318220095 F;China;CN;China;4555;;7200;7200;7745
4/5/2018;2018;Steel;7210708099 F;Turkey;TR;Turkey;27;;54846;54846;36720
4/5/2018;2018;Steel;7210708099 F;Turkey;TR;Turkey;27;;1003122;1003122;767360
4/5/2018;2018;Steel;7210708099 F;Former Yugoslav Republic of Macedonia;MK;Former Yugoslav Republic of Macedonia;4551;;13570;13570;12824
4/5/2018;2018;Steel;7217203000 F;Turkey;TR;Turkey;4704;;20000;20000;25300
4/5/2018;2018;Steel;7217103900 F;Albania;AL;Albania;4655;;100000;100000;69000
4/5/2018;2018;Steel;7229200000 F;Turkey;TR;Turkey;4732;;7240;7240;6606
4/5/2018;2018;Steel;7306619200 F;China;CN;China;3136;;67585;67585;44530
4/5/2018;2018;Steel;7306619900 F;China;CN;China;3136;;12868;12868;7820
4/5/2018;2018;Steel;7208519190 F;Former Yugoslav Republic of Macedonia;MK;Former Yugoslav Republic of Macedonia;4604;;15220;15220;10578
4/5/2018;2018;Steel;7208512090 F;Former Yugoslav Republic of Macedonia;MK;Former Yugoslav Republic of Macedonia;4604;;10174;10174;7071
4/5/2018;2018;Steel;7306307780 F;Former Yugoslav Republic of Macedonia;MK;Former Yugoslav Republic of Macedonia;41;;3377;3377;2030
4/5/2018;2018;Steel;7306619900 F;Former Yugoslav Republic of Macedonia;MK;Former Yugoslav Republic of Macedonia;41;;18480;18480;11099
4/5/2018;2018;Steel;7306619200 F;Former Yugoslav Republic of Macedonia;MK;Former Yugoslav Republic of Macedonia;41;;5093;5093;3060
4/5/2018;2018;Steel;7219341000 F;Taiwan;TW;Taiwan;2007;;20000;20000;32800
4/5/2018;2018;Steel;7219331000 F;Taiwan;TW;Taiwan;2007;;20000;20000;32600
7/5/2018;2018;Steel;7318159590 F;China;CN;China;4555;;9600;9600;9420
7/5/2018;2018;Steel;7210490080 F;China;CN;China;4595;;80216;80216;56583
7/5/2018;2018;Steel;7306619900 F;India;IN;India;2060;;22028;22028;15089
7/5/2018;2018;Steel;7209169000 F;Serbia;RS;Serbia;28;;466200;466200;286950
7/5/2018;2018;Steel;7209150090 F;Serbia;RS;Serbia;28;;44100;44100;27520
7/5/2018;2018;Steel;7306308000 F;Former Yugoslav Republic of Macedonia;MK;Former Yugoslav Republic of Macedonia;e9c48d7d-0845-4f56-91a3;;24190;24190;15118
7/5/2018;2018;Steel;7306308000 F;Former Yugoslav Republic of Macedonia;MK;Former Yugoslav Republic of Macedonia;e9c48d7d-0845-4f56-91a3;;48030;48030;30018
7/5/2018;2018;Steel;7306308000 F;Former Yugoslav Republic of Macedonia;MK;Former Yugoslav Republic of Macedonia;e9c48d7d-0845-4f56-91a3;;24145;24145;15715
7/5/2018;2018;Steel;7318154290 F;China;CN;China;4547;;22460;22460;23930
7/5/2018;2018;Steel;7306308000 F;Former Yugoslav Republic of Macedonia;MK;Former Yugoslav Republic of Macedonia;e9c48d7d-0845-4f56-91a3;;9225;9225;5802
7/5/2018;2018;Steel;7306307780 F;Former Yugoslav Republic of Macedonia;MK;Former Yugoslav Republic of Macedonia;e9c48d7d-0845-4f56-91a3;;11285;11285;6872
7/5/2018;2018;Steel;7226110092 F;Japan;JP;Turkey;4546;;110000;110000;261800
7/5/2018;2018;Steel;7217203000 F;China;CN;China;4559;;15000;15000;11842
7/5/2018;2018;Steel;7217103900 F;China;CN;China;4559;;10000;10000;6400
7/5/2018;2018;Steel;7210708091 F;Former Yugoslav Republic of Macedonia;MK;Former Yugoslav Republic of Macedonia;4528;;6000;6000;2310
7/5/2018;2018;Steel;7318154290 F;China;CN;China;4672;;20783;20783;18593
7/5/2018;2018;Steel;7209179000 F;Serbia;RS;Serbia;28;;34450;34450;20940
8/5/2018;2018;Steel;7210490080 F;Turkey;TR;Turkey;af1f7191-ee3c-469e-9971;;3341;3341;8136
8/5/2018;2018;Steel;7208370090 F;Turkey;TR;Turkey;4574;;3823000;3823000;2154064
8/5/2018;2018;Steel;7208360000 F;Turkey;TR;Turkey;4574;;741000;741000;427685
8/5/2018;2018;Steel;7208360000 F;Turkey;TR;Turkey;4574;;1655000;1655000;932508
8/5/2018;2018;Steel;7318154290 F;China;CN;China;4625;;24852;24852;23000
8/5/2018;2018;Steel;7318154290 F;China;CN;China;4610;;5429;5429;3746
8/5/2018;2018;Steel;7318129090 F;Taiwan;TW;Taiwan;4610;;5566;5566;9076
8/5/2018;2018;Steel;7209179000 F;Serbia;RS;Serbia;24;;23100;23100;14675
8/5/2018;2018;Steel;7209169000 F;Serbia;RS;Serbia;24;;320250;320250;202000
8/5/2018;2018;Steel;7209150090 F;Serbia;RS;Serbia;24;;78750;78750;50100
8/5/2018;2018;Steel;7208390090 F;Serbia;RS;Serbia;24;;342300;342300;189000
8/5/2018;2018;Steel;7208380090 F;Serbia;RS;Serbia;24;;94500;94500;51700
8/5/2018;2018;Steel;7208370090 F;Serbia;RS;Serbia;24;;93450;93450;51400
8/5/2018;2018;Steel;7208100000 F;Serbia;RS;Serbia;24;;181650;181650;105500
8/5/2018;2018;Steel;7208519810 F;Serbia;RS;Serbia;24;;38850;38850;22560
8/5/2018;2018;Steel;7306408000 F;Taiwan;TW;Taiwan;2007;;10202;10202;24200
8/5/2018;2018;Steel;7306611000 F;Taiwan;TW;Taiwan;2007;;10824;10824;23550
8/5/2018;2018;Steel;7219341000 F;South Korea;KR;South Korea;2007;;20000;20000;43200
8/5/2018;2018;Steel;7307191090 F;Turkey;TR;Turkey;4526;;14964;14964;20294
8/5/2018;2018;Steel;7318154290 F;China;CN;China;4610;;5429;5429;3746
8/5/2018;2018;Steel;7214993100 F;Turkey;TR;Turkey;38;;9946;9946;7873
8/5/2018;2018;Steel;7214919090 F;Turkey;TR;Turkey;38;;3240;3240;2304
8/5/2018;2018;Steel;7228306990 F;Egypt;EG;Turkey;38;;7309;7309;8009
8/5/2018;2018;Steel;7209169000 F;Ukraine;UA;Ukraine;18;;330000;330000;194700
8/5/2018;2018;Steel;7214999590 F;Turkey;TR;Turkey;38;;3410;3410;2557
9/5/2018;2018;Steel;7306307780 F;Turkey;TR;Turkey;14;;330700;330700;189790
9/5/2018;2018;Steel;7306308000 F;Turkey;TR;Turkey;14;;15200;15200;8957
9/5/2018;2018;Steel;7306619900 F;Turkey;TR;Turkey;14;;134500;134500;103560
9/5/2018;2018;Steel;7210490020 F;Turkey;TR;Turkey;18;;165000;165000;107745
9/5/2018;2018;Steel;7210490020 F;Turkey;TR;Turkey;18;;220000;220000;137500
9/5/2018;2018;Steel;7210122090 F;China;CN;China;36;;203276;203276;144903
9/5/2018;2018;Steel;7306307780 F;Former Yugoslav Republic of Macedonia;MK;Former Yugoslav Republic of Macedonia;4265;;50000;50000;30650
9/5/2018;2018;Steel;7318158290 F;China;CN;China;4537;;5364;5364;7718
9/5/2018;2018;Steel;7209169000 F;Ukraine;UA;Ukraine;18;;330000;330000;194700
9/5/2018;2018;Steel;7210500090 F;Taiwan;TW;Taiwan;3546;;480828;480828;380000
9/5/2018;2018;Steel;7306304190 F;Turkey;TR;Turkey;59;;16000;16000;13968
9/5/2018;2018;Steel;7208380090 F;Turkey;TR;Turkey;20;;110000;110000;64680
9/5/2018;2018;Steel;7208370090 F;Turkey;TR;Turkey;20;;165000;165000;97020
9/5/2018;2018;Steel;7216509100 F;Turkey;TR;Turkey;20;;26600;26600;19285
9/5/2018;2018;Steel;7208380090 F;Turkey;TR;Turkey;20;;220000;220000;129360
9/5/2018;2018;Steel;7306307780 F;Turkey;TR;Turkey;20;;27500;27500;17093
9/5/2018;2018;Steel;7306307780 F;Turkey;TR;Turkey;20;;9570;9570;5484
9/5/2018;2018;Steel;7209179000 F;Ukraine;UA;Ukraine;20;;99000;99000;59400
9/5/2018;2018;Steel;7209169000 F;Ukraine;UA;Ukraine;20;;495000;495000;293040
9/5/2018;2018;Steel;7208390090 F;Turkey;TR;Turkey;14;;538800;538800;295232
9/5/2018;2018;Steel;7208380090 F;Turkey;TR;Turkey;14;;139700;139700;74428
9/5/2018;2018;Steel;7208370090 F;Turkey;TR;Turkey;14;;119500;119500;69454
9/5/2018;2018;Steel;7216210000 F;Turkey;TR;Turkey;14;;198915;198915;103391
9/5/2018;2018;Steel;7216321900 F;Turkey;TR;Turkey;14;;153435;153435;79752
9/5/2018;2018;Steel;7216311000 F;Turkey;TR;Turkey;14;;42772;42772;22232
9/5/2018;2018;Steel;7306307780 F;Former Yugoslav Republic of Macedonia;MK;Former Yugoslav Republic of Macedonia;b38fe80f-f7d7-4f3c-bb23;;51425;51425;31369
10/5/2018;2018;Steel;7306307780 F;Former Yugoslav Republic of Macedonia;MK;Former Yugoslav Republic of Macedonia;4664;;25000;25000;15000
10/5/2018;2018;Steel;7318158290 F;China;CN;China;4547;;18595;18595;14846
10/5/2018;2018;Steel;7306301900 F;China;CN;China;4638;;36806;36806;36100
10/5/2018;2018;Steel;7208400010 F;Turkey;TR;Turkey;14;;88000;88000;48623
10/5/2018;2018;Steel;7226110092 F;Japan;JP;Turkey;4546;;28350;28350;68890
10/5/2018;2018;Steel;7222203100 F;India;IN;Turkey;16;;2721;2721;6863
10/5/2018;2018;Steel;7222202100 F;India;IN;Turkey;16;;4596;4596;11272
10/5/2018;2018;Steel;7212300080 F;Egypt;EG;Egypt;26;;50720;50720;35402
10/5/2018;2018;Steel;7210490080 F;Former Yugoslav Republic of Macedonia;MK;Former Yugoslav Republic of Macedonia;26;;1200000;1200000;860400
10/5/2018;2018;Steel;7208390090 F;Turkey;TR;Turkey;18;;771640;771640;430576
10/5/2018;2018;Steel;7217209090 F;Turkey;TR;Turkey;41;;25000;25000;22000
10/5/2018;2018;Steel;7217203000 F;Turkey;TR;Turkey;41;;25000;25000;17765
10/5/2018;2018;Steel;7222202100 F;India;IN;India;16;;2896;2896;5860
10/5/2018;2018;Steel;7222203100 F;India;IN;India;16;;16345;16345;34221
10/5/2018;2018;Steel;7222191000 F;India;IN;India;16;;3998;3998;8280
10/5/2018;2018;Steel;7210708011 F;Turkey;TR;Turkey;19;;5380;5380;4121
11/5/2018;2018;Steel;7223001900 F;India;IN;India;4572;;10890;10890;26789
11/5/2018;2018;Steel;7306301900 F;Former Yugoslav Republic of Macedonia;MK;Former Yugoslav Republic of Macedonia;4646;;25450;25450;15270
11/5/2018;2018;Steel;7209179000 F;Former Yugoslav Republic of Macedonia;MK;Former Yugoslav Republic of Macedonia;24;;102000;102000;65400
11/5/2018;2018;Steel;7209169000 F;Former Yugoslav Republic of Macedonia;MK;Former Yugoslav Republic of Macedonia;24;;216000;216000;138500
11/5/2018;2018;Steel;7318190090 F;China;CN;China;4608;;17748;17748;18498
11/5/2018;2018;Steel;7318169990 F;China;CN;China;4544;;19021;19021;25100
11/5/2018;2018;Steel;7318149989 F;Taiwan;TW;Taiwan;4683;;16573;16573;43273
11/5/2018;2018;Steel;7306619900 F;Former Yugoslav Republic of Macedonia;MK;Former Yugoslav Republic of Macedonia;24;;81378;81378;50900
11/5/2018;2018;Steel;7306619900 F;Former Yugoslav Republic of Macedonia;MK;Former Yugoslav Republic of Macedonia;20;;165000;165000;101475
11/5/2018;2018;Steel;7306619200 F;Former Yugoslav Republic of Macedonia;MK;Former Yugoslav Republic of Macedonia;20;;165000;165000;101475
11/5/2018;2018;Steel;7306307780 F;Former Yugoslav Republic of Macedonia;MK;Former Yugoslav Republic of Macedonia;20;;165000;165000;101475
11/5/2018;2018;Steel;7306308000 F;Former Yugoslav Republic of Macedonia;MK;Former Yugoslav Republic of Macedonia;20;;165000;165000;101475
11/5/2018;2018;Steel;7318158290 F;Turkey;TR;Turkey;4661;;22841;22841;28845
11/5/2018;2018;Steel;7210500090 F;China;CN;China;3546;;184572;184572;145000
11/5/2018;2018;Steel;7210500090 F;China;CN;China;3546;;207650;207650;160000
11/5/2018;2018;Steel;7306619200 F;Turkey;TR;Turkey;41;;61600;61600;34311
11/5/2018;2018;Steel;7306619900 F;Turkey;TR;Turkey;41;;104500;104500;58206
11/5/2018;2018;Steel;7306307280 F;Turkey;TR;Turkey;41;;92400;92400;67467
11/5/2018;2018;Steel;7217909000 F;Albania;AL;Albania;3251;;6000;6000;4080
11/5/2018;2018;Steel;7318190090 F;India;IN;India;4716;;5735;5735;7798
14/5/2018;2018;Steel;7210122090 F;China;CN;China;4575;;23192;23192;21595
14/5/2018;2018;Steel;7306199000 F;Turkey;TR;Turkey;59;;4750;4750;4215
14/5/2018;2018;Steel;7307191010 F;China;CN;China;4630;;12623;12623;21988
14/5/2018;2018;Steel;7213914900 F;Turkey;TR;Turkey;4541;;12000;12000;7650
14/5/2018;2018;Steel;7213991000 F;Turkey;TR;Turkey;4541;;12000;12000;7920
14/5/2018;2018;Steel;7210908099 F;Turkey;TR;Turkey;4528;;972000;972000;529625
14/5/2018;2018;Steel;7210708091 F;Former Yugoslav Republic of Macedonia;MK;Former Yugoslav Republic of Macedonia;4528;;33000;33000;29700
14/5/2018;2018;Steel;7318154290 F;China;CN;China;4537;;8458;8458;10180
14/5/2018;2018;Steel;7318169290 F;China;CN;China;4537;;7753;7753;8950
14/5/2018;2018;Steel;7209169000 F;Ukraine;UA;Ukraine;28;;99000;99000;58910
14/5/2018;2018;Steel;7209179000 F;Ukraine;UA;Ukraine;28;;99000;99000;58910
14/5/2018;2018;Steel;7217203000 F;China;CN;China;4644;;26504;26504;26482
14/5/2018;2018;Steel;7228409000 F;China;CN;China;b95adacc-f965-4ea4-a92d;;8310;8310;16445
14/5/2018;2018;Steel;7216321100 F;Turkey;TR;Turkey;34;;22000;22000;11805
14/5/2018;2018;Steel;7216311000 F;Turkey;TR;Turkey;34;;14300;14300;7621
14/5/2018;2018;Steel;7216311000 F;Turkey;TR;Turkey;24;;34064;34064;18517
14/5/2018;2018;Steel;7216210000 F;Turkey;TR;Turkey;24;;20194;20194;11014
14/5/2018;2018;Steel;7216321100 F;Turkey;TR;Turkey;24;;25990;25990;14224
14/5/2018;2018;Steel;7216319000 F;Turkey;TR;Turkey;24;;2920;2920;1609
14/5/2018;2018;Steel;7216401000 F;Turkey;TR;Turkey;24;;9880;9880;5360
15/5/2018;2018;Steel;7217109010 F;Turkey;TR;Turkey;41;;50000;50000;35750
15/5/2018;2018;Steel;7209169000 F;Former Yugoslav Republic of Macedonia;MK;Former Yugoslav Republic of Macedonia;31;;275000;275000;166375
15/5/2018;2018;Steel;7210122010 F;China;CN;China;4594;;500000;500000;443500
15/5/2018;2018;Steel;7228306190 F;China;CN;China;38;;25860;25860;26931
15/5/2018;2018;Steel;7214919090 F;Turkey;TR;Turkey;38;;29700;29700;20196
15/5/2018;2018;Steel;7306307780 F;Turkey;TR;Turkey;38;;50820;50820;33434
15/5/2018;2018;Steel;7318154290 F;China;CN;China;4610;;12401;12401;10051
15/5/2018;2018;Steel;7217103900 F;Former Yugoslav Republic of Macedonia;MK;Former Yugoslav Republic of Macedonia;48;;300000;300000;198750
15/5/2018;2018;Steel;7306307280 F;India;IN;India;4296;;52240;52240;42285
15/5/2018;2018;Steel;7210500010 F;China;CN;China;4594;;220000;220000;176000
15/5/2018;2018;Steel;7306308000 F;China;CN;China;38;;53230;53230;39920
15/5/2018;2018;Steel;7210708019 F;Turkey;TR;Turkey;56;;24200;24200;17132
15/5/2018;2018;Steel;7216321100 F;Turkey;TR;Turkey;24;;8320;8320;4200
15/5/2018;2018;Steel;7216210000 F;Turkey;TR;Turkey;24;;14080;14080;7630
15/5/2018;2018;Steel;7216311000 F;Turkey;TR;Turkey;24;;9320;9320;4900
15/5/2018;2018;Steel;7216401000 F;Turkey;TR;Turkey;24;;19380;19380;10450
15/5/2018;2018;Steel;7208529900 F;Former Yugoslav Republic of Macedonia;MK;Former Yugoslav Republic of Macedonia;24;;8700;8700;5320
15/5/2018;2018;Steel;7217103900 F;China;CN;China;41;;80000;80000;55104
16/5/2018;2018;Steel;7306307780 F;Former Yugoslav Republic of Macedonia;MK;Former Yugoslav Republic of Macedonia;3700;;3580;3580;2158
16/5/2018;2018;Steel;7306619200 F;Former Yugoslav Republic of Macedonia;MK;Former Yugoslav Republic of Macedonia;3700;;16700;16700;1007
16/5/2018;2018;Steel;7306619900 F;Former Yugoslav Republic of Macedonia;MK;Former Yugoslav Republic of Macedonia;3700;;19700;19700;11879
16/5/2018;2018;Steel;7216401000 F;Turkey;TR;Turkey;4317;;153640;153640;108828
16/5/2018;2018;Steel;7216401000 F;Saudi Arabia;SA;United Arab Emirates;4317;;137592;137592;85995
16/5/2018;2018;Steel;7306900000 F;United Arab Emirates;AE;United Arab Emirates;4317;;218237;218237;163677
16/5/2018;2018;Steel;7216401000 F;Bahrain;BH;United Arab Emirates;4317;;14959;14959;10159
16/5/2018;2018;Steel;7216339000 F;Bahrain;BH;United Arab Emirates;4317;;295320;295320;184575
16/5/2018;2018;Steel;7219341000 F;Turkey;TR;Turkey;2007;;20000;20000;29000
16/5/2018;2018;Steel;7217109090 F;Turkey;TR;Turkey;a03e51e8-03a9-4d6c-bb5d;;11029;11029;9039
16/5/2018;2018;Steel;7306408000 F;Taiwan;TW;Taiwan;3239;;13244;13244;34218
16/5/2018;2018;Steel;7306611000 F;Taiwan;TW;Taiwan;3239;;8082;8082;17963
16/5/2018;2018;Steel;7222208100 F;India;IN;India;16;;5290;5290;11991
16/5/2018;2018;Steel;7222203100 F;India;IN;India;16;;11534;11534;23405
16/5/2018;2018;Steel;7222191000 F;India;IN;India;16;;5752;5752;11686
16/5/2018;2018;Steel;7306619200 F;Albania;AL;Albania;2477;;130000;130000;78000
16/5/2018;2018;Steel;7306619900 F;Albania;AL;Albania;2477;;70000;70000;41400
16/5/2018;2018;Steel;7306307780 F;Albania;AL;Albania;2477;;50000;50000;30000
16/5/2018;2018;Steel;7228608090 F;Turkey;TR;Turkey;4619;;26000;26000;22069
16/5/2018;2018;Steel;7306308000 F;Former Yugoslav Republic of Macedonia;MK;Former Yugoslav Republic of Macedonia;24;;4400;4400;2800
16/5/2018;2018;Steel;7306619900 F;Former Yugoslav Republic of Macedonia;MK;Former Yugoslav Republic of Macedonia;24;;4587;4587;2820
17/5/2018;2018;Steel;7210490080 F;Turkey;TR;Turkey;3661;;56793;56793;42298
17/5/2018;2018;Steel;7219351000 F;Taiwan;TW;Taiwan;2007;;41000;41000;74200
17/5/2018;2018;Steel;7219341000 F;Taiwan;TW;Taiwan;2007;;60000;60000;79200
17/5/2018;2018;Steel;7306408000 F;Taiwan;TW;Taiwan;2007;;13694;13694;33200
17/5/2018;2018;Steel;7306611000 F;Taiwan;TW;Taiwan;2007;;7671;7671;17300
17/5/2018;2018;Steel;7219331000 F;South Korea;KR;South Korea;2007;;20000;20000;42800
17/5/2018;2018;Steel;7208512090 F;Ukraine;UA;Ukraine;14;;307714;307714;172319
17/5/2018;2018;Steel;7208529190 F;Ukraine;UA;Ukraine;14;;145523;145523;90597
17/5/2018;2018;Steel;7208519190 F;Ukraine;UA;Ukraine;14;;20771;20771;11631
17/5/2018;2018;Steel;7208519890 F;Ukraine;UA;Ukraine;14;;64382;64382;36603
17/5/2018;2018;Steel;7214911090 F;Turkey;TR;Turkey;14;;29400;29400;17094
17/5/2018;2018;Steel;7214919090 F;Turkey;TR;Turkey;14;;6300;6300;6772
17/5/2018;2018;Steel;7214993900 F;Turkey;TR;Turkey;14;;14700;14700;9408
17/5/2018;2018;Steel;7216501000 F;Turkey;TR;Turkey;14;;6300;6300;2478
17/5/2018;2018;Steel;7217103900 F;Ukraine;UA;Ukraine;41;;55000;55000;30523
17/5/2018;2018;Steel;7210490080 F;Turkey;TR;Turkey;14;;280500;280500;182630
17/5/2018;2018;Steel;7306619200 F;Former Yugoslav Republic of Macedonia;MK;Former Yugoslav Republic of Macedonia;132cd58f-a9fd-470d-bb7a;;60500;60500;35695
17/5/2018;2018;Steel;7306619900 F;Former Yugoslav Republic of Macedonia;MK;Former Yugoslav Republic of Macedonia;132cd58f-a9fd-470d-bb7a;;77000;77000;45430
17/5/2018;2018;Steel;7219341000 F;Indonesia;ID;Indonesia;16;;91170;91170;113470
17/5/2018;2018;Steel;7219351000 F;Indonesia;ID;Indonesia;16;;7880;7880;12117
17/5/2018;2018;Steel;7306307780 F;Former Yugoslav Republic of Macedonia;MK;Former Yugoslav Republic of Macedonia;39;;19220;19220;11532
17/5/2018;2018;Steel;7306619900 F;Former Yugoslav Republic of Macedonia;MK;Former Yugoslav Republic of Macedonia;39;;5265;5265;3159
17/5/2018;2018;Steel;7219341000 F;Malaysia;MY;Taiwan;4425;;16008;16008;35538
17/5/2018;2018;Steel;7219321000 F;Malaysia;MY;Taiwan;4425;;7633;7633;15800
17/5/2018;2018;Steel;7219341000 F;Turkey;TR;Turkey;4425;;22334;22334;58068
17/5/2018;2018;Steel;7219341000 F;Turkey;TR;Turkey;4596;;5720;5720;13621
17/5/2018;2018;Steel;7209169000 F;Egypt;EG;Egypt;20;;26650;26650;15919
17/5/2018;2018;Steel;7210122090 F;Canada;CA;Canada;3664;;24690;24690;16941
17/5/2018;2018;Steel;7307910090 F;Vietnam;VN;Vietnam;4574;;13770;13770;154988
17/5/2018;2018;Steel;7219341000 F;Turkey;TR;Turkey;4596;;17690;17690;42500
18/5/2018;2018;Steel;7228307090 F;Turkey;TR;Turkey;2346;;3740;3740;3987
18/5/2018;2018;Steel;7210300090 F;China;CN;China;4296;;9990;9990;8000
18/5/2018;2018;Steel;7208529190 F;Former Yugoslav Republic of Macedonia;MK;Former Yugoslav Republic of Macedonia;13eba77c-1af0-4ea2-bb24;;263837;263837;183366
18/5/2018;2018;Steel;7208529900 F;Former Yugoslav Republic of Macedonia;MK;Former Yugoslav Republic of Macedonia;13eba77c-1af0-4ea2-bb24;;4902;4902;3406
18/5/2018;2018;Steel;7212402010 F;Vietnam;VN;Vietnam;3250;;25597;25597;19927
18/5/2018;2018;Steel;7212402010 F;Vietnam;VN;Vietnam;3250;;25294;25294;19786
18/5/2018;2018;Steel;7208390090 F;Turkey;TR;Turkey;4700;;130760;130760;72441
18/5/2018;2018;Steel;7217203000 F;Ukraine;UA;Ukraine;41;;110000;110000;77871
18/5/2018;2018;Steel;7217209090 F;China;CN;China;4573;;301547;301547;363364
18/5/2018;2018;Steel;7210490020 F;Turkey;TR;Turkey;20;;1369500;1369500;864110
18/5/2018;2018;Steel;7208390090 F;Turkey;TR;Turkey;20;;1056000;1056000;542461
18/5/2018;2018;Steel;7208380090 F;Turkey;TR;Turkey;20;;1386000;1386000;718143
18/5/2018;2018;Steel;7208370090 F;Turkey;TR;Turkey;20;;792000;792000;406413
18/5/2018;2018;Steel;7208360000 F;Turkey;TR;Turkey;20;;82500;82500;41689
18/5/2018;2018;Steel;7216331000 F;Turkey;TR;Turkey;20;;77000;77000;42658
18/5/2018;2018;Steel;7216321100 F;Turkey;TR;Turkey;20;;55000;55000;30470
18/5/2018;2018;Steel;7216329100 F;Turkey;TR;Turkey;20;;38500;38500;21329
18/5/2018;2018;Steel;7216311000 F;Turkey;TR;Turkey;20;;11000;11000;6094
18/5/2018;2018;Steel;7216401000 F;Turkey;TR;Turkey;20;;13180;13180;7301
21/5/2018;2018;Steel;7306307790 F;India;IN;India;14;;27435;27435;21873
21/5/2018;2018;Steel;7210490020 F;Turkey;TR;Turkey;4700;;252670;252670;159182
21/5/2018;2018;Steel;7318154290 F;China;CN;China;4553;;19020;19020;17292
21/5/2018;2018;Steel;7318164090 F;China;CN;China;4553;;24307;24307;24147
21/5/2018;2018;Steel;7220908000 F;Japan;JP;Japan;4576;;5239;5239;39000
21/5/2018;2018;Steel;7210500090 F;China;CN;China;3546;;509786;509786;400000
21/5/2018;2018;Steel;7210708099 F;Former Yugoslav Republic of Macedonia;MK;Former Yugoslav Republic of Macedonia;28;;431500;431500;403020
21/5/2018;2018;Steel;7306308000 F;Former Yugoslav Republic of Macedonia;MK;Former Yugoslav Republic of Macedonia;47;;35750;35750;20440
21/5/2018;2018;Steel;7318190090 F;China;CN;China;4562;;23826;23826;25612
21/5/2018;2018;Steel;7210122010 F;China;CN;China;16;;60745;60745;50058
21/5/2018;2018;Steel;7210500010 F;China;CN;China;16;;15196;15196;11326
21/5/2018;2018;Steel;7219331000 F;Vietnam;VN;Vietnam;38;;18769;18769;37422
21/5/2018;2018;Steel;7219351000 F;Vietnam;VN;Vietnam;38;;11238;11238;24947
21/5/2018;2018;Steel;7219321000 F;Vietnam;VN;Vietnam;38;;19630;19630;39139
21/5/2018;2018;Steel;7219341000 F;Vietnam;VN;Vietnam;38;;15894;15894;33230
21/5/2018;2018;Steel;7219230000 F;South Korea;KR;South Korea;38;;19848;19848;40054
21/5/2018;2018;Steel;7219221000 F;South Korea;KR;South Korea;38;;19504;19504;39360
21/5/2018;2018;Steel;7228701000 F;Turkey;TR;Turkey;4568;;3150;3150;3150
21/5/2018;2018;Steel;7318129090 F;Vietnam;VN;Vietnam;4053;;43370;43370;60553
21/5/2018;2018;Steel;7219349000 F;Vietnam;VN;Vietnam;4642;;48458;48458;59848
21/5/2018;2018;Steel;7318190090 F;China;CN;China;4553;;21461;21461;26872
21/5/2018;2018;Steel;7217909000 F;Turkey;TR;Turkey;4711;;50000;50000;35530
21/5/2018;2018;Steel;7222202100 F;India;IN;India;3239;;4695;4695;11755
21/5/2018;2018;Steel;7222203100 F;India;IN;India;3239;;8425;8425;19113
21/5/2018;2018;Steel;7222401000 F;India;IN;India;3239;;3319;3319;7483
21/5/2018;2018;Steel;7210500090 F;China;CN;China;3136;;4212;4212;3200
21/5/2018;2018;Steel;7306619900 F;China;CN;China;3136;;27065;27065;19000
22/5/2018;2018;Steel;7210122090 F;China;CN;China;3664;;62700;62700;49196
22/5/2018;2018;Steel;7318159590 F;China;CN;China;4545;;17940;17940;23510
22/5/2018;2018;Steel;7318169290 F;China;CN;China;4545;;11498;11498;13150
22/5/2018;2018;Steel;7318159590 F;China;CN;China;4545;;7016;7016;9450
22/5/2018;2018;Steel;7318220095 F;China;CN;China;4545;;5404;5404;7550
22/5/2018;2018;Steel;7318190090 F;China;CN;China;4553;;10312;10312;12328
22/5/2018;2018;Steel;7318154290 F;China;CN;China;4547;;64571;64571;58311
22/5/2018;2018;Steel;7217103900 F;China;CN;China;41;;108000;108000;72701
22/5/2018;2018;Steel;7210490080 F;Ukraine;UA;Ukraine;34;;704000;704000;444906
22/5/2018;2018;Steel;7210490080 F;Ukraine;UA;Ukraine;34;;33000;33000;20427
22/5/2018;2018;Steel;7306619200 F;Turkey;TR;Turkey;34;;7700;7700;4337
22/5/2018;2018;Steel;7306619900 F;Turkey;TR;Turkey;34;;140800;140800;78160
22/5/2018;2018;Steel;7306619900 F;Turkey;TR;Turkey;34;;95700;95700;53029
22/5/2018;2018;Steel;7306619200 F;Turkey;TR;Turkey;34;;46200;46200;26081
22/5/2018;2018;Steel;7216311000 F;Turkey;TR;Turkey;34;;49500;49500;25510
22/5/2018;2018;Steel;7216321100 F;Turkey;TR;Turkey;34;;56100;56100;28911
22/5/2018;2018;Steel;7216210000 F;Turkey;TR;Turkey;34;;33000;33000;17006
22/5/2018;2018;Steel;7216401000 F;Turkey;TR;Turkey;34;;3300;3300;1700
22/5/2018;2018;Steel;7216311000 F;Turkey;TR;Turkey;34;;13200;13200;6802
22/5/2018;2018;Steel;7216321100 F;Turkey;TR;Turkey;34;;6600;6600;3401
22/5/2018;2018;Steel;7216311000 F;Turkey;TR;Turkey;34;;10560;10560;5860
22/5/2018;2018;Steel;7216321100 F;Turkey;TR;Turkey;34;;3410;3410;1892
22/5/2018;2018;Steel;7216329100 F;Turkey;TR;Turkey;34;;2860;2860;1587
22/5/2018;2018;Steel;7216331000 F;Turkey;TR;Turkey;34;;6600;6600;3663
22/5/2018;2018;Steel;7216321100 F;Turkey;TR;Turkey;34;;5940;5940;3296
22/5/2018;2018;Steel;7216311000 F;Turkey;TR;Turkey;34;;2640;2640;1465
22/5/2018;2018;Steel;7216319000 F;Turkey;TR;Turkey;34;;2970;2970;1648
22/5/2018;2018;Steel;7216331000 F;Turkey;TR;Turkey;34;;3410;3410;1892
22/5/2018;2018;Steel;7216339000 F;Turkey;TR;Turkey;34;;3080;3080;1740
22/5/2018;2018;Steel;7216311000 F;Turkey;TR;Turkey;34;;10670;10670;5761
22/5/2018;2018;Steel;7216319000 F;Turkey;TR;Turkey;34;;3520;3520;1900
22/5/2018;2018;Steel;7216321100 F;Turkey;TR;Turkey;34;;34870;34870;18829
22/5/2018;2018;Steel;7216329100 F;Turkey;TR;Turkey;34;;37620;37620;20314
22/5/2018;2018;Steel;7216331000 F;Turkey;TR;Turkey;34;;89210;89210;48173
22/5/2018;2018;Steel;7216339000 F;Turkey;TR;Turkey;34;;41030;41030;22566
22/5/2018;2018;Steel;7216311000 F;Turkey;TR;Turkey;34;;3080;3080;1663
22/5/2018;2018;Steel;7216319000 F;Turkey;TR;Turkey;34;;2970;2970;1603
22/5/2018;2018;Steel;7216321100 F;Turkey;TR;Turkey;34;;3740;3740;2019
22/5/2018;2018;Steel;7216329100 F;Turkey;TR;Turkey;34;;2750;2750;1485
22/5/2018;2018;Steel;7216331000 F;Turkey;TR;Turkey;34;;9350;9350;5049
22/5/2018;2018;Steel;7216329100 F;Turkey;TR;Turkey;34;;23870;23870;13128
22/5/2018;2018;Steel;7219351000 F;South Korea;KR;South Korea;1c128c79-a625-496c-88b0;;22945;22945;51876
22/5/2018;2018;Steel;7216319000 F;Turkey;TR;Turkey;34;;9680;9680;5324
22/5/2018;2018;Steel;7216331000 F;Turkey;TR;Turkey;34;;94600;94600;52030
22/5/2018;2018;Steel;7216321100 F;Turkey;TR;Turkey;34;;33000;33000;18849
22/5/2018;2018;Steel;7210490080 F;Egypt;EG;Egypt;34;;27621;27621;17080
22/5/2018;2018;Steel;7210490080 F;Turkey;TR;Turkey;34;;264000;264000;177369
22/5/2018;2018;Steel;7208512090 F;Former Yugoslav Republic of Macedonia;MK;Former Yugoslav Republic of Macedonia;34;;40820;40820;21265
22/5/2018;2018;Steel;7210122090 F;China;CN;China;4372;;27342;27342;23514
23/5/2018;2018;Steel;7306619900 F;Former Yugoslav Republic of Macedonia;MK;Former Yugoslav Republic of Macedonia;24;;43835;43835;26622
23/5/2018;2018;Steel;7307191010 F;China;CN;China;29;;3247;3247;5295
23/5/2018;2018;Steel;7307191090 F;China;CN;China;29;;43144;43144;67969
23/5/2018;2018;Steel;7217103900 F;China;CN;China;41;;146000;146000;92832
23/5/2018;2018;Steel;7222208100 F;India;IN;India;4606;;6240;6240;14047
23/5/2018;2018;Steel;7222202100 F;India;IN;India;4606;;4956;4956;10117
23/5/2018;2018;Steel;7222201100 F;India;IN;India;4606;;10754;10754;22938
23/5/2018;2018;Steel;7208529900 F;Former Yugoslav Republic of Macedonia;MK;Former Yugoslav Republic of Macedonia;7f92d9d7-b03a-42e6-80dc;;23393;23393;17733
23/5/2018;2018;Steel;7307931199 F;China;CN;China;59;;15064;15064;15372
23/5/2018;2018;Steel;7307910090 F;China;CN;China;59;;35787;35787;36499
23/5/2018;2018;Steel;7306191000 F;Turkey;TR;Turkey;59;;19490;19490;15470
23/5/2018;2018;Steel;7210490020 F;Former Yugoslav Republic of Macedonia;MK;Former Yugoslav Republic of Macedonia;41;;165000;165000;109065
23/5/2018;2018;Steel;7217201000 F;China;CN;China;41;;17850;17850;15444
23/5/2018;2018;Steel;7217203000 F;China;CN;China;41;;10080;10080;7931
23/5/2018;2018;Steel;7222203100 F;India;IN;India;4425;;14376;14376;30581
23/5/2018;2018;Steel;7222191000 F;India;IN;India;4425;;3911;3911;9410
23/5/2018;2018;Steel;7208529900 F;Turkey;TR;Turkey;19;;30085;30085;18607
23/5/2018;2018;Steel;7208370090 F;Turkey;TR;Turkey;19;;23580;23580;13912
23/5/2018;2018;Steel;7208512090 F;Turkey;TR;Turkey;19;;5380;5380;3309
23/5/2018;2018;Steel;7208390090 F;Turkey;TR;Turkey;19;;34060;34060;20095
23/5/2018;2018;Steel;7208519890 F;Turkey;TR;Turkey;19;;12755;12755;7866
23/5/2018;2018;Steel;7208380090 F;Turkey;TR;Turkey;19;;48960;48960;28886
23/5/2018;2018;Steel;7318159590 F;Turkey;TR;Turkey;4537;;22367;22367;34690
24/5/2018;2018;Steel;7216210000 F;Turkey;TR;Turkey;34;;33000;33000;17006
24/5/2018;2018;Steel;7209179000 F;Ukraine;UA;Ukraine;14;;132000;132000;83820
24/5/2018;2018;Steel;7208519890 F;Ukraine;UA;Ukraine;14;;74182;74182;40007
24/5/2018;2018;Steel;7208519190 F;Ukraine;UA;Ukraine;14;;44515;44515;24038
24/5/2018;2018;Steel;7208529900 F;Ukraine;UA;Ukraine;14;;22696;22696;14298
24/5/2018;2018;Steel;7208529190 F;Ukraine;UA;Ukraine;14;;77314;77314;45015
24/5/2018;2018;Steel;7208512090 F;Ukraine;UA;Ukraine;14;;315687;315687;176785
24/5/2018;2018;Steel;7214997990 F;Egypt;EG;Turkey;14;;2945;2945;2738
24/5/2018;2018;Steel;7214919090 F;Turkey;TR;Turkey;14;;13000;13000;8100
24/5/2018;2018;Steel;7214997990 F;Turkey;TR;Turkey;14;;15565;15565;10571
24/5/2018;2018;Steel;7307931199 F;China;CN;China;29;;22358;22358;20820
24/5/2018;2018;Steel;7307910090 F;China;CN;China;29;;33236;33236;35883
24/5/2018;2018;Steel;7306199000 F;Turkey;TR;Turkey;59;;13980;13980;11532
24/5/2018;2018;Steel;7215501900 F;Turkey;TR;Turkey;50;;50000;50000;35000
24/5/2018;2018;Steel;7318159590 F;Vietnam;VN;Vietnam;4681;;18815;18815;31150
24/5/2018;2018;Steel;7210490020 F;Ukraine;UA;Ukraine;18;;66000;66000;41910
24/5/2018;2018;Steel;7220204900 F;South Africa;ZA;South Africa;4148;;4011;4011;4320
24/5/2018;2018;Steel;7219359000 F;South Africa;ZA;South Africa;4148;;9219;9219;11239
24/5/2018;2018;Steel;7219349000 F;South Africa;ZA;South Africa;4148;;4657;4657;8262
24/5/2018;2018;Steel;7219341000 F;South Africa;ZA;South Africa;4148;;3421;3421;6581
24/5/2018;2018;Steel;7210708099 F;Australia;AU;Australia;27;;287567;287567;198442
24/5/2018;2018;Steel;7208512090 F;Former Yugoslav Republic of Macedonia;MK;Former Yugoslav Republic of Macedonia;4590;;10676;10676;7419
24/5/2018;2018;Steel;7208519190 F;Former Yugoslav Republic of Macedonia;MK;Former Yugoslav Republic of Macedonia;4590;;17898;17898;12439
24/5/2018;2018;Steel;7208529190 F;Former Yugoslav Republic of Macedonia;MK;Former Yugoslav Republic of Macedonia;4590;;13816;13816;9602
24/5/2018;2018;Steel;7208529900 F;Former Yugoslav Republic of Macedonia;MK;Former Yugoslav Republic of Macedonia;4590;;4020;4020;2793
24/5/2018;2018;Steel;7318159590 F;Vietnam;VN;Vietnam;0ba938cc-22c9-4396-862c;;9271;9271;14700
24/5/2018;2018;Steel;7318159590 F;China;CN;China;4691;;19164;19164;23950
24/5/2018;2018;Steel;7306307780 F;India;IN;India;3333;;21897;21897;16600
24/5/2018;2018;Steel;7209169000 F;Ukraine;UA;Ukraine;14;;330000;330000;204600
24/5/2018;2018;Steel;7318169290 F;China;CN;China;839ce33e-388b-4f75-bd23;;6721;6721;7312
24/5/2018;2018;Steel;7318149989 F;China;CN;China;839ce33e-388b-4f75-bd23;;11017;11017;10798
25/5/2018;2018;Steel;7210490080 F;Taiwan;TW;Taiwan;4528;;292645;292645;272159
25/5/2018;2018;Steel;7229200000 F;Turkey;TR;Turkey;0310cb48-2a80-4ea3-8647;;6480;6480;7040
25/5/2018;2018;Steel;7318149989 F;Taiwan;TW;Taiwan;26;;12924;12924;25883
25/5/2018;2018;Steel;7219331000 F;Turkey;TR;Turkey;2007;;70000;70000;150000
25/5/2018;2018;Steel;7219341000 F;Turkey;TR;Turkey;2007;;10000;10000;22000
25/5/2018;2018;Steel;7219321000 F;Turkey;TR;Turkey;2007;;20000;20000;42500
25/5/2018;2018;Steel;7208519190 F;Former Yugoslav Republic of Macedonia;MK;Former Yugoslav Republic of Macedonia;4604;;27354;27354;19011
25/5/2018;2018;Steel;7208529900 F;Former Yugoslav Republic of Macedonia;MK;Former Yugoslav Republic of Macedonia;4604;;3588;3588;2493
25/5/2018;2018;Steel;7208529190 F;Former Yugoslav Republic of Macedonia;MK;Former Yugoslav Republic of Macedonia;4604;;4482;4482;3114
25/5/2018;2018;Steel;7210500090 F;Taiwan;TW;Taiwan;3546;;250065;250065;205000
25/5/2018;2018;Steel;7208270000 F;Serbia;RS;Serbia;28;;26000;26000;15420
25/5/2018;2018;Steel;7306307280 F;Turkey;TR;Turkey;28;;56100;56100;40930
29/5/2018;2018;Steel;7318129090 F;Vietnam;VN;Vietnam;4053;;42378;42378;61167
29/5/2018;2018;Steel;7306699000 F;China;CN;China;4602;;15523;15523;16814
29/5/2018;2018;Steel;7208380090 F;Turkey;TR;Turkey;34;;66000;66000;34980
29/5/2018;2018;Steel;7208512090 F;South Korea;KR;South Korea;4574;;4777536;4777536;2929801
29/5/2018;2018;Steel;7208512090 F;South Korea;KR;South Korea;4574;;4232738;4232738;2289260
29/5/2018;2018;Steel;7219331000 F;Indonesia;ID;Indonesia;16;;7660;7660;8996
29/5/2018;2018;Steel;7219341000 F;Indonesia;ID;Indonesia;16;;26765;26765;34027
29/5/2018;2018;Steel;7219351000 F;Indonesia;ID;Indonesia;16;;10470;10470;13987
29/5/2018;2018;Steel;7219341000 F;Vietnam;VN;Vietnam;38;;43515;43515;95604
29/5/2018;2018;Steel;7318129090 F;Vietnam;VN;Vietnam;4602;;38555;38555;61160
29/5/2018;2018;Steel;7214995000 F;Former Yugoslav Republic of Macedonia;MK;Former Yugoslav Republic of Macedonia;23;;1000000;1000000;520000
29/5/2018;2018;Steel;7307910090 F;China;CN;China;61;;21280;21280;28000
29/5/2018;2018;Steel;7209179000 F;Former Yugoslav Republic of Macedonia;MK;Former Yugoslav Republic of Macedonia;24;;60660;60660;37985
29/5/2018;2018;Steel;7217203000 F;Former Yugoslav Republic of Macedonia;MK;Former Yugoslav Republic of Macedonia;48;;20766;20766;15367
29/5/2018;2018;Steel;7217103900 F;Former Yugoslav Republic of Macedonia;MK;Former Yugoslav Republic of Macedonia;48;;6645;6645;4127
30/5/2018;2018;Steel;7208370090 F;Turkey;TR;Turkey;34;;132000;132000;69960
30/5/2018;2018;Steel;7208360000 F;Turkey;TR;Turkey;34;;22000;22000;11660
30/5/2018;2018;Steel;7210708099 F;Former Yugoslav Republic of Macedonia;MK;Former Yugoslav Republic of Macedonia;4558;;36000;36000;32400
30/5/2018;2018;Steel;7210490080 F;Former Yugoslav Republic of Macedonia;MK;Former Yugoslav Republic of Macedonia;56;;120000;120000;84600
30/5/2018;2018;Steel;7210490080 F;Former Yugoslav Republic of Macedonia;MK;Former Yugoslav Republic of Macedonia;56;;7380;7380;4764
30/5/2018;2018;Steel;7210490080 F;Former Yugoslav Republic of Macedonia;MK;Former Yugoslav Republic of Macedonia;56;;6430;6430;4159
30/5/2018;2018;Steel;7222201100 F;India;IN;India;16;;6174;6174;12903
30/5/2018;2018;Steel;7222202100 F;India;IN;India;16;;9196;9196;19269
30/5/2018;2018;Steel;7222203100 F;India;IN;India;16;;7514;7514;15704
30/5/2018;2018;Steel;7220204900 F;South Africa;ZA;South Africa;4148;;3191;3191;3462
30/5/2018;2018;Steel;7219349000 F;South Africa;ZA;South Africa;4148;;18127;18127;23805
30/5/2018;2018;Steel;7219351000 F;South Africa;ZA;South Africa;4148;;4437;4437;9827
30/5/2018;2018;Steel;7217203000 F;Turkey;TR;Turkey;4539;;5337;5337;5053
30/5/2018;2018;Steel;7213917000 F;Turkey;TR;Turkey;41;;315000;315000;170366
30/5/2018;2018;Steel;7210708099 F;Turkey;TR;Turkey;4558;;9900;9900;9732
30/5/2018;2018;Steel;7209179000 F;Serbia;RS;Serbia;28;;80770;80770;48880
30/5/2018;2018;Steel;7306307780 F;Turkey;TR;Turkey;47;;75900;75900;50600
30/5/2018;2018;Steel;7306307780 F;Former Yugoslav Republic of Macedonia;MK;Former Yugoslav Republic of Macedonia;b38fe80f-f7d7-4f3c-bb23;;50940;50940;30818
30/5/2018;2018;Steel;7306619900 F;Former Yugoslav Republic of Macedonia;MK;Former Yugoslav Republic of Macedonia;34;;27280;27280;16742
31/5/2018;2018;Steel;7318158890 F;Taiwan;TW;Taiwan;4601;;7441;7441;10785
31/5/2018;2018;Steel;7318155890 F;Taiwan;TW;Taiwan;4601;;11543;11543;20314
31/5/2018;2018;Steel;7210708099 F;Turkey;TR;Turkey;27;;330000;330000;275100
31/5/2018;2018;Steel;7307191010 F;China;CN;China;4630;;13077;13077;25940
31/5/2018;2018;Steel;7217103900 F;Former Yugoslav Republic of Macedonia;MK;Former Yugoslav Republic of Macedonia;46;;24000;24000;14880
31/5/2018;2018;Steel;7318158890 F;China;CN;China;4577;;23200;23200;30000
31/5/2018;2018;Steel;7219341000 F;Indonesia;ID;Indonesia;16;;22695;22695;27572
31/5/2018;2018;Steel;7210122010 F;China;CN;China;16;;254362;254362;202172
31/5/2018;2018;Steel;7210500010 F;China;CN;China;16;;105282;105282;80380
31/5/2018;2018;Steel;7302400000 F;China;CN;China;4708;;8100;8100;8760
31/5/2018;2018;Steel;7210610080 F;India;IN;India;3438;;100105;100105;75579
31/5/2018;2018;Steel;7210701090 F;China;CN;China;4675;;53323;53323;52945
31/5/2018;2018;Steel;7318158890 F;China;CN;China;4577;;9400;9400;12000
31/5/2018;2018;Steel;7306199000 F;Turkey;TR;Turkey;61;;15450;15450;18848
1/6/2018;2018;Steel;7210122010 F;India;IN;India;4594;;23356;23356;19190
1/6/2018;2018;Steel;7219341000 F;Turkey;TR;Turkey;4425;;13000;13000;33555
1/6/2018;2018;Steel;7306408000 F;China;CN;China;4425;;25217;25217;47270
1/6/2018;2018;Steel;7210500010 F;China;CN;China;16;;89140;89140;59054
1/6/2018;2018;Steel;7208539000 F;Turkey;TR;Turkey;4623;;20221;20221;14006
1/6/2018;2018;Steel;7210490080 F;Turkey;TR;Turkey;4578;;9685;9685;7484
1/6/2018;2018;Steel;7210490080 F;Former Yugoslav Republic of Macedonia;MK;Former Yugoslav Republic of Macedonia;4528;;7770;7770;4911
1/6/2018;2018;Steel;7210490020 F;Egypt;EG;Egypt;18;;220000;220000;146275
1/6/2018;2018;Steel;7210490020 F;Egypt;EG;Egypt;18;;165000;165000;114396
1/6/2018;2018;Steel;7210708099 F;Former Yugoslav Republic of Macedonia;MK;Former Yugoslav Republic of Macedonia;3910;;9640;9640;6512
1/6/2018;2018;Steel;7306307780 F;Former Yugoslav Republic of Macedonia;MK;Former Yugoslav Republic of Macedonia;4668;;24790;24790;14630
1/6/2018;2018;Steel;7306619900 F;Former Yugoslav Republic of Macedonia;MK;Former Yugoslav Republic of Macedonia;24;;26422;26422;15740
4/6/2018;2018;Steel;7219341000 F;Malaysia;MY;Taiwan;4425;;17102;17102;37998
4/6/2018;2018;Steel;7219341000 F;South Africa;ZA;Taiwan;4425;;5850;5850;13045
4/6/2018;2018;Steel;7219341000 F;Turkey;TR;Turkey;4425;;10000;10000;25900
4/6/2018;2018;Steel;7304391010 F;Ukraine;UA;Ukraine;58;;21000;21000;20580
4/6/2018;2018;Steel;7318158890 F;China;CN;China;4577;;6000;6000;8800
4/6/2018;2018;Steel;7306304920 F;Turkey;TR;Turkey;59;;51560;51560;35843
4/6/2018;2018;Steel;7210122010 F;China;CN;China;16;;86029;86029;77588
4/6/2018;2018;Steel;7210500010 F;China;CN;China;16;;8910;8910;6969
4/6/2018;2018;Steel;7216401000 F;Turkey;TR;Turkey;34;;19800;19800;10331
4/6/2018;2018;Steel;7216100000 F;Turkey;TR;Turkey;34;;6600;6600;3443
4/6/2018;2018;Steel;7212408099 F;Turkey;TR;Turkey;4724;;24021;24021;24332
4/6/2018;2018;Steel;7216311000 F;Turkey;TR;Turkey;34;;16500;16500;8609
